Workbook

Sheet Cover
A2: Cap and Floor Financial Model 1 (CFFM1)
B3: Regime design model
C4: =MID(CELL("filename"),SEARCH("[",CELL("filename"))+1,SEARCH("]",CELL("filename"))-SEARCH("[",CELL("filename"))-1) -> IFA2CFFM1_PCR_decision.xlsm
C5: DISCLAIMER: In the event of any inconsistency between this model and the licence, licence conditions take precedence.
C6: For guidance on the use of the CFFM1, please refer to the CFFM1 Handbook (CFFM1H)
B8: Model key
E10: Sample | G10: Calculated value
E11: Sample | G11: Formula changes in cells to the right
E12: Sample | G12: Import from other sheet
E13: Sample | G13: Export to other sheet
E14: Sample | G14: Import from & export to other sheet
E15: Sample | G15: Initial input
E16: Sample | G16: Initial input for non-GB indexed portion (to be left empty if GB-indexed only)
E17: Sample | G17: Updated input
E18: Sample | G18: Notes and instructions
E19: Sample | G19: Cell intentionally blank
B21: Contents
E23: Cover | G23: Model key and content directory
E24: Version Control | G24: Version control and log of changes
E25: Inputs | G25: Input data
E26: Data Sources | G26: Sources of input data
E27: Pre Op RAV | G27: Pre-operational RAV balances
E28: Finance | G28: Interest during construction and transaction costs
E29: Op RAV | G29: Operational RAV balances, return on RAV and RAV depreciation
E30: Allowances Cap | G30: Cap allowances (excluding tax) and annuitisation
E31: Allowances Floor | G31: Floor allowances (excluding tax) and annuitisation
E32: Tax Deductions | G32: Tax calculations
E33: Tax Cap | G33: Tax allowances at cap and annuitisation
E34: Tax Floor | G34: Tax allowances at floor and annuitisation
E35: Cap Floor Levels | G35: Cap and Floor values
B37: Checks
E39: Depreciation | G39: ='Op Rav'!I27 -> TRUE
B41: End of sheet

Sheet Version Control
A1: Data Sources
B2: Version number | C2: File pathname | D2: Based on version | E2: Author or editor | F2: Date | G2: Description of changes | H2: Rationale for changes | I2: Location of changes | J2: Impact of changes on outputs | K2: Quality assurance performed? By? | L2: Comments on QA performed
B4: 1.1 | C4: link | D4: N/a | E4: Andrew Stone & Neill Aitken (NGV) | F4: 2017-01-31 | G4: N/a | H4: N/a | I4: N/a | J4: N/a | K4: Internal (ORE) and external (BDO) | L4: Comments reflected in version 1.1
B5: 2.1 | C5: link | D5: 1.1 | E5: Martin Namor | F5: 2019-03-20 | G5: CFFM split into CFFM1 (up to PCR) & CFFM2 (operations) | H5: Simplification and standardisation | I5: Throughout the model | J5: No impact | K5: Internal (ORE - Svitlana Voronkova) | L5: Comments reflected in version 2.2
B6: 2.2 | C6: link | D6: 2.1 | E6: Martin Namor | F6: 2019-09-05 | G6: Minor changes | H6: Reflecting comments from QA and tidying up | I6: Throughout the model | J6: No impact | K6: Internal (ORE - Svitlana Voronkova) | L6: Further comments reflected in version 2.2
B7: 2.3 | D7: 2.2 | E7: Martin Namor | F7: 2020-08-14 | G7: Minor changes to three formulas | H7: Allowing all construction costs to be transferred into the operational RAV; simplifying formulas used to calculate IDC | I7: Inputs sheet and Finance sheet | J7: Potential small impact if construction costs are incurred in the period after the period in which operations start | K7: Internal (ORE - Svitlana Voronkova) | L7: Comments reflected in version 2.3
B8: 2.4 | D8: 2.3 | E8: Vanessa Simpson & Neill Aitken (NGV) | F8: 2022-06-28 | G8: All Nemo input parameters replaced with IFA2 input parameters to generate C + F levels for IFA2 Project. | H8: Implementing the regime for IFA2 | I8: Multiple sheets | J8: Medium | K8: Internal (ORE - Rahmatullah Kawsary) | L8: Comments reflected in version 2.4

Sheet Inputs
A1: Inputs | H1: Licence
E2: Parameter | G2: Units | H2: Terminology | I2: Constant | K2: Annual values
B4: Indexation, currency and base year price term
E6: GB indexed portion of interconnector | G6: choice % | I6: 1
E7: Non-GB indexed portion of interconnector | G7: % | I7: =100%-I6 -> 0
E9: Currency of cost inputs | G9: choice | I9: £
E11: Base year price term | G11: choice | I11: £m 16/17 prices
B13: Variables set after financial close
C15: Actual values
E17: Year commencing | K17: =$I$84 -> 2009-04-01 | L17: =+K18+1 -> 2010-04-01 | M17: =+L18+1 -> 2011-04-01 | N17: =+M18+1 -> 2012-04-01 | O17: =+N18+1 -> 2013-04-01 | P17: =+O18+1 -> 2014-04-01 | Q17: =+P18+1 -> 2015-04-01 | R17: =+Q18+1 -> 2016-04-01 | S17: =+R18+1 -> 2017-04-01 | T17: =+S18+1 -> 2018-04-01 | U17: =+T18+1 -> 2019-04-01 | V17: =+U18+1 -> 2020-04-01 | W17: =+V18+1 -> 2021-04-01 | X17: =+W18+1 -> 2022-04-01 | Y17: =+X18+1 -> 2023-04-01 | Z17: =+Y18+1 -> 2024-04-01 | AA17: =+Z18+1 -> 2025-04-01 | AB17: =+AA18+1 -> 2026-04-01 | AC17: =+AB18+1 -> 2027-04-01 | AD17: =+AC18+1 -> 2028-04-01 | AE17: =+AD18+1 -> 2029-04-01 | AF17: =+AE18+1 -> 2030-04-01 | AG17: =+AF18+1 -> 2031-04-01 | AH17: =+AG18+1 -> 2032-04-01 | AI17: =+AH18+1 -> 2033-04-01 | AJ17: =+AI18+1 -> 2034-04-01 | AK17: =+AJ18+1 -> 2035-04-01 | AL17: =+AK18+1 -> 2036-04-01 | AM17: =+AL18+1 -> 2037-04-01 | AN17: =+AM18+1 -> 2038-04-01 | AO17: =+AN18+1 -> 2039-04-01 | AP17: =+AO18+1 -> 2040-04-01 | AQ17: =+AP18+1 -> 2041-04-01 | AR17: =+AQ18+1 -> 2042-04-01 | AS17: =+AR18+1 -> 2043-04-01 | AT17: =+AS18+1 -> 2044-04-01 | AU17: =+AT18+1 -> 2045-04-01 | AV17: =+AU18+1 -> 2046-04-01 | AW17: =+AV18+1 -> 2047-04-01 | AX17: =+AW18+1 -> 2048-04-01
E18: Year ending | K18: =EOMONTH(K17,11) -> 2010-03-31 | L18: =DATE(YEAR(K18) + 1, MONTH(K18), DAY(K18)) -> 2011-03-31 | M18: =DATE(YEAR(L18) + 1, MONTH(L18), DAY(L18)) -> 2012-03-31 | N18: =DATE(YEAR(M18) + 1, MONTH(M18), DAY(M18)) -> 2013-03-31 | O18: =DATE(YEAR(N18) + 1, MONTH(N18), DAY(N18)) -> 2014-03-31 | P18: =DATE(YEAR(O18) + 1, MONTH(O18), DAY(O18)) -> 2015-03-31 | Q18: =DATE(YEAR(P18) + 1, MONTH(P18), DAY(P18)) -> 2016-03-31 | R18: =DATE(YEAR(Q18) + 1, MONTH(Q18), DAY(Q18)) -> 2017-03-31 | S18: =DATE(YEAR(R18) + 1, MONTH(R18), DAY(R18)) -> 2018-03-31 | T18: =DATE(YEAR(S18) + 1, MONTH(S18), DAY(S18)) -> 2019-03-31 | U18: =DATE(YEAR(T18) + 1, MONTH(T18), DAY(T18)) -> 2020-03-31 | V18: =DATE(YEAR(U18) + 1, MONTH(U18), DAY(U18)) -> 2021-03-31 | W18: =DATE(YEAR(V18) + 1, MONTH(V18), DAY(V18)) -> 2022-03-31 | X18: =DATE(YEAR(W18) + 1, MONTH(W18), DAY(W18)) -> 2023-03-31 | Y18: =DATE(YEAR(X18) + 1, MONTH(X18), DAY(X18)) -> 2024-03-31 | Z18: =DATE(YEAR(Y18) + 1, MONTH(Y18), DAY(Y18)) -> 2025-03-31 | AA18: =DATE(YEAR(Z18) + 1, MONTH(Z18), DAY(Z18)) -> 2026-03-31 | AB18: =DATE(YEAR(AA18) + 1, MONTH(AA18), DAY(AA18)) -> 2027-03-31 | AC18: =DATE(YEAR(AB18) + 1, MONTH(AB18), DAY(AB18)) -> 2028-03-31 | AD18: =DATE(YEAR(AC18) + 1, MONTH(AC18), DAY(AC18)) -> 2029-03-31 | AE18: =DATE(YEAR(AD18) + 1, MONTH(AD18), DAY(AD18)) -> 2030-03-31 | AF18: =DATE(YEAR(AE18) + 1, MONTH(AE18), DAY(AE18)) -> 2031-03-31 | AG18: =DATE(YEAR(AF18) + 1, MONTH(AF18), DAY(AF18)) -> 2032-03-31 | AH18: =DATE(YEAR(AG18) + 1, MONTH(AG18), DAY(AG18)) -> 2033-03-31 | AI18: =DATE(YEAR(AH18) + 1, MONTH(AH18), DAY(AH18)) -> 2034-03-31 | AJ18: =DATE(YEAR(AI18) + 1, MONTH(AI18), DAY(AI18)) -> 2035-03-31 | AK18: =DATE(YEAR(AJ18) + 1, MONTH(AJ18), DAY(AJ18)) -> 2036-03-31 | AL18: =DATE(YEAR(AK18) + 1, MONTH(AK18), DAY(AK18)) -> 2037-03-31 | AM18: =DATE(YEAR(AL18) + 1, MONTH(AL18), DAY(AL18)) -> 2038-03-31 | AN18: =DATE(YEAR(AM18) + 1, MONTH(AM18), DAY(AM18)) -> 2039-03-31 | AO18: =DATE(YEAR(AN18) + 1, MONTH(AN18), DAY(AN18)) -> 2040-03-31 | AP18: =DATE(YEAR(AO18) + 1, MONTH(AO18), DAY(AO18)) -> 2041-03-31 | AQ18: =DATE(YEAR(AP18) + 1, MONTH(AP18), DAY(AP18)) -> 2042-03-31 | AR18: =DATE(YEAR(AQ18) + 1, MONTH(AQ18), DAY(AQ18)) -> 2043-03-31 | AS18: =DATE(YEAR(AR18) + 1, MONTH(AR18), DAY(AR18)) -> 2044-03-31 | AT18: =DATE(YEAR(AS18) + 1, MONTH(AS18), DAY(AS18)) -> 2045-03-31 | AU18: =DATE(YEAR(AT18) + 1, MONTH(AT18), DAY(AT18)) -> 2046-03-31 | AV18: =DATE(YEAR(AU18) + 1, MONTH(AU18), DAY(AU18)) -> 2047-03-31 | AW18: =DATE(YEAR(AV18) + 1, MONTH(AV18), DAY(AV18)) -> 2048-03-31 | AX18: =DATE(YEAR(AW18) + 1, MONTH(AW18), DAY(AW18)) -> 2049-03-31
E20: Development costs | G20: =CONCATENATE($I$9,"m nominal") -> £m nominal | K20: 0 | L20: 0.04291482 | M20: 0.25841052 | N20: 0.70376327 | O20: 1.12801019 | P20: 1.88373799 | Q20: 3.82180007 | R20: 2.185818034 | S20: 0 | T20: 0 | U20: 0 | V20: 0 | W20: 0 | X20: 0 | Y20: 0 | Z20: 0 | AA20: 0 | AB20: 0 | AC20: 0 | AD20: 0 | AE20: 0 | AF20: 0 | AG20: 0 | AH20: 0 | AI20: 0 | AJ20: 0 | AK20: 0 | AL20: 0 | AM20: 0 | AN20: 0 | AO20: 0 | AP20: 0 | AQ20: 0 | AR20: 0 | AS20: 0 | AT20: 0 | AU20: 0 | AV20: 0 | AW20: 0 | AX20: 0
E21: Capex | G21: =CONCATENATE($I$9,"m nominal") -> £m nominal | K21: 0 | L21: 0 | M21: 0 | N21: 0 | O21: 0 | P21: 0 | Q21: 0 | R21: 1.57586067 | S21: 56.90633381 | T21: 122.2138956 | U21: 117.0492372 | V21: 36.61899901 | W21: 11.84310627 | X21: 0 | Y21: 0 | Z21: 0 | AA21: 0 | AB21: 0 | AC21: 0 | AD21: 0 | AE21: 0 | AF21: 0 | AG21: 0 | AH21: 0 | AI21: 0 | AJ21: 0 | AK21: 0 | AL21: 0 | AM21: 0 | AN21: 0 | AO21: 0 | AP21: 0 | AQ21: 0 | AR21: 0 | AS21: 0 | AT21: 0 | AU21: 0 | AV21: 0 | AW21: 0 | AX21: 0
E22: Spares | G22: £m nominal | K22: 0 | L22: 0 | M22: 0 | N22: 0 | O22: 0 | P22: 0 | Q22: 0 | R22: 0 | S22: 0.1970342424 | T22: 0.7086976272 | U22: 2.438880683 | V22: 0.4602027584 | W22: 1.461241509 | X22: 0 | Y22: 0 | Z22: 0 | AA22: 0 | AB22: 0 | AC22: 0 | AD22: 0 | AE22: 0 | AF22: 0 | AG22: 0 | AH22: 0 | AI22: 0 | AJ22: 0 | AK22: 0 | AL22: 0 | AM22: 0 | AN22: 0 | AO22: 0 | AP22: 0 | AQ22: 0 | AR22: 0 | AS22: 0 | AT22: 0 | AU22: 0 | AV22: 0 | AW22: 0 | AX22: 0
E24: Base year average UK RPI inflation index value (CHAW) | G24: Jan 1987 = 100 | H24: UK RPI index 2016/17 | I24: 264.9916667
E28: 12-month average UK RPI inflation index value (CHAW) | G28: =G24 -> Jan 1987 = 100 | H28: UK RPI index t | K28: 215.7666667 | L28: 226.475 | M28: 237.3416667 | N28: 244.675 | O28: 251.7333333 | P28: 256.6666667 | Q28: 259.4333333 | R28: 264.9916667 | S28: 274.9083333 | T28: 283.3083333 | U28: 290.6416667 | V28: 294.1666667 | W28: 311.1583333 | X28: =W28*(1+$I$103) -> 321.2398633 | Y28: =X28*(1+$I$103) -> 331.6480349 | Z28: =Y28*(1+$I$103) -> 342.3934312 | AA28: =Z28*(1+$I$103) -> 353.4869784 | AB28: 364.9399565 | AC28: 376.7640111 | AD28: 388.9711651 | AE28: 401.5738308 | AF28: 414.5848229 | AG28: 428.0173712 | AH28: 441.885134 | AI28: 456.2022124 | AJ28: 470.983164 | AK28: 486.2430186 | AL28: 501.9972924 | AM28: 518.2620046 | AN28: 535.0536936 | AO28: 552.3894332 | AP28: 570.2868509 | AQ28: 588.7641449 | AR28: 607.8401031 | AS28: 627.5341225 | AT28: 647.8662281 | AU28: 668.8570938 | AV28: 690.5280637 | AW28: 712.9011729 | AX28: 735.999171
E32: Indexation factor | H32: =IF(I6=100%,"CRPIt","PPPIt") -> CRPIt | K32: =IF($I$6=100%,(K28/$I$24),($I$6*(K28/$I$24)+$I$7*(K29/$I$25)/(K30/$I$26))) -> 0.8142394415 | L32: =IF($I$6=100%,(L28/$I$24),($I$6*(L28/$I$24)+$I$7*(L29/$I$25)/(L30/$I$26))) -> 0.8546495173 | M32: =IF($I$6=100%,(M28/$I$24),($I$6*(M28/$I$24)+$I$7*(M29/$I$25)/(M30/$I$26))) -> 0.8956570961 | N32: =IF($I$6=100%,(N28/$I$24),($I$6*(N28/$I$24)+$I$7*(N29/$I$25)/(N30/$I$26))) -> 0.9233309224 | O32: 0.9499669801 | P32: 0.9685839177 | Q32: =IF($I$6=100%,(Q28/$I$24),($I$6*(Q28/$I$24)+$I$7*(Q29/$I$25)/(Q30/$I$26))) -> 0.9790244976 | R32: 1 | S32: 1.03742256 | T32: 1.06912167 | U32: 1.096795497 | V32: 1.110097802 | W32: 1.174219315 | X32: 1.212264021 | Y32: 1.251541375 | Z32: 1.292091316 | AA32: 1.333955074 | AB32: 1.377175219 | AC32: 1.421795696 | AD32: 1.467861876 | AE32: 1.515420601 | AF32: 1.564520229 | AG32: 1.615210684 | AH32: 1.66754351 | AI32: 1.72157192 | AJ32: 1.77735085 | AK32: 1.834937018 | AL32: 1.894388977 | AM32: 1.95576718 | AN32: 2.019134037 | AO32: 2.084553979 | AP32: 2.152093528 | AQ32: 2.221821359 | AR32: 2.293808371 | AS32: 2.368127762 | AT32: 2.444855101 | AU32: 2.524068407 | AV32: 2.605848223 | AW32: 2.690277705 | AX32: 2.777442703
E34: =E20 -> Development costs | G34: =$I$11 -> £m 16/17 prices | K34: =IF($I$9="£",K20/K$32,K20/K$32/K$30) -> 0 | L34: =IF($I$9="£",L20/L$32,L20/L$32/L$30) -> 0.05021335545 | M34: =IF($I$9="£",M20/M$32,M20/M$32/M$30) -> 0.2885150144 | N34: =IF($I$9="£",N20/N$32,N20/N$32/N$30) -> 0.7622004776 | O34: 1.187420419 | P34: 1.944837154 | Q34: 3.903681756 | R34: 2.185818034 | S34: 0 | T34: 0 | U34: 0 | V34: 0 | W34: 0 | X34: 0 | Y34: 0 | Z34: 0 | AA34: 0 | AB34: 0 | AC34: 0 | AD34: 0 | AE34: 0 | AF34: 0 | AG34: 0 | AH34: 0 | AI34: 0 | AJ34: 0 | AK34: 0 | AL34: 0 | AM34: 0 | AN34: 0 | AO34: 0 | AP34: 0 | AQ34: 0 | AR34: 0 | AS34: 0 | AT34: 0 | AU34: 0 | AV34: 0 | AW34: 0 | AX34: 0
E35: =E21 -> Capex | G35: =$I$11 -> £m 16/17 prices | K35: =IF($I$9="£",K21/K$32,K21/K$32/K$30) -> 0 | L35: 0 | M35: 0 | N35: 0 | O35: 0 | P35: =IF($I$9="£",P21/P$32,P21/P$32/P$30) -> 0 | Q35: 0 | R35: 1.57586067 | S35: 54.85357267 | T35: 114.3124295 | U35: 106.7192905 | V35: 32.98718271 | W35: 10.08594061 | X35: 0 | Y35: 0 | Z35: 0 | AA35: 0 | AB35: 0 | AC35: 0 | AD35: 0 | AE35: 0 | AF35: 0 | AG35: 0 | AH35: 0 | AI35: 0 | AJ35: 0 | AK35: 0 | AL35: 0 | AM35: 0 | AN35: 0 | AO35: 0 | AP35: 0 | AQ35: 0 | AR35: 0 | AS35: 0 | AT35: 0 | AU35: 0 | AV35: 0 | AW35: 0 | AX35: 0
E36: Spares | G36: £m 16/17 prices | K36: =IF($I$9="£",K22/K$32,K22/K$32/K$30) -> 0 | L36: 0 | M36: 0 | N36: 0 | O36: 0 | P36: 0 | Q36: 0 | R36: 0 | S36: 0.1899266991 | T36: 0.6628783671 | U36: 2.223642138 | V36: 0.4145605528 | W36: 1.244436614 | X36: 0 | Y36: 0 | Z36: 0 | AA36: 0 | AB36: 0 | AC36: 0 | AD36: 0 | AE36: 0 | AF36: 0 | AG36: 0 | AH36: 0 | AI36: 0 | AJ36: 0 | AK36: 0 | AL36: 0 | AM36: 0 | AN36: 0 | AO36: 0 | AP36: 0 | AQ36: 0 | AR36: 0 | AS36: 0 | AT36: 0 | AU36: 0 | AV36: 0 | AW36: 0 | AX36: 0
C38: Ex-ante allowances for the operational period
E40: Operational Year | K40: Year 1 | L40: Year 2 | M40: Year 3 | N40: Year 4 | O40: Year 5 | P40: Year 6 | Q40: Year 7 | R40: Year 8 | S40: Year 9 | T40: Year 10 | U40: Year 11 | V40: Year 12 | W40: Year 13 | X40: Year 14 | Y40: Year 15 | Z40: Year 16 | AA40: Year 17 | AB40: Year 18 | AC40: Year 19 | AD40: Year 20 | AE40: Year 21 | AF40: Year 22 | AG40: Year 23 | AH40: Year 24 | AI40: Year 25
E42: Replacement Capex | G42: £m 19/20 prices | K42: 0 | L42: 0 | M42: 0 | N42: 0 | O42: 0 | P42: 0 | Q42: 2.692720946 | R42: 3.746453609 | S42: 0 | T42: 1.24007212 | U42: 0 | V42: 0.7569815301 | W42: 1.274757488 | X42: 4.300378786 | Y42: 0 | Z42: 0 | AA42: 25.77577806 | AB42: 0 | AC42: 0 | AD42: 1.24007212 | AE42: 2.692720946 | AF42: 0 | AG42: 0 | AH42: 0 | AI42: 0
E43: Decommissioning baseline | G43: £m 19/20 prices | K43: 0 | L43: 0 | M43: 0 | N43: 0 | O43: 0 | P43: 0 | Q43: 0 | R43: 0 | S43: 0 | T43: 0 | U43: 0 | V43: 0 | W43: 0 | X43: 0 | Y43: 0 | Z43: 0 | AA43: 0 | AB43: 0 | AC43: 0 | AD43: 0 | AE43: 0 | AF43: 0 | AG43: 0 | AH43: 0 | AI43: 28.74742754
E44: Controllable Opex | G44: £m 19/20 prices | K44: 15.84008449 | L44: 11.90322674 | M44: 16.27278845 | N44: 15.96149561 | O44: 17.02796593 | P44: 16.98416038 | Q44: 16.79132085 | R44: 18.1009717 | S44: 18.47478011 | T44: 19.49730788 | U44: 19.14643581 | V44: 19.17971007 | W44: 19.213643 | X44: 19.24825251 | Y44: 20.1121377 | Z44: 19.59609867 | AA44: 19.63490363 | AB44: 19.67450364 | AC44: 19.71492042 | AD44: 20.59739918 | AE44: 20.13746478 | AF44: 20.18252681 | AG44: 20.22854062 | AH44: 20.27553235 | AI44: 20.49963239
E45: Non-controllable Opex baseline | G45: £m 19/20 prices | K45: 1.164264268 | L45: 1.149514665 | M45: 1.138718554 | N45: 1.128024034 | O45: 1.117430147 | P45: 1.106935945 | Q45: 1.096540488 | R45: 1.086242844 | S45: 1.076042093 | T45: 1.06593732 | U45: 1.05592762 | V45: 1.046012098 | W45: 1.036189866 | X45: 1.026460044 | Y45: 1.016821762 | Z45: 1.007274156 | AA45: 0.9978163719 | AB45: 0.9884475631 | AC45: 0.9791668909 | AD45: 0.9699735246 | AE45: 0.9608666414 | AF45: 0.9518454262 | AG45: 0.9429090715 | AH45: 0.9340567778 | AI45: 0.9252877526
E47: =E24 -> Base year average UK RPI inflation index value (CHAW) | G47: =G24 -> Jan 1987 = 100 | H47: =H24 -> UK RPI index 2016/17 | I47: =I24 -> 264.9916667
E48: =IF(E25="","",E25) ->  | G48: =IF(G25="","",G25) -> 
E49: =IF(E26="","",E26) -> 
E51: 2019/20 average UK RPI inflation index value (CHAW) | G51: =G24 -> Jan 1987 = 100 | H51: UK RPI index 2019/20 | I51: 290.6416667
G52: =IF(G25="","",G25) -> 
G53: =IF(G26="","",G26) -> 
E55: =IF(E30="","",E30) ->  | G55: =IF(G30="","",G30) ->  | H55: =IF(H30="","",H30) -> 
E57: Indexation conversion from 19/20 to 16/17 terms | I57: =IF($I$6=100%,(I51/$I$47),$I$6*(I51/$I$47)+$I$7*((I52/$I$48)/(I53/$I$49))) -> 1.096795497
E59: =E42 -> Replacement Capex | G59: =$I$11 -> £m 16/17 prices | K59: =IF($I$9="£",K42/$I$57,K42/K$55/$I$57) -> 0 | L59: 0 | M59: 0 | N59: 0 | O59: 0 | P59: 0 | Q59: 2.455080235 | R59: 3.415817826 | S59: 0 | T59: 1.130632031 | U59: 0 | V59: 0.6901756366 | W59: 1.162256311 | X59: 3.920857443 | Y59: 0 | Z59: 0 | AA59: 23.50098823 | AB59: 0 | AC59: 0 | AD59: 1.130632031 | AE59: 2.455080235 | AF59: 0 | AG59: 0 | AH59: 0 | AI59: 0
E60: =E43 -> Decommissioning baseline | G60: £m 16/17 prices | K60: =IF($I$9="£",K43/$I$57,K43/K$55/$I$57) -> 0 | L60: 0 | M60: 0 | N60: 0 | O60: 0 | P60: 0 | Q60: 0 | R60: 0 | S60: 0 | T60: 0 | U60: 0 | V60: 0 | W60: 0 | X60: 0 | Y60: 0 | Z60: 0 | AA60: 0 | AB60: 0 | AC60: 0 | AD60: 0 | AE60: 0 | AF60: 0 | AG60: 0 | AH60: 0 | AI60: 26.21038072
E61: Controllable Opex | G61: £m 16/17 prices | K61: =IF($I$9="£",K44/$I$57,K44/K$55/$I$57) -> 14.44214946 | L61: =IF($I$9="£",L44/$I$57,L44/L$55/$I$57) -> 10.85273123 | M61: 14.83666599 | N61: 14.55284568 | O61: 15.5251968 | P61: 15.48525721 | Q61: 15.30943636 | R61: 16.50350658 | S61: 16.84432528 | T61: 17.7766119 | U61: 17.45670535 | V61: 17.48704305 | W61: 17.5179813 | X61: 17.54953642 | Y61: 18.33718114 | Z61: 17.86668411 | AA61: 17.90206441 | AB61: 17.9381696 | AC61: 17.97501948 | AD61: 18.77961684 | AE61: 18.36027304 | AF61: 18.4013582 | AG61: 18.44331115 | AH61: 18.48615573 | AI61: 18.69047827
E62: Non-controllable Opex baseline | G62: £m 16/17 prices | K62: =IF($I$9="£",K45/$I$57,K45/K$55/$I$57) -> 1.061514449 | L62: 1.048066543 | M62: 1.038223222 | N62: 1.028472525 | O62: 1.018813581 | P62: 1.009245524 | Q62: 0.9997674965 | R62: 0.990378651 | S62: 0.9810781464 | T62: 0.9718651498 | U62: 0.9627388363 | V62: 0.953698389 | W62: 0.9447429983 | X62: 0.9358718625 | Y62: 0.9270841874 | Z62: 0.9183791864 | AA62: 0.9097560802 | AB62: 0.9012140969 | AC62: 0.8927524719 | AD62: 0.8843704478 | AE62: 0.8760672744 | AF62: 0.8678422085 | AG62: 0.859694514 | AH62: 0.8516234618 | AI62: 0.8436283294
B64: Variables set at financial close
C66: Finance
E68: Cap return rate | G68: real annual % | I68: 0.081
E69: Floor return rate | G69: real annual % | I69: -0.0021
E70: Interest during construction (IDC) rate | G70: real annual % | I70: 0.0675
E71: Cost of debt (for tax) | G71: real annual % | I71: =I69 -> -0.0021
E73: Pre-operational notional gearing | G73: % | I73: 0.4061
E74: Operational notional gearing | G74: % | I74: 0.5
E76: Equity transaction costs | G76: % | I76: 0.05
E77: Debt transaction costs | G77: % | I77: 0.025
C79: Model operation
C80: Note: changes in these variables may require structural changes to the model.
E81: Year commencing | K81: =$I$84 -> 2009-04-01 | L81: =+K82+1 -> 2010-04-01 | M81: =+L82+1 -> 2011-04-01 | N81: =+M82+1 -> 2012-04-01 | O81: =+N82+1 -> 2013-04-01 | P81: =+O82+1 -> 2014-04-01 | Q81: =+P82+1 -> 2015-04-01 | R81: =+Q82+1 -> 2016-04-01 | S81: =+R82+1 -> 2017-04-01 | T81: =+S82+1 -> 2018-04-01 | U81: =+T82+1 -> 2019-04-01 | V81: =+U82+1 -> 2020-04-01 | W81: =+V82+1 -> 2021-04-01 | X81: =+W82+1 -> 2022-04-01 | Y81: =+X82+1 -> 2023-04-01 | Z81: =+Y82+1 -> 2024-04-01 | AA81: =+Z82+1 -> 2025-04-01 | AB81: =+AA82+1 -> 2026-04-01 | AC81: =+AB82+1 -> 2027-04-01 | AD81: =+AC82+1 -> 2028-04-01 | AE81: =+AD82+1 -> 2029-04-01 | AF81: =+AE82+1 -> 2030-04-01 | AG81: =+AF82+1 -> 2031-04-01 | AH81: =+AG82+1 -> 2032-04-01 | AI81: =+AH82+1 -> 2033-04-01 | AJ81: =+AI82+1 -> 2034-04-01 | AK81: =+AJ82+1 -> 2035-04-01 | AL81: =+AK82+1 -> 2036-04-01 | AM81: =+AL82+1 -> 2037-04-01 | AN81: =+AM82+1 -> 2038-04-01 | AO81: =+AN82+1 -> 2039-04-01 | AP81: =+AO82+1 -> 2040-04-01 | AQ81: =+AP82+1 -> 2041-04-01 | AR81: =+AQ82+1 -> 2042-04-01 | AS81: =+AR82+1 -> 2043-04-01 | AT81: =+AS82+1 -> 2044-04-01 | AU81: =+AT82+1 -> 2045-04-01 | AV81: =+AU82+1 -> 2046-04-01 | AW81: =+AV82+1 -> 2047-04-01 | AX81: =+AW82+1 -> 2048-04-01
E82: Year ending | K82: =EOMONTH(K81,11) -> 2010-03-31 | L82: =DATE(YEAR(K82) + 1, MONTH(K82), DAY(K82)) -> 2011-03-31 | M82: =DATE(YEAR(L82) + 1, MONTH(L82), DAY(L82)) -> 2012-03-31 | N82: =DATE(YEAR(M82) + 1, MONTH(M82), DAY(M82)) -> 2013-03-31 | O82: =DATE(YEAR(N82) + 1, MONTH(N82), DAY(N82)) -> 2014-03-31 | P82: =DATE(YEAR(O82) + 1, MONTH(O82), DAY(O82)) -> 2015-03-31 | Q82: =DATE(YEAR(P82) + 1, MONTH(P82), DAY(P82)) -> 2016-03-31 | R82: =DATE(YEAR(Q82) + 1, MONTH(Q82), DAY(Q82)) -> 2017-03-31 | S82: =DATE(YEAR(R82) + 1, MONTH(R82), DAY(R82)) -> 2018-03-31 | T82: =DATE(YEAR(S82) + 1, MONTH(S82), DAY(S82)) -> 2019-03-31 | U82: =DATE(YEAR(T82) + 1, MONTH(T82), DAY(T82)) -> 2020-03-31 | V82: =DATE(YEAR(U82) + 1, MONTH(U82), DAY(U82)) -> 2021-03-31 | W82: =DATE(YEAR(V82) + 1, MONTH(V82), DAY(V82)) -> 2022-03-31 | X82: =DATE(YEAR(W82) + 1, MONTH(W82), DAY(W82)) -> 2023-03-31 | Y82: =DATE(YEAR(X82) + 1, MONTH(X82), DAY(X82)) -> 2024-03-31 | Z82: =DATE(YEAR(Y82) + 1, MONTH(Y82), DAY(Y82)) -> 2025-03-31 | AA82: =DATE(YEAR(Z82) + 1, MONTH(Z82), DAY(Z82)) -> 2026-03-31 | AB82: =DATE(YEAR(AA82) + 1, MONTH(AA82), DAY(AA82)) -> 2027-03-31 | AC82: =DATE(YEAR(AB82) + 1, MONTH(AB82), DAY(AB82)) -> 2028-03-31 | AD82: =DATE(YEAR(AC82) + 1, MONTH(AC82), DAY(AC82)) -> 2029-03-31 | AE82: =DATE(YEAR(AD82) + 1, MONTH(AD82), DAY(AD82)) -> 2030-03-31 | AF82: =DATE(YEAR(AE82) + 1, MONTH(AE82), DAY(AE82)) -> 2031-03-31 | AG82: =DATE(YEAR(AF82) + 1, MONTH(AF82), DAY(AF82)) -> 2032-03-31 | AH82: =DATE(YEAR(AG82) + 1, MONTH(AG82), DAY(AG82)) -> 2033-03-31 | AI82: =DATE(YEAR(AH82) + 1, MONTH(AH82), DAY(AH82)) -> 2034-03-31 | AJ82: =DATE(YEAR(AI82) + 1, MONTH(AI82), DAY(AI82)) -> 2035-03-31 | AK82: =DATE(YEAR(AJ82) + 1, MONTH(AJ82), DAY(AJ82)) -> 2036-03-31 | AL82: =DATE(YEAR(AK82) + 1, MONTH(AK82), DAY(AK82)) -> 2037-03-31 | AM82: =DATE(YEAR(AL82) + 1, MONTH(AL82), DAY(AL82)) -> 2038-03-31 | AN82: =DATE(YEAR(AM82) + 1, MONTH(AM82), DAY(AM82)) -> 2039-03-31 | AO82: =DATE(YEAR(AN82) + 1, MONTH(AN82), DAY(AN82)) -> 2040-03-31 | AP82: =DATE(YEAR(AO82) + 1, MONTH(AO82), DAY(AO82)) -> 2041-03-31 | AQ82: =DATE(YEAR(AP82) + 1, MONTH(AP82), DAY(AP82)) -> 2042-03-31 | AR82: =DATE(YEAR(AQ82) + 1, MONTH(AQ82), DAY(AQ82)) -> 2043-03-31 | AS82: =DATE(YEAR(AR82) + 1, MONTH(AR82), DAY(AR82)) -> 2044-03-31 | AT82: =DATE(YEAR(AS82) + 1, MONTH(AS82), DAY(AS82)) -> 2045-03-31 | AU82: =DATE(YEAR(AT82) + 1, MONTH(AT82), DAY(AT82)) -> 2046-03-31 | AV82: =DATE(YEAR(AU82) + 1, MONTH(AU82), DAY(AU82)) -> 2047-03-31 | AW82: =DATE(YEAR(AV82) + 1, MONTH(AV82), DAY(AV82)) -> 2048-03-31 | AX82: =DATE(YEAR(AW82) + 1, MONTH(AW82), DAY(AW82)) -> 2049-03-31
E84: Model start date | G84: date | I84: 2009-04-01
E85: Regime start date | G85: date | I85: 2021-01-01
E86: End date for IDC | G86: date | I86: 2021-01-21
E87: Start of operations | G87: date | I87: 2021-01-22
E88: Regime end date | G88: date | I88: =DATE(YEAR($I$85)+I89,MONTH($I$85),DAY($I$85))-1 -> 2045-12-31
E89: Number of operational years | G89: full years | I89: 25
E91: Days in year | G91: days | K91: =K$82-K$81+1 -> 365 | L91: 365 | M91: =M$82-M$81+1 -> 366 | N91: =N$82-N$81+1 -> 365 | O91: 365 | P91: 365 | Q91: 366 | R91: 365 | S91: 365 | T91: 365 | U91: 366 | V91: 365 | W91: 365 | X91: 365 | Y91: 366 | Z91: 365 | AA91: 365 | AB91: 365 | AC91: 366 | AD91: 365 | AE91: 365 | AF91: 365 | AG91: 366 | AH91: 365 | AI91: 365 | AJ91: 365 | AK91: 366 | AL91: 365 | AM91: 365 | AN91: 365 | AO91: 366 | AP91: 365 | AQ91: 365 | AR91: 365 | AS91: 366 | AT91: 365 | AU91: 365 | AV91: 365 | AW91: 366 | AX91: 365
E92: IDC flag | G92: flag | K92: =IF($I$86>=K$82,1,IF($I$86>=K$81,($I$86-K$81+1)/K$91,0)) -> 1 | L92: 1 | M92: 1 | N92: 1 | O92: 1 | P92: 1 | Q92: 1 | R92: 1 | S92: 1 | T92: 1 | U92: 1 | V92: 0.8109589041 | W92: 0 | X92: 0 | Y92: 0 | Z92: 0 | AA92: 0 | AB92: 0 | AC92: 0 | AD92: 0 | AE92: 0 | AF92: 0 | AG92: 0 | AH92: 0 | AI92: 0 | AJ92: 0 | AK92: 0 | AL92: 0 | AM92: 0 | AN92: 0 | AO92: 0 | AP92: 0 | AQ92: 0 | AR92: 0 | AS92: 0 | AT92: 0 | AU92: 0 | AV92: 0 | AW92: 0 | AX92: 0
E93: Post-IDC and pre-operations flag | G93: flag | K93: =IF(OR(K92=1,K94=1),0,IF($I$87<K81,0,IF($I$87<K82,($I$87-(MAX($I$86+1,K81)))/K91,MIN(1,(K82-$I$86)/K91)))) -> 0 | L93: =IF(OR(L92=1,L94=1),0,IF($I$87<L81,0,IF($I$87<L82,($I$87-(MAX($I$86+1,L81)))/L91,MIN(1,(L82-$I$86)/L91)))) -> 0 | M93: 0 | N93: 0 | O93: 0 | P93: 0 | Q93: 0 | R93: 0 | S93: 0 | T93: 0 | U93: 0 | V93: 0 | W93: 0 | X93: 0 | Y93: 0 | Z93: 0 | AA93: 0 | AB93: 0 | AC93: 0 | AD93: 0 | AE93: 0 | AF93: 0 | AG93: 0 | AH93: 0 | AI93: 0 | AJ93: 0 | AK93: 0 | AL93: 0 | AM93: 0 | AN93: 0 | AO93: 0 | AP93: 0 | AQ93: 0 | AR93: 0 | AS93: 0 | AT93: 0 | AU93: 0 | AV93: 0 | AW93: 0 | AX93: 0
E94: Operations flag | G94: flag | K94: =IF(OR($I$87>K$82,$I$88<K$81),0,IF($I$87>=K$81,(K$82-$I$87+1)/K$91,IF($I$88<=K$82,($I$88-K$81+1)/K$91,1))) -> 0 | L94: 0 | M94: 0 | N94: 0 | O94: 0 | P94: 0 | Q94: 0 | R94: 0 | S94: 0 | T94: 0 | U94: 0 | V94: 0.1890410959 | W94: 1 | X94: 1 | Y94: 1 | Z94: 1 | AA94: 1 | AB94: 1 | AC94: 1 | AD94: 1 | AE94: 1 | AF94: 1 | AG94: 1 | AH94: 1 | AI94: 1 | AJ94: 1 | AK94: 1 | AL94: 1 | AM94: 1 | AN94: 1 | AO94: 1 | AP94: 1 | AQ94: 1 | AR94: 1 | AS94: 1 | AT94: 1 | AU94: 0.7534246575 | AV94: 0 | AW94: 0 | AX94: 0
E95: Transfer construction to operations flag | G95: flag | H95: ` | K95: =IF(AND(SUM(K34:K36)<>0,SUM(L34:$AX36)=0),1,0) -> 0 | L95: =IF(AND(SUM(L34:L36)<>0,SUM(M34:$AX36)=0),1,0) -> 0 | M95: =IF(AND(SUM(M34:M36)<>0,SUM(N34:$AX36)=0),1,0) -> 0 | N95: =IF(AND(SUM(N34:N36)<>0,SUM(O34:$AX36)=0),1,0) -> 0 | O95: =IF(AND(SUM(O34:O36)<>0,SUM(P34:$AX36)=0),1,0) -> 0 | P95: =IF(AND(SUM(P34:P36)<>0,SUM(Q34:$AX36)=0),1,0) -> 0 | Q95: =IF(AND(SUM(Q34:Q36)<>0,SUM(R34:$AX36)=0),1,0) -> 0 | R95: =IF(AND(SUM(R34:R36)<>0,SUM(S34:$AX36)=0),1,0) -> 0 | S95: =IF(AND(SUM(S34:S36)<>0,SUM(T34:$AX36)=0),1,0) -> 0 | T95: =IF(AND(SUM(T34:T36)<>0,SUM(U34:$AX36)=0),1,0) -> 0 | U95: =IF(AND(SUM(U34:U36)<>0,SUM(V34:$AX36)=0),1,0) -> 0 | V95: =IF(AND(SUM(V34:V36)<>0,SUM(W34:$AX36)=0),1,0) -> 0 | W95: =IF(AND(SUM(W34:W36)<>0,SUM(X34:$AX36)=0),1,0) -> 1 | X95: =IF(AND(SUM(X34:X36)<>0,SUM(Y34:$AX36)=0),1,0) -> 0 | Y95: =IF(AND(SUM(Y34:Y36)<>0,SUM(Z34:$AX36)=0),1,0) -> 0 | Z95: =IF(AND(SUM(Z34:Z36)<>0,SUM(AA34:$AX36)=0),1,0) -> 0 | AA95: =IF(AND(SUM(AA34:AA36)<>0,SUM(AB34:$AX36)=0),1,0) -> 0 | AB95: =IF(AND(SUM(AB34:AB36)<>0,SUM(AC34:$AX36)=0),1,0) -> 0 | AC95: =IF(AND(SUM(AC34:AC36)<>0,SUM(AD34:$AX36)=0),1,0) -> 0 | AD95: =IF(AND(SUM(AD34:AD36)<>0,SUM(AE34:$AX36)=0),1,0) -> 0 | AE95: =IF(AND(SUM(AE34:AE36)<>0,SUM(AF34:$AX36)=0),1,0) -> 0 | AF95: =IF(AND(SUM(AF34:AF36)<>0,SUM(AG34:$AX36)=0),1,0) -> 0 | AG95: =IF(AND(SUM(AG34:AG36)<>0,SUM(AH34:$AX36)=0),1,0) -> 0 | AH95: =IF(AND(SUM(AH34:AH36)<>0,SUM(AI34:$AX36)=0),1,0) -> 0 | AI95: =IF(AND(SUM(AI34:AI36)<>0,SUM(AJ34:$AX36)=0),1,0) -> 0 | AJ95: =IF(AND(SUM(AJ34:AJ36)<>0,SUM(AK34:$AX36)=0),1,0) -> 0 | AK95: =IF(AND(SUM(AK34:AK36)<>0,SUM(AL34:$AX36)=0),1,0) -> 0 | AL95: =IF(AND(SUM(AL34:AL36)<>0,SUM(AM34:$AX36)=0),1,0) -> 0 | AM95: =IF(AND(SUM(AM34:AM36)<>0,SUM(AN34:$AX36)=0),1,0) -> 0 | AN95: =IF(AND(SUM(AN34:AN36)<>0,SUM(AO34:$AX36)=0),1,0) -> 0 | AO95: =IF(AND(SUM(AO34:AO36)<>0,SUM(AP34:$AX36)=0),1,0) -> 0 | AP95: =IF(AND(SUM(AP34:AP36)<>0,SUM(AQ34:$AX36)=0),1,0) -> 0 | AQ95: =IF(AND(SUM(AQ34:AQ36)<>0,SUM(AR34:$AX36)=0),1,0) -> 0 | AR95: =IF(AND(SUM(AR34:AR36)<>0,SUM(AS34:$AX36)=0),1,0) -> 0 | AS95: =IF(AND(SUM(AS34:AS36)<>0,SUM(AT34:$AX36)=0),1,0) -> 0 | AT95: =IF(AND(SUM(AT34:AT36)<>0,SUM(AU34:$AX36)=0),1,0) -> 0 | AU95: =IF(AND(SUM(AU34:AU36)<>0,SUM(AV34:$AX36)=0),1,0) -> 0 | AV95: =IF(AND(SUM(AV34:AV36)<>0,SUM(AW34:$AX36)=0),1,0) -> 0 | AW95: =IF(AND(SUM(AW34:AW36)<>0,SUM(AX34:$AX36)=0),1,0) -> 0 | AX95: =IF(AND(SUM(AX34:AX36)<>0,SUM($AX34:AZ36)=0),1,0) -> 0
E96: Initial transaction costs flag | G96: flag | K96: =IF(AND(SUM($J35:K35)=0,L35>0),1,0) -> 0 | L96: =IF(AND(SUM($J35:L35)=0,M35>0),1,0) -> 0 | M96: =IF(AND(SUM($J35:M35)=0,N35>0),1,0) -> 0 | N96: =IF(AND(SUM($J35:N35)=0,O35>0),1,0) -> 0 | O96: =IF(AND(SUM($J35:O35)=0,P35>0),1,0) -> 0 | P96: =IF(AND(SUM($J35:P35)=0,Q35>0),1,0) -> 0 | Q96: =IF(AND(SUM($J35:Q35)=0,R35>0),1,0) -> 1 | R96: =IF(AND(SUM($J35:R35)=0,S35>0),1,0) -> 0 | S96: =IF(AND(SUM($J35:S35)=0,T35>0),1,0) -> 0 | T96: =IF(AND(SUM($J35:T35)=0,U35>0),1,0) -> 0 | U96: =IF(AND(SUM($J35:U35)=0,V35>0),1,0) -> 0 | V96: =IF(AND(SUM($J35:V35)=0,W35>0),1,0) -> 0 | W96: =IF(AND(SUM($J35:W35)=0,X35>0),1,0) -> 0 | X96: =IF(AND(SUM($J35:X35)=0,Y35>0),1,0) -> 0 | Y96: =IF(AND(SUM($J35:Y35)=0,Z35>0),1,0) -> 0 | Z96: =IF(AND(SUM($J35:Z35)=0,AA35>0),1,0) -> 0 | AA96: =IF(AND(SUM($J35:AA35)=0,AB35>0),1,0) -> 0 | AB96: =IF(AND(SUM($J35:AB35)=0,AC35>0),1,0) -> 0 | AC96: =IF(AND(SUM($J35:AC35)=0,AD35>0),1,0) -> 0 | AD96: =IF(AND(SUM($J35:AD35)=0,AE35>0),1,0) -> 0 | AE96: =IF(AND(SUM($J35:AE35)=0,AF35>0),1,0) -> 0 | AF96: =IF(AND(SUM($J35:AF35)=0,AG35>0),1,0) -> 0 | AG96: =IF(AND(SUM($J35:AG35)=0,AH35>0),1,0) -> 0 | AH96: =IF(AND(SUM($J35:AH35)=0,AI35>0),1,0) -> 0 | AI96: =IF(AND(SUM($J35:AI35)=0,AJ35>0),1,0) -> 0 | AJ96: =IF(AND(SUM($J35:AJ35)=0,AK35>0),1,0) -> 0 | AK96: =IF(AND(SUM($J35:AK35)=0,AL35>0),1,0) -> 0 | AL96: =IF(AND(SUM($J35:AL35)=0,AM35>0),1,0) -> 0 | AM96: =IF(AND(SUM($J35:AM35)=0,AN35>0),1,0) -> 0 | AN96: =IF(AND(SUM($J35:AN35)=0,AO35>0),1,0) -> 0 | AO96: =IF(AND(SUM($J35:AO35)=0,AP35>0),1,0) -> 0 | AP96: =IF(AND(SUM($J35:AP35)=0,AQ35>0),1,0) -> 0 | AQ96: =IF(AND(SUM($J35:AQ35)=0,AR35>0),1,0) -> 0 | AR96: =IF(AND(SUM($J35:AR35)=0,AS35>0),1,0) -> 0 | AS96: =IF(AND(SUM($J35:AS35)=0,AT35>0),1,0) -> 0 | AT96: =IF(AND(SUM($J35:AT35)=0,AU35>0),1,0) -> 0 | AU96: =IF(AND(SUM($J35:AU35)=0,AV35>0),1,0) -> 0 | AV96: =IF(AND(SUM($J35:AV35)=0,AW35>0),1,0) -> 0 | AW96: =IF(AND(SUM($J35:AW35)=0,AX35>0),1,0) -> 0 | AX96: =IF(AND(SUM($J35:AX35)=0,AZ35>0),1,0) -> 0
C98: Tax - Financial years
E100: Year commencing | K100: =K17 -> 2009-04-01 | L100: =+K101+1 -> 2010-04-01 | M100: =+L101+1 -> 2011-04-01 | N100: =+M101+1 -> 2012-04-01 | O100: 2013-04-01 | P100: 2014-04-01 | Q100: 2015-04-01 | R100: 2016-04-01 | S100: 2017-04-01 | T100: 2018-04-01 | U100: 2019-04-01 | V100: 2020-04-01 | W100: 2021-04-01 | X100: 2022-04-01 | Y100: 2023-04-01 | Z100: 2024-04-01 | AA100: 2025-04-01 | AB100: 2026-04-01 | AC100: 2027-04-01 | AD100: 2028-04-01 | AE100: 2029-04-01 | AF100: 2030-04-01 | AG100: 2031-04-01 | AH100: 2032-04-01 | AI100: 2033-04-01 | AJ100: 2034-04-01 | AK100: 2035-04-01 | AL100: 2036-04-01 | AM100: 2037-04-01 | AN100: 2038-04-01 | AO100: 2039-04-01 | AP100: 2040-04-01 | AQ100: 2041-04-01 | AR100: 2042-04-01 | AS100: 2043-04-01 | AT100: 2044-04-01 | AU100: 2045-04-01 | AV100: 2046-04-01 | AW100: 2047-04-01 | AX100: 2048-04-01
E101: Year ending | K101: =K18 -> 2010-03-31 | L101: =DATE(YEAR(K101) + 1, MONTH(K101), DAY(K101)) -> 2011-03-31 | M101: 2012-03-31 | N101: 2013-03-31 | O101: 2014-03-31 | P101: 2015-03-31 | Q101: 2016-03-31 | R101: 2017-03-31 | S101: 2018-03-31 | T101: 2019-03-31 | U101: 2020-03-31 | V101: 2021-03-31 | W101: 2022-03-31 | X101: 2023-03-31 | Y101: 2024-03-31 | Z101: 2025-03-31 | AA101: 2026-03-31 | AB101: 2027-03-31 | AC101: 2028-03-31 | AD101: 2029-03-31 | AE101: 2030-03-31 | AF101: 2031-03-31 | AG101: 2032-03-31 | AH101: 2033-03-31 | AI101: 2034-03-31 | AJ101: 2035-03-31 | AK101: 2036-03-31 | AL101: 2037-03-31 | AM101: 2038-03-31 | AN101: 2039-03-31 | AO101: 2040-03-31 | AP101: 2041-03-31 | AQ101: 2042-03-31 | AR101: 2043-03-31 | AS101: 2044-03-31 | AT101: 2045-03-31 | AU101: 2046-03-31 | AV101: 2047-03-31 | AW101: 2048-03-31 | AX101: 2049-03-31
E103: Long-term expected UK RPI inflation | G103: % | I103: 0.0324
E104: =E24 -> Base year average UK RPI inflation index value (CHAW) | G104: =G24 -> Jan 1987 = 100 | H104: =H24 -> UK RPI index 2016/17 | I104: =I24 -> 264.9916667
E106: =E28 -> 12-month average UK RPI inflation index value (CHAW) | G106: =G28 -> Jan 1987 = 100 | H106: =H28 -> UK RPI index t | K106: =K28 -> 215.7666667 | L106: =L28 -> 226.475 | M106: =M28 -> 237.3416667 | N106: 244.675 | O106: 251.7333333 | P106: 256.6666667 | Q106: 259.4333333 | R106: 264.9916667 | S106: 274.9083333 | T106: 283.3083333 | U106: 290.6416667 | V106: 294.1666667 | W106: 311.1583333 | X106: 321.2398633 | Y106: 331.6480349 | Z106: 342.3934312 | AA106: 353.4869784 | AB106: 364.9399565 | AC106: 376.7640111 | AD106: 388.9711651 | AE106: 401.5738308 | AF106: 414.5848229 | AG106: 428.0173712 | AH106: 441.885134 | AI106: 456.2022124 | AJ106: 470.983164 | AK106: 486.2430186 | AL106: 501.9972924 | AM106: 518.2620046 | AN106: 535.0536936 | AO106: 552.3894332 | AP106: 570.2868509 | AQ106: 588.7641449 | AR106: 607.8401031 | AS106: 627.5341225 | AT106: 647.8662281 | AU106: 668.8570938 | AV106: 690.5280637 | AW106: 712.9011729 | AX106: 735.999171
E107: UK RPI inflation uplift from 2016/17 term | G107: scalar | K107: =K106/$I$104 -> 0.8142394415 | L107: =L106/$I$104 -> 0.8546495173 | M107: 0.8956570961 | N107: 0.9233309224 | O107: 0.9499669801 | P107: 0.9685839177 | Q107: 0.9790244976 | R107: 1 | S107: 1.03742256 | T107: 1.06912167 | U107: 1.096795497 | V107: 1.110097802 | W107: 1.174219315 | X107: 1.212264021 | Y107: 1.251541375 | Z107: 1.292091316 | AA107: 1.333955074 | AB107: 1.377175219 | AC107: 1.421795696 | AD107: 1.467861876 | AE107: 1.515420601 | AF107: 1.564520229 | AG107: 1.615210684 | AH107: 1.66754351 | AI107: 1.72157192 | AJ107: 1.77735085 | AK107: 1.834937018 | AL107: 1.894388977 | AM107: 1.95576718 | AN107: 2.019134037 | AO107: 2.084553979 | AP107: 2.152093528 | AQ107: 2.221821359 | AR107: 2.293808371 | AS107: 2.368127762 | AT107: 2.444855101 | AU107: 2.524068407 | AV107: 2.605848223 | AW107: 2.690277705 | AX107: 2.777442703
C109: Tax - Operational years
E111: Operational Year | K111: Year 1 | L111: Year 2 | M111: Year 3 | N111: Year 4 | O111: Year 5 | P111: Year 6 | Q111: Year 7 | R111: Year 8 | S111: Year 9 | T111: Year 10 | U111: Year 11 | V111: Year 12 | W111: Year 13 | X111: Year 14 | Y111: Year 15 | Z111: Year 16 | AA111: Year 17 | AB111: Year 18 | AC111: Year 19 | AD111: Year 20 | AE111: Year 21 | AF111: Year 22 | AG111: Year 23 | AH111: Year 24 | AI111: Year 25
E113: Corporation tax rate | G113: % | K113: 0.19 | L113: 0.19 | M113: 0.19 | N113: 0.19 | O113: 0.19 | P113: 0.19 | Q113: 0.19 | R113: 0.19 | S113: 0.19 | T113: 0.19 | U113: 0.19 | V113: 0.19 | W113: 0.19 | X113: 0.19 | Y113: 0.19 | Z113: 0.19 | AA113: 0.19 | AB113: 0.19 | AC113: 0.19 | AD113: 0.19 | AE113: 0.19 | AF113: 0.19 | AG113: 0.19 | AH113: 0.19 | AI113: 0.19
E114: Capital allowance rate (declining balance) | G114: % | K114: 0.08 | L114: 0.08 | M114: 0.08 | N114: 0.08 | O114: 0.08 | P114: 0.08 | Q114: 0.08 | R114: 0.08 | S114: 0.08 | T114: 0.08 | U114: 0.08 | V114: 0.08 | W114: 0.08 | X114: 0.08 | Y114: 0.08 | Z114: 0.08 | AA114: 0.08 | AB114: 0.08 | AC114: 0.08 | AD114: 0.08 | AE114: 0.08 | AF114: 0.08 | AG114: 0.08 | AH114: 0.08 | AI114: 0.08
E116: =E103 -> Long-term expected UK RPI inflation | G116: % | I116: =I103 -> 0.0324
E117: Start of price base year | G117: date | I117: 2016-04-01
E118: End of price base year | G118: date | I118: =EOMONTH(I117,11) -> 2017-03-31
E119: UK RPI uplift from 2016/17 term to start of regime | G119: scalar | I119: =(1+$I$116)^((I85-AVERAGE(I117,I118))/365.25) -> 1.145296575
C121: Tax - Annuity
E123: Tax element of Cap and Floor annuity previously calculated and fixed | G123: choice | I123: No
B125: End of sheet

Sheet Data Sources
A1: Data Sources | H1: Licence | I1: Reference row in
E2: Parameter | G2: Units | H2: Terminology | I2: Inputs sheet | K2: Source | L2: Link
B4: Indexation, currency and base year price term
E6: =Inputs!E6 -> GB indexed portion of interconnector | G6: =Inputs!G6 -> choice % | I6: =ROW(Inputs!E6) -> 6 | K6: IFA2 licence - Special conditions - Schedule 1
E7: =Inputs!E9 -> Currency of cost inputs | G7: =Inputs!G9 -> choice | I7: =ROW(Inputs!E9) -> 9 | K7: Post Construction Review (PCR) decision
E8: =Inputs!E11 -> Base year price term | G8: =Inputs!G11 -> choice | I8: =ROW(Inputs!E11) -> 11 | K8: IFA2 licence - Special conditions - Schedule 1
B10: Variables set after financial close
C12: Actual values
E14: =Inputs!E20 -> Development costs | G14: =Inputs!G20 -> £m nominal | I14: =ROW(Inputs!E20) -> 20 | K14: Post Construction Review (PCR) decision
E15: =Inputs!E21 -> Capex | G15: =Inputs!G21 -> £m nominal | I15: =ROW(Inputs!E21) -> 21 | K15: Post Construction Review (PCR) decision
E16: =Inputs!E22 -> Spares | G16: =Inputs!G22 -> £m nominal | I16: =ROW(Inputs!E22) -> 22 | K16: Post Construction Review (PCR) decision
E18: =Inputs!E24 -> Base year average UK RPI inflation index value (CHAW) | G18: =Inputs!G24 -> Jan 1987 = 100 | H18: =Inputs!H24 -> UK RPI index 2016/17 | I18: =ROW(Inputs!E24) -> 24 | K18: Office for National Statistics | L18: RPI All Items Index: Jan 1987=100
E22: =Inputs!E28 -> 12-month average UK RPI inflation index value (CHAW) | G22: =Inputs!G28 -> Jan 1987 = 100 | H22: =Inputs!H28 -> UK RPI index t | I22: =ROW(Inputs!E28) -> 28 | K22: Office for National Statistics | L22: RPI All Items Index: Jan 1987=100
C24: Ex-ante allowances for the operational period
E26: =Inputs!E42 -> Replacement Capex | G26: =Inputs!G42 -> £m 19/20 prices | I26: =ROW(Inputs!E42) -> 42 | K26: Post Construction Review (PCR) decision
E27: =Inputs!E43 -> Decommissioning baseline | G27: =Inputs!G43 -> £m 19/20 prices | I27: =ROW(Inputs!E43) -> 43 | K27: Post Construction Review (PCR) decision
E28: =Inputs!E44 -> Controllable Opex | G28: =Inputs!G44 -> £m 19/20 prices | I28: =ROW(Inputs!E44) -> 44 | K28: Post Construction Review (PCR) decision
E29: =Inputs!E45 -> Non-controllable Opex baseline | G29: =Inputs!G45 -> £m 19/20 prices | I29: =ROW(Inputs!E45) -> 45 | K29: Post Construction Review (PCR) decision
E31: =Inputs!E51 -> 2019/20 average UK RPI inflation index value (CHAW) | G31: =Inputs!G51 -> Jan 1987 = 100 | I31: =ROW(Inputs!E51) -> 51 | K31: Office for National Statistics | L31: RPI All Items Index: Jan 1987=100
E32: =Inputs!E52 -> 0 | G32: =Inputs!G52 ->  | I32: =ROW(Inputs!E52) -> 52
E33: =Inputs!E53 -> 0 | G33: =Inputs!G53 ->  | I33: =ROW(Inputs!E53) -> 53
E35: =Inputs!E55 ->  | G35: =Inputs!G55 ->  | H35: =Inputs!H55 ->  | I35: =ROW(Inputs!E55) -> 55
B37: Variables set at financial close
C39: Finance
E41: =Inputs!E68 -> Cap return rate | G41: =Inputs!G68 -> real annual % | I41: =ROW(Inputs!E68) -> 68 | K41: IFA2 Cap and Floor Financial Model 1 Handbook (IFA2CFFM1H)
E42: =Inputs!E69 -> Floor return rate | G42: =Inputs!G69 -> real annual % | I42: =ROW(Inputs!E69) -> 69 | K42: IFA2 Cap and Floor Financial Model 1 Handbook (IFA2CFFM1H)
E43: =Inputs!E70 -> Interest during construction (IDC) rate | G43: =Inputs!G70 -> real annual % | I43: =ROW(Inputs!E70) -> 70 | K43: IFA2 Cap and Floor Financial Model 1 Handbook (IFA2CFFM1H)
E45: =Inputs!E73 -> Pre-operational notional gearing | G45: =Inputs!G73 -> % | I45: =ROW(Inputs!E73) -> 73 | K45: IFA2 Cap and Floor Financial Model 1 Handbook (IFA2CFFM1H)
E46: =Inputs!E74 -> Operational notional gearing | G46: =Inputs!G74 -> % | I46: =ROW(Inputs!E74) -> 74 | K46: IFA2 Cap and Floor Financial Model 1 Handbook (IFA2CFFM1H)
E48: =Inputs!E76 -> Equity transaction costs | G48: =Inputs!G76 -> % | I48: =ROW(Inputs!E76) -> 76 | K48: IFA2 Cap and Floor Financial Model 1 Handbook (IFA2CFFM1H)
E49: =Inputs!E77 -> Debt transaction costs | G49: =Inputs!G77 -> % | I49: =ROW(Inputs!E77) -> 77 | K49: IFA2 Cap and Floor Financial Model 1 Handbook (IFA2CFFM1H)
C51: Model operation
E53: =Inputs!E85 -> Regime start date | G53: =Inputs!G85 -> date | I53: =ROW(Inputs!I85) -> 85 | K53: Post Construction Review (PCR) decision
E54: =Inputs!E86 -> End date for IDC | G54: =Inputs!G86 -> date | I54: =ROW(Inputs!I86) -> 86 | K54: Post Construction Review (PCR) decision
E55: =Inputs!E87 -> Start of operations | G55: =Inputs!G87 -> date | I55: =ROW(Inputs!I87) -> 87 | K55: Post Construction Review (PCR) decision
E56: =Inputs!E89 -> Number of operational years | G56: =Inputs!G89 -> full years | I56: =ROW(Inputs!I89) -> 89 | K56: IFA2 licence - Special conditions - Schedule 1
C58: Tax - Financial years
E60: =Inputs!E103 -> Long-term expected UK RPI inflation | G60: =Inputs!G103 -> % | I60: =ROW(Inputs!E103) -> 103 | K60: IFA2 Cap and Floor Financial Model 1 Handbook (IFA2CFFM1H)
C62: Tax - Operational years
E64: =Inputs!E113 -> Corporation tax rate | G64: =Inputs!G113 -> % | I64: =ROW(Inputs!E113) -> 113 | K64: IFA2 Cap and Floor Financial Model 1 Handbook (IFA2CFFM1H)
E65: =Inputs!E114 -> Capital allowance rate (declining balance) | G65: =Inputs!G114 -> % | I65: =ROW(Inputs!E114) -> 114 | K65: IFA2 Cap and Floor Financial Model 1 Handbook (IFA2CFFM1H)
E66: =Inputs!E117 -> Start of price base year | G66: =Inputs!G117 -> date | I66: =ROW(Inputs!E117) -> 117 | K66: IFA2 licence - Special conditions - Schedule 1
C68: Tax - Annuity
E70: =Inputs!E123 -> Tax element of Cap and Floor annuity previously calculated and fixed | G70: =Inputs!G123 -> choice | I70: =ROW(Inputs!E123) -> 123 | K70: IFA2 Cap and Floor Financial Model 1 Handbook (IFA2CFFM1H)
B72: End of sheet

Sheet Pre Op RAV
A1: Pre Op RAV | H1: Licence
E2: Parameter | G2: Units | H2: Terminology | I2: Constant | K2: Annual values
E3: Year commencing | K3: =Inputs!K17 -> 2009-04-01 | L3: =+K4+1 -> 2010-04-01 | M3: =+L4+1 -> 2011-04-01 | N3: =+M4+1 -> 2012-04-01 | O3: 2013-04-01 | P3: 2014-04-01 | Q3: 2015-04-01 | R3: 2016-04-01 | S3: 2017-04-01 | T3: 2018-04-01 | U3: 2019-04-01 | V3: 2020-04-01 | W3: 2021-04-01 | X3: 2022-04-01 | Y3: 2023-04-01 | Z3: 2024-04-01 | AA3: 2025-04-01 | AB3: 2026-04-01 | AC3: 2027-04-01 | AD3: 2028-04-01 | AE3: 2029-04-01 | AF3: 2030-04-01 | AG3: 2031-04-01 | AH3: 2032-04-01 | AI3: 2033-04-01 | AJ3: 2034-04-01 | AK3: 2035-04-01 | AL3: 2036-04-01 | AM3: 2037-04-01 | AN3: 2038-04-01 | AO3: 2039-04-01 | AP3: 2040-04-01 | AQ3: 2041-04-01 | AR3: 2042-04-01 | AS3: 2043-04-01 | AT3: 2044-04-01 | AU3: 2045-04-01 | AV3: 2046-04-01 | AW3: 2047-04-01 | AX3: 2048-04-01
E4: Year ending | K4: =Inputs!K18 -> 2010-03-31 | L4: =DATE(YEAR(K4) + 1, MONTH(K4), DAY(K4)) -> 2011-03-31 | M4: 2012-03-31 | N4: 2013-03-31 | O4: 2014-03-31 | P4: 2015-03-31 | Q4: 2016-03-31 | R4: 2017-03-31 | S4: 2018-03-31 | T4: 2019-03-31 | U4: 2020-03-31 | V4: 2021-03-31 | W4: 2022-03-31 | X4: 2023-03-31 | Y4: 2024-03-31 | Z4: 2025-03-31 | AA4: 2026-03-31 | AB4: 2027-03-31 | AC4: 2028-03-31 | AD4: 2029-03-31 | AE4: 2030-03-31 | AF4: 2031-03-31 | AG4: 2032-03-31 | AH4: 2033-03-31 | AI4: 2034-03-31 | AJ4: 2035-03-31 | AK4: 2036-03-31 | AL4: 2037-03-31 | AM4: 2038-03-31 | AN4: 2039-03-31 | AO4: 2040-03-31 | AP4: 2041-03-31 | AQ4: 2042-03-31 | AR4: 2043-03-31 | AS4: 2044-03-31 | AT4: 2045-03-31 | AU4: 2046-03-31 | AV4: 2047-03-31 | AW4: 2048-03-31 | AX4: 2049-03-31
B6: Flags
E8: IDC flag | G8: flag | K8: =Inputs!K92 -> 1 | L8: =Inputs!L92 -> 1 | M8: =Inputs!M92 -> 1 | N8: =Inputs!N92 -> 1 | O8: =Inputs!O92 -> 1 | P8: =Inputs!P92 -> 1 | Q8: =Inputs!Q92 -> 1 | R8: =Inputs!R92 -> 1 | S8: =Inputs!S92 -> 1 | T8: =Inputs!T92 -> 1 | U8: =Inputs!U92 -> 1 | V8: =Inputs!V92 -> 0.8109589041 | W8: =Inputs!W92 -> 0 | X8: =Inputs!X92 -> 0 | Y8: =Inputs!Y92 -> 0 | Z8: =Inputs!Z92 -> 0 | AA8: =Inputs!AA92 -> 0 | AB8: =Inputs!AB92 -> 0 | AC8: =Inputs!AC92 -> 0 | AD8: =Inputs!AD92 -> 0 | AE8: =Inputs!AE92 -> 0 | AF8: =Inputs!AF92 -> 0 | AG8: =Inputs!AG92 -> 0 | AH8: =Inputs!AH92 -> 0 | AI8: =Inputs!AI92 -> 0 | AJ8: =Inputs!AJ92 -> 0 | AK8: =Inputs!AK92 -> 0 | AL8: =Inputs!AL92 -> 0 | AM8: =Inputs!AM92 -> 0 | AN8: =Inputs!AN92 -> 0 | AO8: =Inputs!AO92 -> 0 | AP8: =Inputs!AP92 -> 0 | AQ8: =Inputs!AQ92 -> 0 | AR8: =Inputs!AR92 -> 0 | AS8: =Inputs!AS92 -> 0 | AT8: =Inputs!AT92 -> 0 | AU8: =Inputs!AU92 -> 0 | AV8: =Inputs!AV92 -> 0 | AW8: =Inputs!AW92 -> 0 | AX8: =Inputs!AX92 -> 0
E9: Post-IDC and pre-operations flag | G9: flag | K9: =Inputs!K93 -> 0 | L9: =Inputs!L93 -> 0 | M9: =Inputs!M93 -> 0 | N9: =Inputs!N93 -> 0 | O9: =Inputs!O93 -> 0 | P9: =Inputs!P93 -> 0 | Q9: =Inputs!Q93 -> 0 | R9: =Inputs!R93 -> 0 | S9: =Inputs!S93 -> 0 | T9: =Inputs!T93 -> 0 | U9: =Inputs!U93 -> 0 | V9: =Inputs!V93 -> 0 | W9: =Inputs!W93 -> 0 | X9: =Inputs!X93 -> 0 | Y9: =Inputs!Y93 -> 0 | Z9: =Inputs!Z93 -> 0 | AA9: =Inputs!AA93 -> 0 | AB9: =Inputs!AB93 -> 0 | AC9: =Inputs!AC93 -> 0 | AD9: =Inputs!AD93 -> 0 | AE9: =Inputs!AE93 -> 0 | AF9: =Inputs!AF93 -> 0 | AG9: =Inputs!AG93 -> 0 | AH9: =Inputs!AH93 -> 0 | AI9: =Inputs!AI93 -> 0 | AJ9: =Inputs!AJ93 -> 0 | AK9: =Inputs!AK93 -> 0 | AL9: =Inputs!AL93 -> 0 | AM9: =Inputs!AM93 -> 0 | AN9: =Inputs!AN93 -> 0 | AO9: =Inputs!AO93 -> 0 | AP9: =Inputs!AP93 -> 0 | AQ9: =Inputs!AQ93 -> 0 | AR9: =Inputs!AR93 -> 0 | AS9: =Inputs!AS93 -> 0 | AT9: =Inputs!AT93 -> 0 | AU9: =Inputs!AU93 -> 0 | AV9: =Inputs!AV93 -> 0 | AW9: =Inputs!AW93 -> 0 | AX9: =Inputs!AX93 -> 0
E10: Operations flag | G10: flag | K10: =Inputs!K94 -> 0 | L10: =Inputs!L94 -> 0 | M10: =Inputs!M94 -> 0 | N10: =Inputs!N94 -> 0 | O10: =Inputs!O94 -> 0 | P10: =Inputs!P94 -> 0 | Q10: =Inputs!Q94 -> 0 | R10: =Inputs!R94 -> 0 | S10: =Inputs!S94 -> 0 | T10: =Inputs!T94 -> 0 | U10: =Inputs!U94 -> 0 | V10: =Inputs!V94 -> 0.1890410959 | W10: =Inputs!W94 -> 1 | X10: =Inputs!X94 -> 1 | Y10: =Inputs!Y94 -> 1 | Z10: =Inputs!Z94 -> 1 | AA10: =Inputs!AA94 -> 1 | AB10: =Inputs!AB94 -> 1 | AC10: =Inputs!AC94 -> 1 | AD10: =Inputs!AD94 -> 1 | AE10: =Inputs!AE94 -> 1 | AF10: =Inputs!AF94 -> 1 | AG10: =Inputs!AG94 -> 1 | AH10: =Inputs!AH94 -> 1 | AI10: =Inputs!AI94 -> 1 | AJ10: =Inputs!AJ94 -> 1 | AK10: =Inputs!AK94 -> 1 | AL10: =Inputs!AL94 -> 1 | AM10: =Inputs!AM94 -> 1 | AN10: =Inputs!AN94 -> 1 | AO10: =Inputs!AO94 -> 1 | AP10: =Inputs!AP94 -> 1 | AQ10: =Inputs!AQ94 -> 1 | AR10: =Inputs!AR94 -> 1 | AS10: =Inputs!AS94 -> 1 | AT10: =Inputs!AT94 -> 1 | AU10: =Inputs!AU94 -> 0.7534246575 | AV10: =Inputs!AV94 -> 0 | AW10: =Inputs!AW94 -> 0 | AX10: =Inputs!AX94 -> 0
E11: Transfer construction to operations flag | G11: flag | K11: =Inputs!K95 -> 0 | L11: =Inputs!L95 -> 0 | M11: =Inputs!M95 -> 0 | N11: =Inputs!N95 -> 0 | O11: =Inputs!O95 -> 0 | P11: =Inputs!P95 -> 0 | Q11: =Inputs!Q95 -> 0 | R11: =Inputs!R95 -> 0 | S11: =Inputs!S95 -> 0 | T11: =Inputs!T95 -> 0 | U11: =Inputs!U95 -> 0 | V11: =Inputs!V95 -> 0 | W11: =Inputs!W95 -> 1 | X11: =Inputs!X95 -> 0 | Y11: =Inputs!Y95 -> 0 | Z11: =Inputs!Z95 -> 0 | AA11: =Inputs!AA95 -> 0 | AB11: =Inputs!AB95 -> 0 | AC11: =Inputs!AC95 -> 0 | AD11: =Inputs!AD95 -> 0 | AE11: =Inputs!AE95 -> 0 | AF11: =Inputs!AF95 -> 0 | AG11: =Inputs!AG95 -> 0 | AH11: =Inputs!AH95 -> 0 | AI11: =Inputs!AI95 -> 0 | AJ11: =Inputs!AJ95 -> 0 | AK11: =Inputs!AK95 -> 0 | AL11: =Inputs!AL95 -> 0 | AM11: =Inputs!AM95 -> 0 | AN11: =Inputs!AN95 -> 0 | AO11: =Inputs!AO95 -> 0 | AP11: =Inputs!AP95 -> 0 | AQ11: =Inputs!AQ95 -> 0 | AR11: =Inputs!AR95 -> 0 | AS11: =Inputs!AS95 -> 0 | AT11: =Inputs!AT95 -> 0 | AU11: =Inputs!AU95 -> 0 | AV11: =Inputs!AV95 -> 0 | AW11: =Inputs!AW95 -> 0 | AX11: =Inputs!AX95 -> 0
B13: RAV
C15: Pre-operational
E17: Opening pre-operational RAV (before transfers) | G17: =Inputs!$I$11 -> £m 16/17 prices | L17: =K24 -> 0 | M17: =L24 -> 0.0518527274 | N17: 0.3532872754 | O17: 1.164219061 | P17: 2.468991318 | Q17: 4.643980674 | R17: 8.988579019 | S17: 13.47979857 | T17: 71.23025143 | U17: 194.7673296 | V17: =U24 -> 320.4138396 | W17: 372.1247903 | X17: 0 | Y17: 0 | Z17: 0 | AA17: 0 | AB17: 0 | AC17: 0 | AD17: 0 | AE17: 0 | AF17: 0 | AG17: 0 | AH17: 0 | AI17: 0 | AJ17: 0 | AK17: 0 | AL17: 0 | AM17: 0 | AN17: 0 | AO17: 0 | AP17: 0 | AQ17: 0 | AR17: 0 | AS17: 0 | AT17: 0 | AU17: 0 | AV17: 0 | AW17: 0 | AX17: 0
E18: =Inputs!E34 -> Development costs | G18: =Inputs!$I$11 -> £m 16/17 prices | K18: =Inputs!K34 -> 0 | L18: =Inputs!L34 -> 0.05021335545 | M18: =Inputs!M34 -> 0.2885150144 | N18: =Inputs!N34 -> 0.7622004776 | O18: =Inputs!O34 -> 1.187420419 | P18: =Inputs!P34 -> 1.944837154 | Q18: =Inputs!Q34 -> 3.903681756 | R18: =Inputs!R34 -> 2.185818034 | S18: =Inputs!S34 -> 0 | T18: =Inputs!T34 -> 0 | U18: =Inputs!U34 -> 0 | V18: =Inputs!V34 -> 0 | W18: =Inputs!W34 -> 0 | X18: =Inputs!X34 -> 0 | Y18: =Inputs!Y34 -> 0 | Z18: =Inputs!Z34 -> 0 | AA18: =Inputs!AA34 -> 0 | AB18: =Inputs!AB34 -> 0 | AC18: =Inputs!AC34 -> 0 | AD18: =Inputs!AD34 -> 0 | AE18: =Inputs!AE34 -> 0 | AF18: =Inputs!AF34 -> 0 | AG18: =Inputs!AG34 -> 0 | AH18: =Inputs!AH34 -> 0 | AI18: =Inputs!AI34 -> 0 | AJ18: =Inputs!AJ34 -> 0 | AK18: =Inputs!AK34 -> 0 | AL18: =Inputs!AL34 -> 0 | AM18: =Inputs!AM34 -> 0 | AN18: =Inputs!AN34 -> 0 | AO18: =Inputs!AO34 -> 0 | AP18: =Inputs!AP34 -> 0 | AQ18: =Inputs!AQ34 -> 0 | AR18: =Inputs!AR34 -> 0 | AS18: =Inputs!AS34 -> 0 | AT18: =Inputs!AT34 -> 0 | AU18: =Inputs!AU34 -> 0 | AV18: =Inputs!AV34 -> 0 | AW18: =Inputs!AW34 -> 0 | AX18: =Inputs!AX34 -> 0
E19: =Inputs!E35 -> Capex | G19: =Inputs!$I$11 -> £m 16/17 prices | K19: =Inputs!K35 -> 0 | L19: =Inputs!L35 -> 0 | M19: =Inputs!M35 -> 0 | N19: =Inputs!N35 -> 0 | O19: =Inputs!O35 -> 0 | P19: =Inputs!P35 -> 0 | Q19: =Inputs!Q35 -> 0 | R19: =Inputs!R35 -> 1.57586067 | S19: =Inputs!S35 -> 54.85357267 | T19: =Inputs!T35 -> 114.3124295 | U19: =Inputs!U35 -> 106.7192905 | V19: =Inputs!V35 -> 32.98718271 | W19: =Inputs!W35 -> 10.08594061 | X19: =Inputs!X35 -> 0 | Y19: =Inputs!Y35 -> 0 | Z19: =Inputs!Z35 -> 0 | AA19: =Inputs!AA35 -> 0 | AB19: =Inputs!AB35 -> 0 | AC19: =Inputs!AC35 -> 0 | AD19: =Inputs!AD35 -> 0 | AE19: =Inputs!AE35 -> 0 | AF19: =Inputs!AF35 -> 0 | AG19: =Inputs!AG35 -> 0 | AH19: =Inputs!AH35 -> 0 | AI19: =Inputs!AI35 -> 0 | AJ19: =Inputs!AJ35 -> 0 | AK19: =Inputs!AK35 -> 0 | AL19: =Inputs!AL35 -> 0 | AM19: =Inputs!AM35 -> 0 | AN19: =Inputs!AN35 -> 0 | AO19: =Inputs!AO35 -> 0 | AP19: =Inputs!AP35 -> 0 | AQ19: =Inputs!AQ35 -> 0 | AR19: =Inputs!AR35 -> 0 | AS19: =Inputs!AS35 -> 0 | AT19: =Inputs!AT35 -> 0 | AU19: =Inputs!AU35 -> 0 | AV19: =Inputs!AV35 -> 0 | AW19: =Inputs!AW35 -> 0 | AX19: =Inputs!AX35 -> 0
E20: =Inputs!E36 -> Spares | G20: =Inputs!$I$11 -> £m 16/17 prices | K20: =Inputs!K36 -> 0 | L20: =Inputs!L36 -> 0 | M20: =Inputs!M36 -> 0 | N20: =Inputs!N36 -> 0 | O20: =Inputs!O36 -> 0 | P20: =Inputs!P36 -> 0 | Q20: =Inputs!Q36 -> 0 | R20: =Inputs!R36 -> 0 | S20: =Inputs!S36 -> 0.1899266991 | T20: =Inputs!T36 -> 0.6628783671 | U20: =Inputs!U36 -> 2.223642138 | V20: =Inputs!V36 -> 0.4145605528 | W20: =Inputs!W36 -> 1.244436614 | X20: =Inputs!X36 -> 0 | Y20: =Inputs!Y36 -> 0 | Z20: =Inputs!Z36 -> 0 | AA20: =Inputs!AA36 -> 0 | AB20: =Inputs!AB36 -> 0 | AC20: =Inputs!AC36 -> 0 | AD20: =Inputs!AD36 -> 0 | AE20: =Inputs!AE36 -> 0 | AF20: =Inputs!AF36 -> 0 | AG20: =Inputs!AG36 -> 0 | AH20: =Inputs!AH36 -> 0 | AI20: =Inputs!AI36 -> 0 | AJ20: =Inputs!AJ36 -> 0 | AK20: =Inputs!AK36 -> 0 | AL20: =Inputs!AL36 -> 0 | AM20: =Inputs!AM36 -> 0 | AN20: =Inputs!AN36 -> 0 | AO20: =Inputs!AO36 -> 0 | AP20: =Inputs!AP36 -> 0 | AQ20: =Inputs!AQ36 -> 0 | AR20: =Inputs!AR36 -> 0 | AS20: =Inputs!AS36 -> 0 | AT20: =Inputs!AT36 -> 0 | AU20: =Inputs!AU36 -> 0 | AV20: =Inputs!AV36 -> 0 | AW20: =Inputs!AW36 -> 0 | AX20: =Inputs!AX36 -> 0
E21: =Finance!E24 -> Capitalised interest during construction | G21: =Inputs!$I$11 -> £m 16/17 prices | K21: =Finance!K24 -> 0 | L21: =Finance!L24 -> 0.001639371943 | M21: =Finance!M24 -> 0.01291953357 | N21: =Finance!N24 -> 0.04873130813 | O21: =Finance!O24 -> 0.1173518378 | P21: =Finance!P24 -> 0.230152202 | Q21: =Finance!Q24 -> 0.4409165884 | R21: =Finance!R24 -> 0.7295408432 | S21: =Finance!S24 -> 2.706953493 | T21: =Finance!T24 -> 8.561770283 | U21: =Finance!U24 -> 16.70357731 | V21: =Finance!V24 -> 18.30920748 | W21: =Finance!W24 -> 0 | X21: =Finance!X24 -> 0 | Y21: =Finance!Y24 -> 0 | Z21: =Finance!Z24 -> 0 | AA21: =Finance!AA24 -> 0 | AB21: =Finance!AB24 -> 0 | AC21: =Finance!AC24 -> 0 | AD21: =Finance!AD24 -> 0 | AE21: =Finance!AE24 -> 0 | AF21: =Finance!AF24 -> 0 | AG21: =Finance!AG24 -> 0 | AH21: =Finance!AH24 -> 0 | AI21: =Finance!AI24 -> 0 | AJ21: =Finance!AJ24 -> 0 | AK21: =Finance!AK24 -> 0 | AL21: =Finance!AL24 -> 0 | AM21: =Finance!AM24 -> 0 | AN21: =Finance!AN24 -> 0 | AO21: =Finance!AO24 -> 0 | AP21: =Finance!AP24 -> 0 | AQ21: =Finance!AQ24 -> 0 | AR21: =Finance!AR24 -> 0 | AS21: =Finance!AS24 -> 0 | AT21: =Finance!AT24 -> 0 | AU21: =Finance!AU24 -> 0 | AV21: =Finance!AV24 -> 0 | AW21: =Finance!AW24 -> 0 | AX21: =Finance!AX24 -> 0
E22: Closing pre-operational RAV (after IDC) | G22: =Inputs!$I$11 -> £m 16/17 prices | K22: =SUM(K17:K21) -> 0 | L22: 0.0518527274 | M22: 0.3532872754 | N22: 1.164219061 | O22: 2.468991318 | P22: 4.643980674 | Q22: 8.988579019 | R22: 13.47979857 | S22: 71.23025143 | T22: 194.7673296 | U22: 320.4138396 | V22: =SUM(V17:V21) -> 372.1247903 | W22: 383.4551676 | X22: 0 | Y22: 0 | Z22: 0 | AA22: 0 | AB22: 0 | AC22: 0 | AD22: 0 | AE22: 0 | AF22: 0 | AG22: 0 | AH22: 0 | AI22: 0 | AJ22: 0 | AK22: 0 | AL22: 0 | AM22: 0 | AN22: 0 | AO22: 0 | AP22: 0 | AQ22: 0 | AR22: 0 | AS22: 0 | AT22: 0 | AU22: 0 | AV22: 0 | AW22: 0 | AX22: 0
E23: Pre-operational RAV transfers | G23: =Inputs!$I$11 -> £m 16/17 prices | K23: =-K22*K11 -> 0 | L23: 0 | M23: 0 | N23: 0 | O23: 0 | P23: 0 | Q23: 0 | R23: 0 | S23: 0 | T23: 0 | U23: 0 | V23: =-V22*V11 -> 0 | W23: =-W22*W11 -> -383.4551676 | X23: 0 | Y23: 0 | Z23: 0 | AA23: 0 | AB23: 0 | AC23: 0 | AD23: 0 | AE23: 0 | AF23: 0 | AG23: 0 | AH23: 0 | AI23: 0 | AJ23: 0 | AK23: 0 | AL23: 0 | AM23: 0 | AN23: 0 | AO23: 0 | AP23: 0 | AQ23: 0 | AR23: 0 | AS23: 0 | AT23: 0 | AU23: 0 | AV23: 0 | AW23: 0 | AX23: 0
E24: Closing pre-operational RAV (after IDC) - adjusted for RAV transfers | G24: =Inputs!$I$11 -> £m 16/17 prices | K24: =SUM(K22:K23) -> 0 | L24: 0.0518527274 | M24: 0.3532872754 | N24: 1.164219061 | O24: 2.468991318 | P24: 4.643980674 | Q24: 8.988579019 | R24: 13.47979857 | S24: 71.23025143 | T24: 194.7673296 | U24: =SUM(U22:U23) -> 320.4138396 | V24: =SUM(V22:V23) -> 372.1247903 | W24: 0 | X24: 0 | Y24: 0 | Z24: 0 | AA24: 0 | AB24: 0 | AC24: 0 | AD24: 0 | AE24: 0 | AF24: 0 | AG24: 0 | AH24: 0 | AI24: 0 | AJ24: 0 | AK24: 0 | AL24: 0 | AM24: 0 | AN24: 0 | AO24: 0 | AP24: 0 | AQ24: 0 | AR24: 0 | AS24: 0 | AT24: 0 | AU24: 0 | AV24: 0 | AW24: 0 | AX24: 0
B26: End of sheet

Sheet Finance
A1: Finance | H1: Licence
E2: Parameter | G2: Units | H2: Terminology | I2: Constant | K2: Annual values
E3: Year commencing | K3: =Inputs!K17 -> 2009-04-01 | L3: =+K4+1 -> 2010-04-01 | M3: 2011-04-01 | N3: 2012-04-01 | O3: 2013-04-01 | P3: 2014-04-01 | Q3: 2015-04-01 | R3: 2016-04-01 | S3: 2017-04-01 | T3: 2018-04-01 | U3: 2019-04-01 | V3: 2020-04-01 | W3: 2021-04-01 | X3: 2022-04-01 | Y3: 2023-04-01 | Z3: 2024-04-01 | AA3: 2025-04-01 | AB3: 2026-04-01 | AC3: 2027-04-01 | AD3: 2028-04-01 | AE3: 2029-04-01 | AF3: 2030-04-01 | AG3: 2031-04-01 | AH3: 2032-04-01 | AI3: 2033-04-01 | AJ3: 2034-04-01 | AK3: 2035-04-01 | AL3: 2036-04-01 | AM3: 2037-04-01 | AN3: 2038-04-01 | AO3: 2039-04-01 | AP3: 2040-04-01 | AQ3: 2041-04-01 | AR3: 2042-04-01 | AS3: 2043-04-01 | AT3: 2044-04-01 | AU3: =+AT4+1 -> 2045-04-01 | AV3: =+AU4+1 -> 2046-04-01 | AW3: =+AV4+1 -> 2047-04-01 | AX3: =+AW4+1 -> 2048-04-01
E4: Year ending | K4: =Inputs!K18 -> 2010-03-31 | L4: =DATE(YEAR(K4) + 1, MONTH(K4), DAY(K4)) -> 2011-03-31 | M4: 2012-03-31 | N4: 2013-03-31 | O4: 2014-03-31 | P4: 2015-03-31 | Q4: 2016-03-31 | R4: 2017-03-31 | S4: 2018-03-31 | T4: 2019-03-31 | U4: 2020-03-31 | V4: 2021-03-31 | W4: 2022-03-31 | X4: 2023-03-31 | Y4: 2024-03-31 | Z4: 2025-03-31 | AA4: 2026-03-31 | AB4: 2027-03-31 | AC4: 2028-03-31 | AD4: 2029-03-31 | AE4: 2030-03-31 | AF4: 2031-03-31 | AG4: 2032-03-31 | AH4: 2033-03-31 | AI4: 2034-03-31 | AJ4: 2035-03-31 | AK4: 2036-03-31 | AL4: 2037-03-31 | AM4: 2038-03-31 | AN4: 2039-03-31 | AO4: 2040-03-31 | AP4: 2041-03-31 | AQ4: 2042-03-31 | AR4: 2043-03-31 | AS4: 2044-03-31 | AT4: 2045-03-31 | AU4: =DATE(YEAR(AT4) + 1, MONTH(AT4), DAY(AT4)) -> 2046-03-31 | AV4: =DATE(YEAR(AU4) + 1, MONTH(AU4), DAY(AU4)) -> 2047-03-31 | AW4: =DATE(YEAR(AV4) + 1, MONTH(AV4), DAY(AV4)) -> 2048-03-31 | AX4: =DATE(YEAR(AW4) + 1, MONTH(AW4), DAY(AW4)) -> 2049-03-31
B6: Flags
E8: IDC flag | G8: flag | K8: =Inputs!K92 -> 1 | L8: =Inputs!L92 -> 1 | M8: =Inputs!M92 -> 1 | N8: =Inputs!N92 -> 1 | O8: =Inputs!O92 -> 1 | P8: =Inputs!P92 -> 1 | Q8: =Inputs!Q92 -> 1 | R8: =Inputs!R92 -> 1 | S8: =Inputs!S92 -> 1 | T8: =Inputs!T92 -> 1 | U8: =Inputs!U92 -> 1 | V8: =Inputs!V92 -> 0.8109589041 | W8: =Inputs!W92 -> 0 | X8: =Inputs!X92 -> 0 | Y8: =Inputs!Y92 -> 0 | Z8: =Inputs!Z92 -> 0 | AA8: =Inputs!AA92 -> 0 | AB8: =Inputs!AB92 -> 0 | AC8: =Inputs!AC92 -> 0 | AD8: =Inputs!AD92 -> 0 | AE8: =Inputs!AE92 -> 0 | AF8: =Inputs!AF92 -> 0 | AG8: =Inputs!AG92 -> 0 | AH8: =Inputs!AH92 -> 0 | AI8: =Inputs!AI92 -> 0 | AJ8: =Inputs!AJ92 -> 0 | AK8: =Inputs!AK92 -> 0 | AL8: =Inputs!AL92 -> 0 | AM8: =Inputs!AM92 -> 0 | AN8: =Inputs!AN92 -> 0 | AO8: =Inputs!AO92 -> 0 | AP8: =Inputs!AP92 -> 0 | AQ8: =Inputs!AQ92 -> 0 | AR8: =Inputs!AR92 -> 0 | AS8: =Inputs!AS92 -> 0 | AT8: =Inputs!AT92 -> 0 | AU8: =Inputs!AU92 -> 0 | AV8: =Inputs!AV92 -> 0 | AW8: =Inputs!AW92 -> 0 | AX8: =Inputs!AX92 -> 0
E9: Post-IDC and pre-operations flag | G9: flag | K9: =Inputs!K93 -> 0 | L9: =Inputs!L93 -> 0 | M9: =Inputs!M93 -> 0 | N9: =Inputs!N93 -> 0 | O9: =Inputs!O93 -> 0 | P9: =Inputs!P93 -> 0 | Q9: =Inputs!Q93 -> 0 | R9: =Inputs!R93 -> 0 | S9: =Inputs!S93 -> 0 | T9: =Inputs!T93 -> 0 | U9: =Inputs!U93 -> 0 | V9: =Inputs!V93 -> 0 | W9: =Inputs!W93 -> 0 | X9: =Inputs!X93 -> 0 | Y9: =Inputs!Y93 -> 0 | Z9: =Inputs!Z93 -> 0 | AA9: =Inputs!AA93 -> 0 | AB9: =Inputs!AB93 -> 0 | AC9: =Inputs!AC93 -> 0 | AD9: =Inputs!AD93 -> 0 | AE9: =Inputs!AE93 -> 0 | AF9: =Inputs!AF93 -> 0 | AG9: =Inputs!AG93 -> 0 | AH9: =Inputs!AH93 -> 0 | AI9: =Inputs!AI93 -> 0 | AJ9: =Inputs!AJ93 -> 0 | AK9: =Inputs!AK93 -> 0 | AL9: =Inputs!AL93 -> 0 | AM9: =Inputs!AM93 -> 0 | AN9: =Inputs!AN93 -> 0 | AO9: =Inputs!AO93 -> 0 | AP9: =Inputs!AP93 -> 0 | AQ9: =Inputs!AQ93 -> 0 | AR9: =Inputs!AR93 -> 0 | AS9: =Inputs!AS93 -> 0 | AT9: =Inputs!AT93 -> 0 | AU9: =Inputs!AU93 -> 0 | AV9: =Inputs!AV93 -> 0 | AW9: =Inputs!AW93 -> 0 | AX9: =Inputs!AX93 -> 0
E10: Operations flag | G10: flag | K10: =Inputs!K94 -> 0 | L10: =Inputs!L94 -> 0 | M10: =Inputs!M94 -> 0 | N10: =Inputs!N94 -> 0 | O10: =Inputs!O94 -> 0 | P10: =Inputs!P94 -> 0 | Q10: =Inputs!Q94 -> 0 | R10: =Inputs!R94 -> 0 | S10: =Inputs!S94 -> 0 | T10: =Inputs!T94 -> 0 | U10: =Inputs!U94 -> 0 | V10: =Inputs!V94 -> 0.1890410959 | W10: =Inputs!W94 -> 1 | X10: =Inputs!X94 -> 1 | Y10: =Inputs!Y94 -> 1 | Z10: =Inputs!Z94 -> 1 | AA10: =Inputs!AA94 -> 1 | AB10: =Inputs!AB94 -> 1 | AC10: =Inputs!AC94 -> 1 | AD10: =Inputs!AD94 -> 1 | AE10: =Inputs!AE94 -> 1 | AF10: =Inputs!AF94 -> 1 | AG10: =Inputs!AG94 -> 1 | AH10: =Inputs!AH94 -> 1 | AI10: =Inputs!AI94 -> 1 | AJ10: =Inputs!AJ94 -> 1 | AK10: =Inputs!AK94 -> 1 | AL10: =Inputs!AL94 -> 1 | AM10: =Inputs!AM94 -> 1 | AN10: =Inputs!AN94 -> 1 | AO10: =Inputs!AO94 -> 1 | AP10: =Inputs!AP94 -> 1 | AQ10: =Inputs!AQ94 -> 1 | AR10: =Inputs!AR94 -> 1 | AS10: =Inputs!AS94 -> 1 | AT10: =Inputs!AT94 -> 1 | AU10: =Inputs!AU94 -> 0.7534246575 | AV10: =Inputs!AV94 -> 0 | AW10: =Inputs!AW94 -> 0 | AX10: =Inputs!AX94 -> 0
E11: Transfer construction to operations flag | G11: flag | K11: =Inputs!K95 -> 0 | L11: =Inputs!L95 -> 0 | M11: =Inputs!M95 -> 0 | N11: =Inputs!N95 -> 0 | O11: =Inputs!O95 -> 0 | P11: =Inputs!P95 -> 0 | Q11: =Inputs!Q95 -> 0 | R11: =Inputs!R95 -> 0 | S11: =Inputs!S95 -> 0 | T11: =Inputs!T95 -> 0 | U11: =Inputs!U95 -> 0 | V11: =Inputs!V95 -> 0 | W11: =Inputs!W95 -> 1 | X11: =Inputs!X95 -> 0 | Y11: =Inputs!Y95 -> 0 | Z11: =Inputs!Z95 -> 0 | AA11: =Inputs!AA95 -> 0 | AB11: =Inputs!AB95 -> 0 | AC11: =Inputs!AC95 -> 0 | AD11: =Inputs!AD95 -> 0 | AE11: =Inputs!AE95 -> 0 | AF11: =Inputs!AF95 -> 0 | AG11: =Inputs!AG95 -> 0 | AH11: =Inputs!AH95 -> 0 | AI11: =Inputs!AI95 -> 0 | AJ11: =Inputs!AJ95 -> 0 | AK11: =Inputs!AK95 -> 0 | AL11: =Inputs!AL95 -> 0 | AM11: =Inputs!AM95 -> 0 | AN11: =Inputs!AN95 -> 0 | AO11: =Inputs!AO95 -> 0 | AP11: =Inputs!AP95 -> 0 | AQ11: =Inputs!AQ95 -> 0 | AR11: =Inputs!AR95 -> 0 | AS11: =Inputs!AS95 -> 0 | AT11: =Inputs!AT95 -> 0 | AU11: =Inputs!AU95 -> 0 | AV11: =Inputs!AV95 -> 0 | AW11: =Inputs!AW95 -> 0 | AX11: =Inputs!AX95 -> 0
E12: Initial transaction costs flag | G12: flag | K12: =Inputs!K96 -> 0 | L12: =Inputs!L96 -> 0 | M12: =Inputs!M96 -> 0 | N12: =Inputs!N96 -> 0 | O12: =Inputs!O96 -> 0 | P12: =Inputs!P96 -> 0 | Q12: =Inputs!Q96 -> 1 | R12: =Inputs!R96 -> 0 | S12: =Inputs!S96 -> 0 | T12: =Inputs!T96 -> 0 | U12: =Inputs!U96 -> 0 | V12: =Inputs!V96 -> 0 | W12: =Inputs!W96 -> 0 | X12: =Inputs!X96 -> 0 | Y12: =Inputs!Y96 -> 0 | Z12: =Inputs!Z96 -> 0 | AA12: =Inputs!AA96 -> 0 | AB12: =Inputs!AB96 -> 0 | AC12: =Inputs!AC96 -> 0 | AD12: =Inputs!AD96 -> 0 | AE12: =Inputs!AE96 -> 0 | AF12: =Inputs!AF96 -> 0 | AG12: =Inputs!AG96 -> 0 | AH12: =Inputs!AH96 -> 0 | AI12: =Inputs!AI96 -> 0 | AJ12: =Inputs!AJ96 -> 0 | AK12: =Inputs!AK96 -> 0 | AL12: =Inputs!AL96 -> 0 | AM12: =Inputs!AM96 -> 0 | AN12: =Inputs!AN96 -> 0 | AO12: =Inputs!AO96 -> 0 | AP12: =Inputs!AP96 -> 0 | AQ12: =Inputs!AQ96 -> 0 | AR12: =Inputs!AR96 -> 0 | AS12: =Inputs!AS96 -> 0 | AT12: =Inputs!AT96 -> 0 | AU12: =Inputs!AU96 -> 0 | AV12: =Inputs!AV96 -> 0 | AW12: =Inputs!AW96 -> 0 | AX12: =Inputs!AX96 -> 0
B14: Pre-operational interest during construction
C16: Pre-operational interest during construction
E18: Interest during construction rate | G18: =Inputs!G70 -> real annual % | I18: =Inputs!I70 -> 0.0675
E20: Opening pre-operational RAV (before transfers) | G20: =Inputs!$I$11 -> £m 16/17 prices | K20: ='Pre Op RAV'!K17 -> 0 | L20: ='Pre Op RAV'!L17 -> 0 | M20: ='Pre Op RAV'!M17 -> 0.0518527274 | N20: ='Pre Op RAV'!N17 -> 0.3532872754 | O20: ='Pre Op RAV'!O17 -> 1.164219061 | P20: ='Pre Op RAV'!P17 -> 2.468991318 | Q20: ='Pre Op RAV'!Q17 -> 4.643980674 | R20: ='Pre Op RAV'!R17 -> 8.988579019 | S20: ='Pre Op RAV'!S17 -> 13.47979857 | T20: ='Pre Op RAV'!T17 -> 71.23025143 | U20: ='Pre Op RAV'!U17 -> 194.7673296 | V20: ='Pre Op RAV'!V17 -> 320.4138396 | W20: ='Pre Op RAV'!W17 -> 372.1247903 | X20: ='Pre Op RAV'!X17 -> 0 | Y20: ='Pre Op RAV'!Y17 -> 0 | Z20: ='Pre Op RAV'!Z17 -> 0 | AA20: ='Pre Op RAV'!AA17 -> 0 | AB20: ='Pre Op RAV'!AB17 -> 0 | AC20: ='Pre Op RAV'!AC17 -> 0 | AD20: ='Pre Op RAV'!AD17 -> 0 | AE20: ='Pre Op RAV'!AE17 -> 0 | AF20: ='Pre Op RAV'!AF17 -> 0 | AG20: ='Pre Op RAV'!AG17 -> 0 | AH20: ='Pre Op RAV'!AH17 -> 0 | AI20: ='Pre Op RAV'!AI17 -> 0 | AJ20: ='Pre Op RAV'!AJ17 -> 0 | AK20: ='Pre Op RAV'!AK17 -> 0 | AL20: ='Pre Op RAV'!AL17 -> 0 | AM20: ='Pre Op RAV'!AM17 -> 0 | AN20: ='Pre Op RAV'!AN17 -> 0 | AO20: ='Pre Op RAV'!AO17 -> 0 | AP20: ='Pre Op RAV'!AP17 -> 0 | AQ20: ='Pre Op RAV'!AQ17 -> 0 | AR20: ='Pre Op RAV'!AR17 -> 0 | AS20: ='Pre Op RAV'!AS17 -> 0 | AT20: ='Pre Op RAV'!AT17 -> 0 | AU20: ='Pre Op RAV'!AU17 -> 0 | AV20: ='Pre Op RAV'!AV17 -> 0 | AW20: ='Pre Op RAV'!AW17 -> 0 | AX20: ='Pre Op RAV'!AX17 -> 0
E21: Development costs | G21: =Inputs!$I$11 -> £m 16/17 prices | K21: =Inputs!K34 -> 0 | L21: =Inputs!L34 -> 0.05021335545 | M21: =Inputs!M34 -> 0.2885150144 | N21: =Inputs!N34 -> 0.7622004776 | O21: =Inputs!O34 -> 1.187420419 | P21: =Inputs!P34 -> 1.944837154 | Q21: =Inputs!Q34 -> 3.903681756 | R21: =Inputs!R34 -> 2.185818034 | S21: =Inputs!S34 -> 0 | T21: =Inputs!T34 -> 0 | U21: =Inputs!U34 -> 0 | V21: =Inputs!V34 -> 0 | W21: =Inputs!W34 -> 0 | X21: =Inputs!X34 -> 0 | Y21: =Inputs!Y34 -> 0 | Z21: =Inputs!Z34 -> 0 | AA21: =Inputs!AA34 -> 0 | AB21: =Inputs!AB34 -> 0 | AC21: =Inputs!AC34 -> 0 | AD21: =Inputs!AD34 -> 0 | AE21: =Inputs!AE34 -> 0 | AF21: =Inputs!AF34 -> 0 | AG21: =Inputs!AG34 -> 0 | AH21: =Inputs!AH34 -> 0 | AI21: =Inputs!AI34 -> 0 | AJ21: =Inputs!AJ34 -> 0 | AK21: =Inputs!AK34 -> 0 | AL21: =Inputs!AL34 -> 0 | AM21: =Inputs!AM34 -> 0 | AN21: =Inputs!AN34 -> 0 | AO21: =Inputs!AO34 -> 0 | AP21: =Inputs!AP34 -> 0 | AQ21: =Inputs!AQ34 -> 0 | AR21: =Inputs!AR34 -> 0 | AS21: =Inputs!AS34 -> 0 | AT21: =Inputs!AT34 -> 0 | AU21: =Inputs!AU34 -> 0 | AV21: =Inputs!AV34 -> 0 | AW21: =Inputs!AW34 -> 0 | AX21: =Inputs!AX34 -> 0
E22: Capex | G22: =Inputs!$I$11 -> £m 16/17 prices | K22: =Inputs!K35 -> 0 | L22: =Inputs!L35 -> 0 | M22: =Inputs!M35 -> 0 | N22: =Inputs!N35 -> 0 | O22: =Inputs!O35 -> 0 | P22: =Inputs!P35 -> 0 | Q22: =Inputs!Q35 -> 0 | R22: =Inputs!R35 -> 1.57586067 | S22: =Inputs!S35 -> 54.85357267 | T22: =Inputs!T35 -> 114.3124295 | U22: =Inputs!U35 -> 106.7192905 | V22: =Inputs!V35 -> 32.98718271 | W22: =Inputs!W35 -> 10.08594061 | X22: =Inputs!X35 -> 0 | Y22: =Inputs!Y35 -> 0 | Z22: =Inputs!Z35 -> 0 | AA22: =Inputs!AA35 -> 0 | AB22: =Inputs!AB35 -> 0 | AC22: =Inputs!AC35 -> 0 | AD22: =Inputs!AD35 -> 0 | AE22: =Inputs!AE35 -> 0 | AF22: =Inputs!AF35 -> 0 | AG22: =Inputs!AG35 -> 0 | AH22: =Inputs!AH35 -> 0 | AI22: =Inputs!AI35 -> 0 | AJ22: =Inputs!AJ35 -> 0 | AK22: =Inputs!AK35 -> 0 | AL22: =Inputs!AL35 -> 0 | AM22: =Inputs!AM35 -> 0 | AN22: =Inputs!AN35 -> 0 | AO22: =Inputs!AO35 -> 0 | AP22: =Inputs!AP35 -> 0 | AQ22: =Inputs!AQ35 -> 0 | AR22: =Inputs!AR35 -> 0 | AS22: =Inputs!AS35 -> 0 | AT22: =Inputs!AT35 -> 0 | AU22: =Inputs!AU35 -> 0 | AV22: =Inputs!AV35 -> 0 | AW22: =Inputs!AW35 -> 0 | AX22: =Inputs!AX35 -> 0
E23: Spares | G23: =Inputs!$I$11 -> £m 16/17 prices | K23: =Inputs!K36 -> 0 | L23: =Inputs!L36 -> 0 | M23: =Inputs!M36 -> 0 | N23: =Inputs!N36 -> 0 | O23: =Inputs!O36 -> 0 | P23: =Inputs!P36 -> 0 | Q23: =Inputs!Q36 -> 0 | R23: =Inputs!R36 -> 0 | S23: =Inputs!S36 -> 0.1899266991 | T23: =Inputs!T36 -> 0.6628783671 | U23: =Inputs!U36 -> 2.223642138 | V23: =Inputs!V36 -> 0.4145605528 | W23: =Inputs!W36 -> 1.244436614 | X23: =Inputs!X36 -> 0 | Y23: =Inputs!Y36 -> 0 | Z23: =Inputs!Z36 -> 0 | AA23: =Inputs!AA36 -> 0 | AB23: =Inputs!AB36 -> 0 | AC23: =Inputs!AC36 -> 0 | AD23: =Inputs!AD36 -> 0 | AE23: =Inputs!AE36 -> 0 | AF23: =Inputs!AF36 -> 0 | AG23: =Inputs!AG36 -> 0 | AH23: =Inputs!AH36 -> 0 | AI23: =Inputs!AI36 -> 0 | AJ23: =Inputs!AJ36 -> 0 | AK23: =Inputs!AK36 -> 0 | AL23: =Inputs!AL36 -> 0 | AM23: =Inputs!AM36 -> 0 | AN23: =Inputs!AN36 -> 0 | AO23: =Inputs!AO36 -> 0 | AP23: =Inputs!AP36 -> 0 | AQ23: =Inputs!AQ36 -> 0 | AR23: =Inputs!AR36 -> 0 | AS23: =Inputs!AS36 -> 0 | AT23: =Inputs!AT36 -> 0 | AU23: =Inputs!AU36 -> 0 | AV23: =Inputs!AV36 -> 0 | AW23: =Inputs!AW36 -> 0 | AX23: =Inputs!AX36 -> 0
E24: Capitalised interest during construction | G24: =Inputs!$I$11 -> £m 16/17 prices | K24: =((1+$I18)^K8-1)*(K20+(K21+K22+K23)/(2+$I18)) -> 0 | L24: =((1+$I18)^L8-1)*(L20+(L21+L22+L23)/(2+$I18)) -> 0.001639371943 | M24: 0.01291953357 | N24: 0.04873130813 | O24: 0.1173518378 | P24: 0.230152202 | Q24: 0.4409165884 | R24: 0.7295408432 | S24: 2.706953493 | T24: 8.561770283 | U24: 16.70357731 | V24: =((1+$I18)^V8-1)*(V20+(V21+V22+V23)/(2+$I18)) -> 18.30920748 | W24: =((1+$I18)^W8-1)*(W20+(W21+W22+W23)/(2+$I18)) -> 0 | X24: =((1+$I18)^X8-1)*(X20+(X21+X22+X23)/(2+$I18)) -> 0 | Y24: =((1+$I18)^Y8-1)*(Y20+(Y21+Y22+Y23)/(2+$I18)) -> 0 | Z24: =((1+$I18)^Z8-1)*(Z20+(Z21+Z22+Z23)/(2+$I18)) -> 0 | AA24: =((1+$I18)^AA8-1)*(AA20+(AA21+AA22+AA23)/(2+$I18)) -> 0 | AB24: =((1+$I18)^AB8-1)*(AB20+(AB21+AB22+AB23)/(2+$I18)) -> 0 | AC24: =((1+$I18)^AC8-1)*(AC20+(AC21+AC22+AC23)/(2+$I18)) -> 0 | AD24: =((1+$I18)^AD8-1)*(AD20+(AD21+AD22+AD23)/(2+$I18)) -> 0 | AE24: =((1+$I18)^AE8-1)*(AE20+(AE21+AE22+AE23)/(2+$I18)) -> 0 | AF24: =((1+$I18)^AF8-1)*(AF20+(AF21+AF22+AF23)/(2+$I18)) -> 0 | AG24: =((1+$I18)^AG8-1)*(AG20+(AG21+AG22+AG23)/(2+$I18)) -> 0 | AH24: =((1+$I18)^AH8-1)*(AH20+(AH21+AH22+AH23)/(2+$I18)) -> 0 | AI24: =((1+$I18)^AI8-1)*(AI20+(AI21+AI22+AI23)/(2+$I18)) -> 0 | AJ24: =((1+$I18)^AJ8-1)*(AJ20+(AJ21+AJ22+AJ23)/(2+$I18)) -> 0 | AK24: =((1+$I18)^AK8-1)*(AK20+(AK21+AK22+AK23)/(2+$I18)) -> 0 | AL24: =((1+$I18)^AL8-1)*(AL20+(AL21+AL22+AL23)/(2+$I18)) -> 0 | AM24: =((1+$I18)^AM8-1)*(AM20+(AM21+AM22+AM23)/(2+$I18)) -> 0 | AN24: =((1+$I18)^AN8-1)*(AN20+(AN21+AN22+AN23)/(2+$I18)) -> 0 | AO24: =((1+$I18)^AO8-1)*(AO20+(AO21+AO22+AO23)/(2+$I18)) -> 0 | AP24: =((1+$I18)^AP8-1)*(AP20+(AP21+AP22+AP23)/(2+$I18)) -> 0 | AQ24: =((1+$I18)^AQ8-1)*(AQ20+(AQ21+AQ22+AQ23)/(2+$I18)) -> 0 | AR24: =((1+$I18)^AR8-1)*(AR20+(AR21+AR22+AR23)/(2+$I18)) -> 0 | AS24: =((1+$I18)^AS8-1)*(AS20+(AS21+AS22+AS23)/(2+$I18)) -> 0 | AT24: =((1+$I18)^AT8-1)*(AT20+(AT21+AT22+AT23)/(2+$I18)) -> 0 | AU24: =((1+$I18)^AU8-1)*(AU20+(AU21+AU22+AU23)/(2+$I18)) -> 0 | AV24: =((1+$I18)^AV8-1)*(AV20+(AV21+AV22+AV23)/(2+$I18)) -> 0 | AW24: =((1+$I18)^AW8-1)*(AW20+(AW21+AW22+AW23)/(2+$I18)) -> 0 | AX24: =((1+$I18)^AX8-1)*(AX20+(AX21+AX22+AX23)/(2+$I18)) -> 0
B26: Transaction costs
C28: Parameters
E30: Pre-operational notional gearing | G30: =Inputs!G73 -> % | I30: =Inputs!I73 -> 0.4061
E31: Operational notional gearing | G31: =Inputs!G74 -> % | I31: =Inputs!I74 -> 0.5
E33: Debt transaction costs | G33: =Inputs!G77 -> % | I33: =Inputs!I77 -> 0.025
E34: Equity transaction costs | G34: =Inputs!G76 -> % | I34: =Inputs!I76 -> 0.05
C36: Allowance
E38: Transaction costs - opening | G38: =Inputs!$I$11 -> £m 16/17 prices | K38: =J46 -> 0 | L38: 0 | M38: 0 | N38: 0 | O38: 0 | P38: 0 | Q38: 0 | R38: 15.77858433 | S38: 16.84363877 | T38: 17.98058439 | U38: 19.19427383 | V38: 20.48988732 | W38: 21.60452677 | X38: 0 | Y38: 0 | Z38: 0 | AA38: 0 | AB38: 0 | AC38: 0 | AD38: 0 | AE38: 0 | AF38: 0 | AG38: 0 | AH38: 0 | AI38: 0 | AJ38: 0 | AK38: 0 | AL38: 0 | AM38: 0 | AN38: 0 | AO38: 0 | AP38: 0 | AQ38: 0 | AR38: 0 | AS38: 0 | AT38: 0 | AU38: =AT46 -> 0 | AV38: =AU46 -> 0 | AW38: =AV46 -> 0 | AX38: =AW46 -> 0
E39: Initial debt transaction costs | G39: =Inputs!$I$11 -> £m 16/17 prices | K39: =$I30*K$12*$I33*'Op Rav'!$K$11 -> 0 | L39: =$I30*L$12*$I33*'Op Rav'!$K$11 -> 0 | M39: =$I30*M$12*$I33*'Op Rav'!$K$11 -> 0 | N39: =$I30*N$12*$I33*'Op Rav'!$K$11 -> 0 | O39: =$I30*O$12*$I33*'Op Rav'!$K$11 -> 0 | P39: =$I30*P$12*$I33*'Op Rav'!$K$11 -> 0 | Q39: =$I30*Q$12*$I33*'Op Rav'!$K$11 -> 3.893028589 | R39: =$I30*R$12*$I33*'Op Rav'!$K$11 -> 0 | S39: =$I30*S$12*$I33*'Op Rav'!$K$11 -> 0 | T39: =$I30*T$12*$I33*'Op Rav'!$K$11 -> 0 | U39: =$I30*U$12*$I33*'Op Rav'!$K$11 -> 0 | V39: =$I30*V$12*$I33*'Op Rav'!$K$11 -> 0 | W39: =$I30*W$12*$I33*'Op Rav'!$K$11 -> 0 | X39: =$I30*X$12*$I33*'Op Rav'!$K$11 -> 0 | Y39: =$I30*Y$12*$I33*'Op Rav'!$K$11 -> 0 | Z39: =$I30*Z$12*$I33*'Op Rav'!$K$11 -> 0 | AA39: =$I30*AA$12*$I33*'Op Rav'!$K$11 -> 0 | AB39: =$I30*AB$12*$I33*'Op Rav'!$K$11 -> 0 | AC39: =$I30*AC$12*$I33*'Op Rav'!$K$11 -> 0 | AD39: =$I30*AD$12*$I33*'Op Rav'!$K$11 -> 0 | AE39: =$I30*AE$12*$I33*'Op Rav'!$K$11 -> 0 | AF39: =$I30*AF$12*$I33*'Op Rav'!$K$11 -> 0 | AG39: =$I30*AG$12*$I33*'Op Rav'!$K$11 -> 0 | AH39: =$I30*AH$12*$I33*'Op Rav'!$K$11 -> 0 | AI39: =$I30*AI$12*$I33*'Op Rav'!$K$11 -> 0 | AJ39: =$I30*AJ$12*$I33*'Op Rav'!$K$11 -> 0 | AK39: =$I30*AK$12*$I33*'Op Rav'!$K$11 -> 0 | AL39: =$I30*AL$12*$I33*'Op Rav'!$K$11 -> 0 | AM39: =$I30*AM$12*$I33*'Op Rav'!$K$11 -> 0 | AN39: =$I30*AN$12*$I33*'Op Rav'!$K$11 -> 0 | AO39: =$I30*AO$12*$I33*'Op Rav'!$K$11 -> 0 | AP39: =$I30*AP$12*$I33*'Op Rav'!$K$11 -> 0 | AQ39: =$I30*AQ$12*$I33*'Op Rav'!$K$11 -> 0 | AR39: =$I30*AR$12*$I33*'Op Rav'!$K$11 -> 0 | AS39: =$I30*AS$12*$I33*'Op Rav'!$K$11 -> 0 | AT39: =$I30*AT$12*$I33*'Op Rav'!$K$11 -> 0 | AU39: =$I30*AU$12*$I33*'Op Rav'!$K$11 -> 0 | AV39: =$I30*AV$12*$I33*'Op Rav'!$K$11 -> 0 | AW39: =$I30*AW$12*$I33*'Op Rav'!$K$11 -> 0 | AX39: =$I30*AX$12*$I33*'Op Rav'!$K$11 -> 0
E40: Initial equity transaction costs | G40: =Inputs!$I$11 -> £m 16/17 prices | K40: =(1-$I30)*K$12*$I34*'Op Rav'!$K$11 -> 0 | L40: =(1-$I30)*L$12*$I34*'Op Rav'!$K$11 -> 0 | M40: =(1-$I30)*M$12*$I34*'Op Rav'!$K$11 -> 0 | N40: =(1-$I30)*N$12*$I34*'Op Rav'!$K$11 -> 0 | O40: =(1-$I30)*O$12*$I34*'Op Rav'!$K$11 -> 0 | P40: =(1-$I30)*P$12*$I34*'Op Rav'!$K$11 -> 0 | Q40: =(1-$I30)*Q$12*$I34*'Op Rav'!$K$11 -> 11.3867012 | R40: =(1-$I30)*R$12*$I34*'Op Rav'!$K$11 -> 0 | S40: =(1-$I30)*S$12*$I34*'Op Rav'!$K$11 -> 0 | T40: =(1-$I30)*T$12*$I34*'Op Rav'!$K$11 -> 0 | U40: =(1-$I30)*U$12*$I34*'Op Rav'!$K$11 -> 0 | V40: =(1-$I30)*V$12*$I34*'Op Rav'!$K$11 -> 0 | W40: =(1-$I30)*W$12*$I34*'Op Rav'!$K$11 -> 0 | X40: =(1-$I30)*X$12*$I34*'Op Rav'!$K$11 -> 0 | Y40: =(1-$I30)*Y$12*$I34*'Op Rav'!$K$11 -> 0 | Z40: =(1-$I30)*Z$12*$I34*'Op Rav'!$K$11 -> 0 | AA40: =(1-$I30)*AA$12*$I34*'Op Rav'!$K$11 -> 0 | AB40: =(1-$I30)*AB$12*$I34*'Op Rav'!$K$11 -> 0 | AC40: =(1-$I30)*AC$12*$I34*'Op Rav'!$K$11 -> 0 | AD40: =(1-$I30)*AD$12*$I34*'Op Rav'!$K$11 -> 0 | AE40: =(1-$I30)*AE$12*$I34*'Op Rav'!$K$11 -> 0 | AF40: =(1-$I30)*AF$12*$I34*'Op Rav'!$K$11 -> 0 | AG40: =(1-$I30)*AG$12*$I34*'Op Rav'!$K$11 -> 0 | AH40: =(1-$I30)*AH$12*$I34*'Op Rav'!$K$11 -> 0 | AI40: =(1-$I30)*AI$12*$I34*'Op Rav'!$K$11 -> 0 | AJ40: =(1-$I30)*AJ$12*$I34*'Op Rav'!$K$11 -> 0 | AK40: =(1-$I30)*AK$12*$I34*'Op Rav'!$K$11 -> 0 | AL40: =(1-$I30)*AL$12*$I34*'Op Rav'!$K$11 -> 0 | AM40: =(1-$I30)*AM$12*$I34*'Op Rav'!$K$11 -> 0 | AN40: =(1-$I30)*AN$12*$I34*'Op Rav'!$K$11 -> 0 | AO40: =(1-$I30)*AO$12*$I34*'Op Rav'!$K$11 -> 0 | AP40: =(1-$I30)*AP$12*$I34*'Op Rav'!$K$11 -> 0 | AQ40: =(1-$I30)*AQ$12*$I34*'Op Rav'!$K$11 -> 0 | AR40: =(1-$I30)*AR$12*$I34*'Op Rav'!$K$11 -> 0 | AS40: =(1-$I30)*AS$12*$I34*'Op Rav'!$K$11 -> 0 | AT40: =(1-$I30)*AT$12*$I34*'Op Rav'!$K$11 -> 0 | AU40: =(1-$I30)*AU$12*$I34*'Op Rav'!$K$11 -> 0 | AV40: =(1-$I30)*AV$12*$I34*'Op Rav'!$K$11 -> 0 | AW40: =(1-$I30)*AW$12*$I34*'Op Rav'!$K$11 -> 0 | AX40: =(1-$I30)*AX$12*$I34*'Op Rav'!$K$11 -> 0
E41: Final debt transaction costs | G41: =Inputs!$I$11 -> £m 16/17 prices | K41: =($I31-$I30)*'Op Rav'!$K$11*$I33*K$11 -> 0 | L41: =($I31-$I30)*'Op Rav'!$K$11*$I33*L$11 -> 0 | M41: =($I31-$I30)*'Op Rav'!$K$11*$I33*M$11 -> 0 | N41: =($I31-$I30)*'Op Rav'!$K$11*$I33*N$11 -> 0 | O41: =($I31-$I30)*'Op Rav'!$K$11*$I33*O$11 -> 0 | P41: =($I31-$I30)*'Op Rav'!$K$11*$I33*P$11 -> 0 | Q41: =($I31-$I30)*'Op Rav'!$K$11*$I33*Q$11 -> 0 | R41: =($I31-$I30)*'Op Rav'!$K$11*$I33*R$11 -> 0 | S41: =($I31-$I30)*'Op Rav'!$K$11*$I33*S$11 -> 0 | T41: =($I31-$I30)*'Op Rav'!$K$11*$I33*T$11 -> 0 | U41: =($I31-$I30)*'Op Rav'!$K$11*$I33*U$11 -> 0 | V41: =($I31-$I30)*'Op Rav'!$K$11*$I33*V$11 -> 0 | W41: =($I31-$I30)*'Op Rav'!$K$11*$I33*W$11 -> 0.9001610058 | X41: =($I31-$I30)*'Op Rav'!$K$11*$I33*X$11 -> 0 | Y41: =($I31-$I30)*'Op Rav'!$K$11*$I33*Y$11 -> 0 | Z41: =($I31-$I30)*'Op Rav'!$K$11*$I33*Z$11 -> 0 | AA41: =($I31-$I30)*'Op Rav'!$K$11*$I33*AA$11 -> 0 | AB41: =($I31-$I30)*'Op Rav'!$K$11*$I33*AB$11 -> 0 | AC41: =($I31-$I30)*'Op Rav'!$K$11*$I33*AC$11 -> 0 | AD41: =($I31-$I30)*'Op Rav'!$K$11*$I33*AD$11 -> 0 | AE41: =($I31-$I30)*'Op Rav'!$K$11*$I33*AE$11 -> 0 | AF41: =($I31-$I30)*'Op Rav'!$K$11*$I33*AF$11 -> 0 | AG41: =($I31-$I30)*'Op Rav'!$K$11*$I33*AG$11 -> 0 | AH41: =($I31-$I30)*'Op Rav'!$K$11*$I33*AH$11 -> 0 | AI41: =($I31-$I30)*'Op Rav'!$K$11*$I33*AI$11 -> 0 | AJ41: =($I31-$I30)*'Op Rav'!$K$11*$I33*AJ$11 -> 0 | AK41: =($I31-$I30)*'Op Rav'!$K$11*$I33*AK$11 -> 0 | AL41: =($I31-$I30)*'Op Rav'!$K$11*$I33*AL$11 -> 0 | AM41: =($I31-$I30)*'Op Rav'!$K$11*$I33*AM$11 -> 0 | AN41: =($I31-$I30)*'Op Rav'!$K$11*$I33*AN$11 -> 0 | AO41: =($I31-$I30)*'Op Rav'!$K$11*$I33*AO$11 -> 0 | AP41: =($I31-$I30)*'Op Rav'!$K$11*$I33*AP$11 -> 0 | AQ41: =($I31-$I30)*'Op Rav'!$K$11*$I33*AQ$11 -> 0 | AR41: =($I31-$I30)*'Op Rav'!$K$11*$I33*AR$11 -> 0 | AS41: =($I31-$I30)*'Op Rav'!$K$11*$I33*AS$11 -> 0 | AT41: =($I31-$I30)*'Op Rav'!$K$11*$I33*AT$11 -> 0 | AU41: =($I31-$I30)*'Op Rav'!$K$11*$I33*AU$11 -> 0 | AV41: =($I31-$I30)*'Op Rav'!$K$11*$I33*AV$11 -> 0 | AW41: =($I31-$I30)*'Op Rav'!$K$11*$I33*AW$11 -> 0 | AX41: =($I31-$I30)*'Op Rav'!$K$11*$I33*AX$11 -> 0
E42: Final equity transaction costs | G42: =Inputs!$I$11 -> £m 16/17 prices | K42: =($I30-$I31)*'Op Rav'!$K$11*$I34*K$11 -> 0 | L42: =($I30-$I31)*'Op Rav'!$K$11*$I34*L$11 -> 0 | M42: =($I30-$I31)*'Op Rav'!$K$11*$I34*M$11 -> 0 | N42: =($I30-$I31)*'Op Rav'!$K$11*$I34*N$11 -> 0 | O42: =($I30-$I31)*'Op Rav'!$K$11*$I34*O$11 -> 0 | P42: =($I30-$I31)*'Op Rav'!$K$11*$I34*P$11 -> 0 | Q42: =($I30-$I31)*'Op Rav'!$K$11*$I34*Q$11 -> 0 | R42: =($I30-$I31)*'Op Rav'!$K$11*$I34*R$11 -> 0 | S42: =($I30-$I31)*'Op Rav'!$K$11*$I34*S$11 -> 0 | T42: =($I30-$I31)*'Op Rav'!$K$11*$I34*T$11 -> 0 | U42: =($I30-$I31)*'Op Rav'!$K$11*$I34*U$11 -> 0 | V42: =($I30-$I31)*'Op Rav'!$K$11*$I34*V$11 -> 0 | W42: =($I30-$I31)*'Op Rav'!$K$11*$I34*W$11 -> -1.800322012 | X42: =($I30-$I31)*'Op Rav'!$K$11*$I34*X$11 -> 0 | Y42: =($I30-$I31)*'Op Rav'!$K$11*$I34*Y$11 -> 0 | Z42: =($I30-$I31)*'Op Rav'!$K$11*$I34*Z$11 -> 0 | AA42: =($I30-$I31)*'Op Rav'!$K$11*$I34*AA$11 -> 0 | AB42: =($I30-$I31)*'Op Rav'!$K$11*$I34*AB$11 -> 0 | AC42: =($I30-$I31)*'Op Rav'!$K$11*$I34*AC$11 -> 0 | AD42: =($I30-$I31)*'Op Rav'!$K$11*$I34*AD$11 -> 0 | AE42: =($I30-$I31)*'Op Rav'!$K$11*$I34*AE$11 -> 0 | AF42: =($I30-$I31)*'Op Rav'!$K$11*$I34*AF$11 -> 0 | AG42: =($I30-$I31)*'Op Rav'!$K$11*$I34*AG$11 -> 0 | AH42: =($I30-$I31)*'Op Rav'!$K$11*$I34*AH$11 -> 0 | AI42: =($I30-$I31)*'Op Rav'!$K$11*$I34*AI$11 -> 0 | AJ42: =($I30-$I31)*'Op Rav'!$K$11*$I34*AJ$11 -> 0 | AK42: =($I30-$I31)*'Op Rav'!$K$11*$I34*AK$11 -> 0 | AL42: =($I30-$I31)*'Op Rav'!$K$11*$I34*AL$11 -> 0 | AM42: =($I30-$I31)*'Op Rav'!$K$11*$I34*AM$11 -> 0 | AN42: =($I30-$I31)*'Op Rav'!$K$11*$I34*AN$11 -> 0 | AO42: =($I30-$I31)*'Op Rav'!$K$11*$I34*AO$11 -> 0 | AP42: =($I30-$I31)*'Op Rav'!$K$11*$I34*AP$11 -> 0 | AQ42: =($I30-$I31)*'Op Rav'!$K$11*$I34*AQ$11 -> 0 | AR42: =($I30-$I31)*'Op Rav'!$K$11*$I34*AR$11 -> 0 | AS42: =($I30-$I31)*'Op Rav'!$K$11*$I34*AS$11 -> 0 | AT42: =($I30-$I31)*'Op Rav'!$K$11*$I34*AT$11 -> 0 | AU42: =($I30-$I31)*'Op Rav'!$K$11*$I34*AU$11 -> 0 | AV42: =($I30-$I31)*'Op Rav'!$K$11*$I34*AV$11 -> 0 | AW42: =($I30-$I31)*'Op Rav'!$K$11*$I34*AW$11 -> 0 | AX42: =($I30-$I31)*'Op Rav'!$K$11*$I34*AX$11 -> 0
E43: Transaction costs - annual movement | G43: =Inputs!$I$11 -> £m 16/17 prices | K43: =SUM(K39:K42) -> 0 | L43: 0 | M43: 0 | N43: 0 | O43: 0 | P43: 0 | Q43: 15.27972979 | R43: =SUM(R39:R42) -> 0 | S43: 0 | T43: 0 | U43: 0 | V43: 0 | W43: -0.9001610058 | X43: 0 | Y43: 0 | Z43: 0 | AA43: 0 | AB43: 0 | AC43: 0 | AD43: 0 | AE43: 0 | AF43: 0 | AG43: 0 | AH43: 0 | AI43: 0 | AJ43: 0 | AK43: 0 | AL43: 0 | AM43: 0 | AN43: 0 | AO43: 0 | AP43: 0 | AQ43: 0 | AR43: 0 | AS43: 0 | AT43: 0 | AU43: =SUM(AU39:AU42) -> 0 | AV43: 0 | AW43: 0 | AX43: 0
E44: Capitalised IDC on transaction costs | G44: =Inputs!$I$11 -> £m 16/17 prices | K44: =((1+$I18)^K8-1)*(K38+(K39+K40+K41+K42)/(2+$I18)) -> 0 | L44: =((1+$I18)^L8-1)*(L38+(L39+L40+L41+L42)/(2+$I18)) -> 0 | M44: 0 | N44: 0 | O44: 0 | P44: 0 | Q44: 0.4988545397 | R44: 1.065054442 | S44: 1.136945617 | T44: 1.213689446 | U44: 1.295613484 | V44: 1.114639454 | W44: 0 | X44: 0 | Y44: 0 | Z44: 0 | AA44: 0 | AB44: 0 | AC44: 0 | AD44: 0 | AE44: 0 | AF44: 0 | AG44: 0 | AH44: 0 | AI44: 0 | AJ44: 0 | AK44: 0 | AL44: 0 | AM44: 0 | AN44: 0 | AO44: 0 | AP44: 0 | AQ44: 0 | AR44: 0 | AS44: 0 | AT44: 0 | AU44: 0 | AV44: 0 | AW44: 0 | AX44: 0
E45: Transfer to operational RAV | G45: =Inputs!$I$11 -> £m 16/17 prices | K45: =-SUM(K38,K43,K44)*K$11 -> 0 | L45: 0 | M45: 0 | N45: 0 | O45: 0 | P45: 0 | Q45: 0 | R45: 0 | S45: 0 | T45: 0 | U45: 0 | V45: 0 | W45: -20.70436577 | X45: 0 | Y45: 0 | Z45: 0 | AA45: 0 | AB45: 0 | AC45: 0 | AD45: 0 | AE45: 0 | AF45: 0 | AG45: 0 | AH45: 0 | AI45: 0 | AJ45: 0 | AK45: 0 | AL45: 0 | AM45: 0 | AN45: 0 | AO45: 0 | AP45: 0 | AQ45: 0 | AR45: 0 | AS45: 0 | AT45: 0 | AU45: 0 | AV45: 0 | AW45: 0 | AX45: 0
E46: Transaction costs - closing | G46: =Inputs!$I$11 -> £m 16/17 prices | K46: =SUM(K45,K44,K43,K38) -> 0 | L46: =SUM(L45,L44,L43,L38) -> 0 | M46: 0 | N46: 0 | O46: 0 | P46: 0 | Q46: 15.77858433 | R46: 16.84363877 | S46: 17.98058439 | T46: 19.19427383 | U46: 20.48988732 | V46: 21.60452677 | W46: 0 | X46: 0 | Y46: 0 | Z46: 0 | AA46: 0 | AB46: 0 | AC46: 0 | AD46: 0 | AE46: 0 | AF46: 0 | AG46: 0 | AH46: 0 | AI46: 0 | AJ46: 0 | AK46: 0 | AL46: 0 | AM46: 0 | AN46: 0 | AO46: 0 | AP46: 0 | AQ46: 0 | AR46: 0 | AS46: 0 | AT46: 0 | AU46: 0 | AV46: 0 | AW46: 0 | AX46: 0
B48: End of sheet

Sheet Op Rav
A1: Op RAV | H1: Licence
E2: Parameter | G2: Units | H2: Terminology | I2: Constant | K2: Annual values
E3: Project year | K3: Year 1 | L3: Year 2 | M3: Year 3 | N3: Year 4 | O3: Year 5 | P3: Year 6 | Q3: Year 7 | R3: Year 8 | S3: Year 9 | T3: Year 10 | U3: Year 11 | V3: Year 12 | W3: Year 13 | X3: Year 14 | Y3: Year 15 | Z3: Year 16 | AA3: Year 17 | AB3: Year 18 | AC3: Year 19 | AD3: Year 20 | AE3: Year 21 | AF3: Year 22 | AG3: Year 23 | AH3: Year 24 | AI3: Year 25
B5: RAV
C7: Operational
E9: Opening operational RAV (before transfers) | G9: =Inputs!$I$11 -> £m 16/17 prices | K9: =J15 -> 0 | L9: 387.993152 | M9: 371.8267707 | N9: 355.6603893 | O9: 339.494008 | P9: 323.3276267 | Q9: 307.1612453 | R9: 293.4499442 | S9: 280.5629874 | T9: 264.0592822 | U9: 248.6862091 | V9: 232.1071285 | W9: 216.2182235 | X9: 200.7483088 | Y9: 187.9401405 | Z9: 170.8546732 | AA9: 153.7692059 | AB9: 160.1847268 | AC9: 140.1616359 | AD9: 120.1385451 | AE9: 101.2460863 | AF9: 83.45194926 | AG9: 62.58896194 | AH9: 41.72597463 | AI9: 20.86298731
E10: Transfers of transaction costs | G10: =Inputs!$I$11 -> £m 16/17 prices | K10: =-SUM(Finance!K45:AX45) -> 20.70436577
E11: Transfers of pre-operational RAV | G11: =Inputs!$I$11 -> £m 16/17 prices | K11: =-SUM('Pre Op RAV'!K23:AX23) -> 383.4551676
E12: Opening operational RAV (after transfers) | G12: =Inputs!$I$11 -> £m 16/17 prices | K12: =SUM(K9:K11) -> 404.1595333 | L12: =SUM(L9:L11) -> 387.993152 | M12: =SUM(M9:M11) -> 371.8267707 | N12: 355.6603893 | O12: 339.494008 | P12: 323.3276267 | Q12: 307.1612453 | R12: 293.4499442 | S12: 280.5629874 | T12: 264.0592822 | U12: 248.6862091 | V12: 232.1071285 | W12: 216.2182235 | X12: 200.7483088 | Y12: 187.9401405 | Z12: 170.8546732 | AA12: 153.7692059 | AB12: 160.1847268 | AC12: 140.1616359 | AD12: 120.1385451 | AE12: 101.2460863 | AF12: 83.45194926 | AG12: 62.58896194 | AH12: 41.72597463 | AI12: 20.86298731
E13: Replacement Capex | G13: =Inputs!$I$11 -> £m 16/17 prices | K13: =Inputs!K59 -> 0 | L13: =Inputs!L59 -> 0 | M13: =Inputs!M59 -> 0 | N13: =Inputs!N59 -> 0 | O13: =Inputs!O59 -> 0 | P13: =Inputs!P59 -> 0 | Q13: =Inputs!Q59 -> 2.455080235 | R13: =Inputs!R59 -> 3.415817826 | S13: =Inputs!S59 -> 0 | T13: =Inputs!T59 -> 1.130632031 | U13: =Inputs!U59 -> 0 | V13: =Inputs!V59 -> 0.6901756366 | W13: =Inputs!W59 -> 1.162256311 | X13: =Inputs!X59 -> 3.920857443 | Y13: =Inputs!Y59 -> 0 | Z13: =Inputs!Z59 -> 0 | AA13: =Inputs!AA59 -> 23.50098823 | AB13: =Inputs!AB59 -> 0 | AC13: =Inputs!AC59 -> 0 | AD13: =Inputs!AD59 -> 1.130632031 | AE13: =Inputs!AE59 -> 2.455080235 | AF13: =Inputs!AF59 -> 0 | AG13: =Inputs!AG59 -> 0 | AH13: =Inputs!AH59 -> 0 | AI13: =Inputs!AI59 -> 0
E14: Depreciation (negative) | G14: =Inputs!$I$11 -> £m 16/17 prices | K14: =- K25 -> -16.16638133 | L14: =- L25 -> -16.16638133 | M14: =- M25 -> -16.16638133 | N14: -16.16638133 | O14: -16.16638133 | P14: -16.16638133 | Q14: -16.16638133 | R14: -16.30277468 | S14: -16.50370514 | T14: -16.50370514 | U14: -16.57908061 | V14: -16.57908061 | W14: -16.63217104 | X14: -16.72902573 | Y14: -17.08546732 | Z14: -17.08546732 | AA14: -17.08546732 | AB14: -20.02309085 | AC14: -20.02309085 | AD14: -20.02309085 | AE14: -20.24921726 | AF14: -20.86298731 | AG14: -20.86298731 | AH14: -20.86298731 | AI14: -20.86298731
E15: Closing operational RAV | G15: =Inputs!$I$11 -> £m 16/17 prices | K15: =SUM(K12:K14) -> 387.993152 | L15: 371.8267707 | M15: 355.6603893 | N15: 339.494008 | O15: 323.3276267 | P15: 307.1612453 | Q15: 293.4499442 | R15: 280.5629874 | S15: 264.0592822 | T15: 248.6862091 | U15: 232.1071285 | V15: 216.2182235 | W15: 200.7483088 | X15: 187.9401405 | Y15: 170.8546732 | Z15: 153.7692059 | AA15: 160.1847268 | AB15: 140.1616359 | AC15: 120.1385451 | AD15: 101.2460863 | AE15: 83.45194926 | AF15: 62.58896194 | AG15: 41.72597463 | AH15: 20.86298731 | AI15: 0
E17: Average operational RAV | G17: =Inputs!$I$11 -> £m 16/17 prices | K17: =AVERAGE(K12, K15) -> 396.0763427 | L17: =AVERAGE(L12, L15) -> 379.9099613 | M17: =AVERAGE(M12, M15) -> 363.74358 | N17: 347.5771987 | O17: 331.4108173 | P17: 315.244436 | Q17: 300.3055948 | R17: 287.0064658 | S17: 272.3111348 | T17: 256.3727457 | U17: 240.3966688 | V17: 224.162676 | W17: 208.4832662 | X17: 194.3442247 | Y17: 179.3974069 | Z17: 162.3119395 | AA17: =AVERAGE(AA12, AA15) -> 156.9769663 | AB17: 150.1731814 | AC17: 130.1500905 | AD17: 110.6923157 | AE17: 92.34901777 | AF17: 73.0204556 | AG17: 52.15746829 | AH17: 31.29448097 | AI17: 10.43149366
B19: Operational RAV depreciation
E21: Number of operational years | G21: full years | I21: =Inputs!I89 -> 25
E22: Years remaining until end of operational period | G22: full years | K22: =I21 -> 25 | L22: =+K22-1 -> 24 | M22: =+L22-1 -> 23 | N22: 22 | O22: 21 | P22: 20 | Q22: 19 | R22: 18 | S22: 17 | T22: 16 | U22: 15 | V22: 14 | W22: 13 | X22: 12 | Y22: 11 | Z22: 10 | AA22: 9 | AB22: 8 | AC22: 7 | AD22: 6 | AE22: 5 | AF22: 4 | AG22: 3 | AH22: 2 | AI22: 1
E23: Year is before end of operational period | G23: flag | K23: =K22 > 0 -> TRUE | L23: TRUE | M23: TRUE | N23: TRUE | O23: TRUE | P23: TRUE | Q23: TRUE | R23: TRUE | S23: TRUE | T23: TRUE | U23: TRUE | V23: TRUE | W23: TRUE | X23: TRUE | Y23: TRUE | Z23: TRUE | AA23: TRUE | AB23: TRUE | AC23: TRUE | AD23: TRUE | AE23: TRUE | AF23: TRUE | AG23: TRUE | AH23: TRUE | AI23: TRUE
E25: RAV depreciation | G25: =Inputs!$I$11 -> £m 16/17 prices | K25: =IF(K23, IF(K22=1,SUM(K12:K13),K12 / K22), 0) -> 16.16638133 | L25: =IF(L23, IF(L22=1,SUM(L12:L13),L12 / L22), 0) -> 16.16638133 | M25: 16.16638133 | N25: 16.16638133 | O25: 16.16638133 | P25: 16.16638133 | Q25: 16.16638133 | R25: 16.30277468 | S25: 16.50370514 | T25: 16.50370514 | U25: 16.57908061 | V25: 16.57908061 | W25: 16.63217104 | X25: 16.72902573 | Y25: 17.08546732 | Z25: 17.08546732 | AA25: 17.08546732 | AB25: 20.02309085 | AC25: 20.02309085 | AD25: 20.02309085 | AE25: 20.24921726 | AF25: 20.86298731 | AG25: 20.86298731 | AH25: 20.86298731 | AI25: 20.86298731
E27: Depreciation equal to additions | G27: check | I27: =IF(ABS(SUM('Pre Op RAV'!K18:AX21,Finance!K39:AX42,Finance!K44:AX44,K13:AI13)-SUM(K25:AI25))<0.00000001,"TRUE","FALSE") -> TRUE
B29: Operational RAV return
E31: Cap return rate | G31: =Inputs!G68 -> real annual % | I31: =Inputs!I68 -> 0.081
E32: Floor return rate | G32: =Inputs!G69 -> real annual % | I32: =Inputs!I69 -> -0.0021
E34: Opening operational RAV (after transfers) | G34: =Inputs!$I$11 -> £m 16/17 prices | K34: =K12 -> 404.1595333 | L34: 387.993152 | M34: 371.8267707 | N34: 355.6603893 | O34: 339.494008 | P34: 323.3276267 | Q34: 307.1612453 | R34: 293.4499442 | S34: 280.5629874 | T34: 264.0592822 | U34: 248.6862091 | V34: 232.1071285 | W34: 216.2182235 | X34: 200.7483088 | Y34: 187.9401405 | Z34: 170.8546732 | AA34: 153.7692059 | AB34: 160.1847268 | AC34: 140.1616359 | AD34: 120.1385451 | AE34: 101.2460863 | AF34: 83.45194926 | AG34: 62.58896194 | AH34: 41.72597463 | AI34: 20.86298731
E35: Closing operational RAV | G35: =Inputs!$I$11 -> £m 16/17 prices | K35: =K15 -> 387.993152 | L35: 371.8267707 | M35: 355.6603893 | N35: 339.494008 | O35: 323.3276267 | P35: 307.1612453 | Q35: 293.4499442 | R35: 280.5629874 | S35: 264.0592822 | T35: 248.6862091 | U35: 232.1071285 | V35: 216.2182235 | W35: 200.7483088 | X35: 187.9401405 | Y35: 170.8546732 | Z35: 153.7692059 | AA35: 160.1847268 | AB35: 140.1616359 | AC35: 120.1385451 | AD35: 101.2460863 | AE35: 83.45194926 | AF35: 62.58896194 | AG35: 41.72597463 | AH35: 20.86298731 | AI35: 0
E37: NPV neutral return base (cap) | G37: =Inputs!$I$11 -> £m 16/17 prices | K37: =0.5 * K$34 + 0.5 * K$35 / (1 + $I31) -> 381.540059 | L37: =0.5 * L$34 + 0.5 * L$35 / (1 + $I31) -> 365.9793561 | M37: 350.4186533 | N37: 334.8579504 | O37: 319.2972476 | P37: 303.7365447 | Q37: 289.3114017 | R37: 276.4950865 | S37: 262.418072 | T37: 247.0556398 | U37: 231.7007033 | V37: 216.0619933 | W37: 200.9621686 | X37: 187.3029891 | Y37: 172.9962836 | Z37: 156.5509286 | AA37: 150.9755959 | AB37: 144.9219822 | AC37: 125.6490627 | AD37: 106.8990997 | AE37: 89.22246463 | AF37: 70.67554074 | AG37: 50.59419171 | AH37: 30.51284269 | AI37: 10.43149366
E38: NPV neutral return base (floor) | G38: =Inputs!$I$11 -> £m 16/17 prices | K38: =0.5 * K$34 + 0.5 * K$35 / (1 + $I32) -> 396.4845928 | L38: 380.301201 | M38: 364.1178093 | N38: 347.9344175 | O38: 331.7510258 | P38: 315.567634 | Q38: 300.6143656 | R38: 287.3016769 | S38: 272.5889805 | T38: 256.6344157 | U38: 240.6408942 | V38: 224.3901829 | W38: 208.6944955 | X38: 194.5419771 | Y38: 179.5771818 | Z38: 162.473737 | AA38: 157.1455143 | AB38: 150.3206608 | AC38: 130.2765015 | AD38: 110.7988478 | AE38: 92.43682671 | AF38: 73.08631231 | AG38: 52.20137276 | AH38: 31.31643321 | AI38: 10.43149366
E40: Return (cap) | G40: =Inputs!$I$11 -> £m 16/17 prices | K40: =K37 * $I31 -> 30.90474478 | L40: 29.64432785 | M40: 28.38391092 | N40: 27.12349399 | O40: 25.86307705 | P40: 24.60266012 | Q40: 23.43422354 | R40: 22.39610201 | S40: 21.25586383 | T40: 20.01150682 | U40: 18.76775697 | V40: 17.50102146 | W40: 16.27793565 | X40: 15.17154211 | Y40: 14.01269897 | Z40: 12.68062522 | AA40: 12.22902327 | AB40: 11.73868056 | AC40: 10.17757408 | AD40: 8.658827075 | AE40: 7.227019635 | AF40: 5.7247188 | AG40: 4.098129529 | AH40: 2.471540258 | AI40: 0.8449509862
E41: Return (floor) | G41: =Inputs!$I$11 -> £m 16/17 prices | K41: =K38 * $I32 -> -0.8326176449 | L41: -0.7986325222 | M41: -0.7646473995 | N41: -0.7306622768 | O41: -0.6966771541 | P41: -0.6626920314 | Q41: -0.6312901678 | R41: -0.6033335214 | S41: -0.5724368591 | T41: -0.538932273 | U41: -0.5053458778 | V41: -0.4712193842 | W41: -0.4382584405 | X41: -0.4085381519 | Y41: -0.3771120818 | Z41: -0.3411948477 | AA41: -0.3300055799 | AB41: -0.3156733877 | AC41: -0.2735806531 | AD41: -0.2326775804 | AE41: -0.1941173361 | AF41: -0.1534812558 | AG41: -0.1096228828 | AH41: -0.06576450974 | AI41: -0.02190613668
B43: End of sheet

Sheet Allowances Cap
A1: Allowances Cap | H1: Licence
E2: Parameter | G2: Units | H2: Terminology | I2: Constant | K2: Annual values
E3: Project year | K3: Year 1 | L3: Year 2 | M3: Year 3 | N3: Year 4 | O3: Year 5 | P3: Year 6 | Q3: Year 7 | R3: Year 8 | S3: Year 9 | T3: Year 10 | U3: Year 11 | V3: Year 12 | W3: Year 13 | X3: Year 14 | Y3: Year 15 | Z3: Year 16 | AA3: Year 17 | AB3: Year 18 | AC3: Year 19 | AD3: Year 20 | AE3: Year 21 | AF3: Year 22 | AG3: Year 23 | AH3: Year 24 | AI3: Year 25
E4: Year | K4: 1 | L4: =+K4+1 -> 2 | M4: =+L4+1 -> 3 | N4: 4 | O4: 5 | P4: 6 | Q4: 7 | R4: 8 | S4: 9 | T4: 10 | U4: 11 | V4: 12 | W4: 13 | X4: 14 | Y4: 15 | Z4: 16 | AA4: 17 | AB4: 18 | AC4: 19 | AD4: 20 | AE4: 21 | AF4: 22 | AG4: 23 | AH4: 24 | AI4: 25
B6: Unprofiled allowances except tax (cap)
E8: Controllable Opex | G8: =Inputs!$I$11 -> £m 16/17 prices | K8: =Inputs!K61 -> 14.44214946 | L8: =Inputs!L61 -> 10.85273123 | M8: =Inputs!M61 -> 14.83666599 | N8: =Inputs!N61 -> 14.55284568 | O8: =Inputs!O61 -> 15.5251968 | P8: =Inputs!P61 -> 15.48525721 | Q8: =Inputs!Q61 -> 15.30943636 | R8: =Inputs!R61 -> 16.50350658 | S8: =Inputs!S61 -> 16.84432528 | T8: =Inputs!T61 -> 17.7766119 | U8: =Inputs!U61 -> 17.45670535 | V8: =Inputs!V61 -> 17.48704305 | W8: =Inputs!W61 -> 17.5179813 | X8: =Inputs!X61 -> 17.54953642 | Y8: =Inputs!Y61 -> 18.33718114 | Z8: =Inputs!Z61 -> 17.86668411 | AA8: =Inputs!AA61 -> 17.90206441 | AB8: =Inputs!AB61 -> 17.9381696 | AC8: =Inputs!AC61 -> 17.97501948 | AD8: =Inputs!AD61 -> 18.77961684 | AE8: =Inputs!AE61 -> 18.36027304 | AF8: =Inputs!AF61 -> 18.4013582 | AG8: =Inputs!AG61 -> 18.44331115 | AH8: =Inputs!AH61 -> 18.48615573 | AI8: =Inputs!AI61 -> 18.69047827
E9: Non-controllable Opex (baseline) | G9: =Inputs!$I$11 -> £m 16/17 prices | K9: =Inputs!K62 -> 1.061514449 | L9: =Inputs!L62 -> 1.048066543 | M9: =Inputs!M62 -> 1.038223222 | N9: =Inputs!N62 -> 1.028472525 | O9: =Inputs!O62 -> 1.018813581 | P9: =Inputs!P62 -> 1.009245524 | Q9: =Inputs!Q62 -> 0.9997674965 | R9: =Inputs!R62 -> 0.990378651 | S9: =Inputs!S62 -> 0.9810781464 | T9: =Inputs!T62 -> 0.9718651498 | U9: =Inputs!U62 -> 0.9627388363 | V9: =Inputs!V62 -> 0.953698389 | W9: =Inputs!W62 -> 0.9447429983 | X9: =Inputs!X62 -> 0.9358718625 | Y9: =Inputs!Y62 -> 0.9270841874 | Z9: =Inputs!Z62 -> 0.9183791864 | AA9: =Inputs!AA62 -> 0.9097560802 | AB9: =Inputs!AB62 -> 0.9012140969 | AC9: =Inputs!AC62 -> 0.8927524719 | AD9: =Inputs!AD62 -> 0.8843704478 | AE9: =Inputs!AE62 -> 0.8760672744 | AF9: =Inputs!AF62 -> 0.8678422085 | AG9: =Inputs!AG62 -> 0.859694514 | AH9: =Inputs!AH62 -> 0.8516234618 | AI9: =Inputs!AI62 -> 0.8436283294
E10: Decommissioning baseline | G10: =Inputs!$I$11 -> £m 16/17 prices | K10: =Inputs!K60 -> 0 | L10: =Inputs!L60 -> 0 | M10: =Inputs!M60 -> 0 | N10: =Inputs!N60 -> 0 | O10: =Inputs!O60 -> 0 | P10: =Inputs!P60 -> 0 | Q10: =Inputs!Q60 -> 0 | R10: =Inputs!R60 -> 0 | S10: =Inputs!S60 -> 0 | T10: =Inputs!T60 -> 0 | U10: =Inputs!U60 -> 0 | V10: =Inputs!V60 -> 0 | W10: =Inputs!W60 -> 0 | X10: =Inputs!X60 -> 0 | Y10: =Inputs!Y60 -> 0 | Z10: =Inputs!Z60 -> 0 | AA10: =Inputs!AA60 -> 0 | AB10: =Inputs!AB60 -> 0 | AC10: =Inputs!AC60 -> 0 | AD10: =Inputs!AD60 -> 0 | AE10: =Inputs!AE60 -> 0 | AF10: =Inputs!AF60 -> 0 | AG10: =Inputs!AG60 -> 0 | AH10: =Inputs!AH60 -> 0 | AI10: =Inputs!AI60 -> 26.21038072
E11: RAV depreciation | G11: =Inputs!$I$11 -> £m 16/17 prices | K11: ='Op Rav'!K25 -> 16.16638133 | L11: ='Op Rav'!L25 -> 16.16638133 | M11: ='Op Rav'!M25 -> 16.16638133 | N11: ='Op Rav'!N25 -> 16.16638133 | O11: ='Op Rav'!O25 -> 16.16638133 | P11: ='Op Rav'!P25 -> 16.16638133 | Q11: ='Op Rav'!Q25 -> 16.16638133 | R11: ='Op Rav'!R25 -> 16.30277468 | S11: ='Op Rav'!S25 -> 16.50370514 | T11: ='Op Rav'!T25 -> 16.50370514 | U11: ='Op Rav'!U25 -> 16.57908061 | V11: ='Op Rav'!V25 -> 16.57908061 | W11: ='Op Rav'!W25 -> 16.63217104 | X11: ='Op Rav'!X25 -> 16.72902573 | Y11: ='Op Rav'!Y25 -> 17.08546732 | Z11: ='Op Rav'!Z25 -> 17.08546732 | AA11: ='Op Rav'!AA25 -> 17.08546732 | AB11: ='Op Rav'!AB25 -> 20.02309085 | AC11: ='Op Rav'!AC25 -> 20.02309085 | AD11: ='Op Rav'!AD25 -> 20.02309085 | AE11: ='Op Rav'!AE25 -> 20.24921726 | AF11: ='Op Rav'!AF25 -> 20.86298731 | AG11: ='Op Rav'!AG25 -> 20.86298731 | AH11: ='Op Rav'!AH25 -> 20.86298731 | AI11: ='Op Rav'!AI25 -> 20.86298731
E12: Return (cap) | G12: =Inputs!$I$11 -> £m 16/17 prices | K12: ='Op Rav'!K40 -> 30.90474478 | L12: ='Op Rav'!L40 -> 29.64432785 | M12: ='Op Rav'!M40 -> 28.38391092 | N12: ='Op Rav'!N40 -> 27.12349399 | O12: ='Op Rav'!O40 -> 25.86307705 | P12: ='Op Rav'!P40 -> 24.60266012 | Q12: ='Op Rav'!Q40 -> 23.43422354 | R12: ='Op Rav'!R40 -> 22.39610201 | S12: ='Op Rav'!S40 -> 21.25586383 | T12: ='Op Rav'!T40 -> 20.01150682 | U12: ='Op Rav'!U40 -> 18.76775697 | V12: ='Op Rav'!V40 -> 17.50102146 | W12: ='Op Rav'!W40 -> 16.27793565 | X12: ='Op Rav'!X40 -> 15.17154211 | Y12: ='Op Rav'!Y40 -> 14.01269897 | Z12: ='Op Rav'!Z40 -> 12.68062522 | AA12: ='Op Rav'!AA40 -> 12.22902327 | AB12: ='Op Rav'!AB40 -> 11.73868056 | AC12: ='Op Rav'!AC40 -> 10.17757408 | AD12: ='Op Rav'!AD40 -> 8.658827075 | AE12: ='Op Rav'!AE40 -> 7.227019635 | AF12: ='Op Rav'!AF40 -> 5.7247188 | AG12: ='Op Rav'!AG40 -> 4.098129529 | AH12: ='Op Rav'!AH40 -> 2.471540258 | AI12: ='Op Rav'!AI40 -> 0.8449509862
E13: Unprofiled allowances except tax (cap) | G13: =Inputs!$I$11 -> £m 16/17 prices | K13: =SUM(K8:K12) -> 62.57479001 | L13: =SUM(L8:L12) -> 57.71150695 | M13: 60.42518147 | N13: 58.87119352 | O13: 58.57346877 | P13: 57.26354419 | Q13: 55.90980872 | R13: 56.19276192 | S13: 55.58497239 | T13: 55.26368902 | U13: 53.76628176 | V13: 52.52084351 | W13: 51.372831 | X13: 50.38597613 | Y13: 50.36243162 | Z13: 48.55115583 | AA13: 48.12631108 | AB13: 50.60115511 | AC13: 49.06843688 | AD13: 48.34590521 | AE13: 46.7125772 | AF13: 45.85690653 | AG13: 44.26412251 | AH13: 42.67230676 | AI13: 67.45242562
B15: Profiled allowances except tax (cap)
C17: Annuity parameters
E19: Cap return rate | G19: =Inputs!G68 -> real annual % | I19: =Inputs!I68 -> 0.081
E20: Number of operational years | G20: =Inputs!G89 -> full years | I20: =Inputs!I89 -> 25
E21: Annuity factor (cap) | G21: scalar | I21: =I19 / (1 - (1 + I19)^(-I20)) -> 0.09448027673
E23: Year is within operational period | G23: flag | K23: =AND(K4 > 0, K4<= $I20) -> TRUE | L23: TRUE | M23: TRUE | N23: TRUE | O23: TRUE | P23: TRUE | Q23: TRUE | R23: TRUE | S23: TRUE | T23: TRUE | U23: TRUE | V23: TRUE | W23: TRUE | X23: TRUE | Y23: TRUE | Z23: TRUE | AA23: TRUE | AB23: TRUE | AC23: TRUE | AD23: TRUE | AE23: TRUE | AF23: TRUE | AG23: TRUE | AH23: TRUE | AI23: TRUE
E24: Discount factor to start of operational period (cap) | G24: scalar | K24: =(1 + $I19) ^ - K4 -> 0.9250693802 | L24: 0.8557533582 | M24: 0.7916312287 | N24: 0.7323138101 | O24: 0.6774410824 | P24: 0.6266800022 | Q24: 0.5797224812 | R24: 0.5362835164 | S24: 0.4960994601 | T24: 0.4589264201 | U24: 0.424538779 | V24: 0.3927278252 | W24: 0.3633004858 | X24: 0.3360781552 | Y24: 0.3108956108 | Z24: 0.28760001 | AA24: 0.266049963 | AB24: 0.2461146743 | AC24: 0.2276731492 | AD24: 0.2106134591 | AE24: 0.194832062 | AF24: 0.1802331749 | AG24: 0.1667281914 | AH24: 0.1542351447 | AI24: 0.1426782097
C26: Allowances except tax
E28: Discounted unprofiled allowances except tax (cap) | G28: =Inputs!$I$11 -> £m 16/17 prices | K28: =K13 * K$24 -> 57.88602222 | L28: =L13 * L$24 -> 49.38681588 | M28: 47.83446065 | N28: 43.11218803 | O28: 39.68007408 | P28: 35.885918 | Q28: 32.41217304 | R28: 30.13525196 | S28: 27.5756748 | T28: 25.36196696 | U28: 22.82587161 | V28: 20.62639665 | W28: 18.66377446 | X28: 16.93362591 | Y28: =Y13 * Y$24 -> 15.65745894 | Z28: =Z13 * Z$24 -> 13.9633129 | AA28: 12.80400328 | AB28: 12.45368681 | AC28: 11.17156555 | AD28: 10.18229833 | AE28: 9.101107739 | AF28: 8.264935853 | AG28: 7.380077089 | AH28: 6.581569406 | AI28: 9.623991325
E29: NPV of allowances except tax (cap) | G29: =Inputs!$I$11 -> £m 16/17 prices | I29: =SUM(K28:AI28) -> 585.5042214
E31: Annuity factor (cap) | G31: =G$21 -> scalar | I31: =I$21 -> 0.09448027673
E33: Annuity of allowances except tax (cap) | G33: =Inputs!$I$11 -> £m 16/17 prices | I33: =I29 * I31 -> 55.31860087
E34: Annuitised allowances except tax (cap) | G34: =Inputs!$I$11 -> £m 16/17 prices | K34: =K$23 * $I33 -> 55.31860087 | L34: 55.31860087 | M34: 55.31860087 | N34: 55.31860087 | O34: 55.31860087 | P34: 55.31860087 | Q34: 55.31860087 | R34: 55.31860087 | S34: 55.31860087 | T34: 55.31860087 | U34: 55.31860087 | V34: 55.31860087 | W34: 55.31860087 | X34: =X$23 * $I33 -> 55.31860087 | Y34: =Y$23 * $I33 -> 55.31860087 | Z34: 55.31860087 | AA34: 55.31860087 | AB34: 55.31860087 | AC34: 55.31860087 | AD34: 55.31860087 | AE34: 55.31860087 | AF34: 55.31860087 | AG34: 55.31860087 | AH34: 55.31860087 | AI34: 55.31860087
B36: End of sheet

Sheet Allowances Floor
A1: Allowances Floor | H1: Licence
E2: Parameter | G2: Units | H2: Terminology | I2: Constant | K2: Annual values
E3: Project year | K3: Year 1 | L3: Year 2 | M3: Year 3 | N3: Year 4 | O3: Year 5 | P3: Year 6 | Q3: Year 7 | R3: Year 8 | S3: Year 9 | T3: Year 10 | U3: Year 11 | V3: Year 12 | W3: Year 13 | X3: Year 14 | Y3: Year 15 | Z3: Year 16 | AA3: Year 17 | AB3: Year 18 | AC3: Year 19 | AD3: Year 20 | AE3: Year 21 | AF3: Year 22 | AG3: Year 23 | AH3: Year 24 | AI3: Year 25
E4: Year | K4: 1 | L4: =+K4+1 -> 2 | M4: =+L4+1 -> 3 | N4: 4 | O4: 5 | P4: 6 | Q4: 7 | R4: 8 | S4: 9 | T4: 10 | U4: 11 | V4: 12 | W4: 13 | X4: 14 | Y4: 15 | Z4: 16 | AA4: 17 | AB4: 18 | AC4: 19 | AD4: 20 | AE4: 21 | AF4: 22 | AG4: 23 | AH4: 24 | AI4: 25
B6: Unprofiled allowances except tax (floor)
E8: Controllable Opex | G8: =Inputs!$I$11 -> £m 16/17 prices | K8: =Inputs!K61 -> 14.44214946 | L8: =Inputs!L61 -> 10.85273123 | M8: =Inputs!M61 -> 14.83666599 | N8: =Inputs!N61 -> 14.55284568 | O8: =Inputs!O61 -> 15.5251968 | P8: =Inputs!P61 -> 15.48525721 | Q8: =Inputs!Q61 -> 15.30943636 | R8: =Inputs!R61 -> 16.50350658 | S8: =Inputs!S61 -> 16.84432528 | T8: =Inputs!T61 -> 17.7766119 | U8: =Inputs!U61 -> 17.45670535 | V8: =Inputs!V61 -> 17.48704305 | W8: =Inputs!W61 -> 17.5179813 | X8: =Inputs!X61 -> 17.54953642 | Y8: =Inputs!Y61 -> 18.33718114 | Z8: =Inputs!Z61 -> 17.86668411 | AA8: =Inputs!AA61 -> 17.90206441 | AB8: =Inputs!AB61 -> 17.9381696 | AC8: =Inputs!AC61 -> 17.97501948 | AD8: =Inputs!AD61 -> 18.77961684 | AE8: =Inputs!AE61 -> 18.36027304 | AF8: =Inputs!AF61 -> 18.4013582 | AG8: =Inputs!AG61 -> 18.44331115 | AH8: =Inputs!AH61 -> 18.48615573 | AI8: =Inputs!AI61 -> 18.69047827
E9: Non-controllable Opex (baseline) | G9: =Inputs!$I$11 -> £m 16/17 prices | K9: =Inputs!K62 -> 1.061514449 | L9: =Inputs!L62 -> 1.048066543 | M9: =Inputs!M62 -> 1.038223222 | N9: =Inputs!N62 -> 1.028472525 | O9: =Inputs!O62 -> 1.018813581 | P9: =Inputs!P62 -> 1.009245524 | Q9: =Inputs!Q62 -> 0.9997674965 | R9: =Inputs!R62 -> 0.990378651 | S9: =Inputs!S62 -> 0.9810781464 | T9: =Inputs!T62 -> 0.9718651498 | U9: =Inputs!U62 -> 0.9627388363 | V9: =Inputs!V62 -> 0.953698389 | W9: =Inputs!W62 -> 0.9447429983 | X9: =Inputs!X62 -> 0.9358718625 | Y9: =Inputs!Y62 -> 0.9270841874 | Z9: =Inputs!Z62 -> 0.9183791864 | AA9: =Inputs!AA62 -> 0.9097560802 | AB9: =Inputs!AB62 -> 0.9012140969 | AC9: =Inputs!AC62 -> 0.8927524719 | AD9: =Inputs!AD62 -> 0.8843704478 | AE9: =Inputs!AE62 -> 0.8760672744 | AF9: =Inputs!AF62 -> 0.8678422085 | AG9: =Inputs!AG62 -> 0.859694514 | AH9: =Inputs!AH62 -> 0.8516234618 | AI9: =Inputs!AI62 -> 0.8436283294
E10: Decommissioning baseline | G10: =Inputs!$I$11 -> £m 16/17 prices | K10: =Inputs!K60 -> 0 | L10: =Inputs!L60 -> 0 | M10: =Inputs!M60 -> 0 | N10: =Inputs!N60 -> 0 | O10: =Inputs!O60 -> 0 | P10: =Inputs!P60 -> 0 | Q10: =Inputs!Q60 -> 0 | R10: =Inputs!R60 -> 0 | S10: =Inputs!S60 -> 0 | T10: =Inputs!T60 -> 0 | U10: =Inputs!U60 -> 0 | V10: =Inputs!V60 -> 0 | W10: =Inputs!W60 -> 0 | X10: =Inputs!X60 -> 0 | Y10: =Inputs!Y60 -> 0 | Z10: =Inputs!Z60 -> 0 | AA10: =Inputs!AA60 -> 0 | AB10: =Inputs!AB60 -> 0 | AC10: =Inputs!AC60 -> 0 | AD10: =Inputs!AD60 -> 0 | AE10: =Inputs!AE60 -> 0 | AF10: =Inputs!AF60 -> 0 | AG10: =Inputs!AG60 -> 0 | AH10: =Inputs!AH60 -> 0 | AI10: =Inputs!AI60 -> 26.21038072
E11: RAV depreciation | G11: =Inputs!$I$11 -> £m 16/17 prices | K11: ='Op Rav'!K25 -> 16.16638133 | L11: ='Op Rav'!L25 -> 16.16638133 | M11: ='Op Rav'!M25 -> 16.16638133 | N11: ='Op Rav'!N25 -> 16.16638133 | O11: ='Op Rav'!O25 -> 16.16638133 | P11: ='Op Rav'!P25 -> 16.16638133 | Q11: ='Op Rav'!Q25 -> 16.16638133 | R11: ='Op Rav'!R25 -> 16.30277468 | S11: ='Op Rav'!S25 -> 16.50370514 | T11: ='Op Rav'!T25 -> 16.50370514 | U11: ='Op Rav'!U25 -> 16.57908061 | V11: ='Op Rav'!V25 -> 16.57908061 | W11: ='Op Rav'!W25 -> 16.63217104 | X11: ='Op Rav'!X25 -> 16.72902573 | Y11: ='Op Rav'!Y25 -> 17.08546732 | Z11: ='Op Rav'!Z25 -> 17.08546732 | AA11: ='Op Rav'!AA25 -> 17.08546732 | AB11: ='Op Rav'!AB25 -> 20.02309085 | AC11: ='Op Rav'!AC25 -> 20.02309085 | AD11: ='Op Rav'!AD25 -> 20.02309085 | AE11: ='Op Rav'!AE25 -> 20.24921726 | AF11: ='Op Rav'!AF25 -> 20.86298731 | AG11: ='Op Rav'!AG25 -> 20.86298731 | AH11: ='Op Rav'!AH25 -> 20.86298731 | AI11: ='Op Rav'!AI25 -> 20.86298731
E12: Return (floor) | G12: =Inputs!$I$11 -> £m 16/17 prices | K12: ='Op Rav'!K41 -> -0.8326176449 | L12: ='Op Rav'!L41 -> -0.7986325222 | M12: ='Op Rav'!M41 -> -0.7646473995 | N12: ='Op Rav'!N41 -> -0.7306622768 | O12: ='Op Rav'!O41 -> -0.6966771541 | P12: ='Op Rav'!P41 -> -0.6626920314 | Q12: ='Op Rav'!Q41 -> -0.6312901678 | R12: ='Op Rav'!R41 -> -0.6033335214 | S12: ='Op Rav'!S41 -> -0.5724368591 | T12: ='Op Rav'!T41 -> -0.538932273 | U12: ='Op Rav'!U41 -> -0.5053458778 | V12: ='Op Rav'!V41 -> -0.4712193842 | W12: ='Op Rav'!W41 -> -0.4382584405 | X12: ='Op Rav'!X41 -> -0.4085381519 | Y12: ='Op Rav'!Y41 -> -0.3771120818 | Z12: ='Op Rav'!Z41 -> -0.3411948477 | AA12: ='Op Rav'!AA41 -> -0.3300055799 | AB12: ='Op Rav'!AB41 -> -0.3156733877 | AC12: ='Op Rav'!AC41 -> -0.2735806531 | AD12: ='Op Rav'!AD41 -> -0.2326775804 | AE12: ='Op Rav'!AE41 -> -0.1941173361 | AF12: ='Op Rav'!AF41 -> -0.1534812558 | AG12: ='Op Rav'!AG41 -> -0.1096228828 | AH12: ='Op Rav'!AH41 -> -0.06576450974 | AI12: ='Op Rav'!AI41 -> -0.02190613668
E13: Unprofiled allowances except tax (floor) | G13: =Inputs!$I$11 -> £m 16/17 prices | K13: =SUM(K8:K12) -> 30.83742759 | L13: 27.26854658 | M13: 31.27662315 | N13: 31.01703726 | O13: 32.01371456 | P13: 31.99819204 | Q13: 31.84429502 | R13: 33.19332639 | S13: 33.75667171 | T13: 34.71324992 | U13: 34.49317891 | V13: 34.54860267 | W13: 34.6566369 | X13: 34.80589586 | Y13: 35.97262057 | Z13: 35.52933577 | AA13: 35.56728223 | AB13: 38.54680116 | AC13: 38.61728215 | AD13: 39.45440056 | AE13: 39.29144023 | AF13: 39.97870647 | AG13: 40.0563701 | AH13: 40.13500199 | AI13: 66.5855685
B15: Profiled allowances except tax (floor)
C17: Annuity parameters
E19: Floor return rate | G19: =Inputs!G69 -> real annual % | I19: =Inputs!I69 -> -0.0021
E20: Number of operational years | G20: =Inputs!G89 -> full years | I20: =Inputs!I89 -> 25
E21: Annuity factor (floor) | G21: scalar | I21: =I19 / (1 - (1 + I19)^(-I20)) -> 0.03891718202
E23: Year is within operational period | G23: flag | K23: =AND(K4 > 0, K4<= $I20) -> TRUE | L23: TRUE | M23: TRUE | N23: TRUE | O23: TRUE | P23: TRUE | Q23: TRUE | R23: TRUE | S23: TRUE | T23: TRUE | U23: TRUE | V23: TRUE | W23: TRUE | X23: TRUE | Y23: TRUE | Z23: TRUE | AA23: TRUE | AB23: TRUE | AC23: TRUE | AD23: TRUE | AE23: TRUE | AF23: TRUE | AG23: TRUE | AH23: TRUE | AI23: TRUE
E24: Discount factor to start of operational period (floor) | G24: scalar | K24: =(1 + $I19) ^ - K4 -> 1.002104419 | L24: 1.004213267 | M24: 1.006326553 | N24: 1.008444286 | O24: 1.010566476 | P24: 1.012693131 | Q24: 1.014824262 | R24: 1.016959878 | S24: 1.019099988 | T24: 1.021244601 | U24: 1.023393728 | V24: 1.025547378 | W24: 1.027705559 | X24: 1.029868283 | Y24: 1.032035557 | Z24: 1.034207393 | AA24: 1.036383799 | AB24: 1.038564785 | AC24: 1.040750361 | AD24: 1.042940536 | AE24: 1.04513532 | AF24: 1.047334723 | AG24: 1.049538754 | AH24: 1.051747424 | AI24: 1.053960742
C26: Allowances except tax
E28: Discounted unprofiled allowances except tax (floor) | G28: =Inputs!$I$11 -> £m 16/17 prices | K28: =K13 * K$24 -> 30.90232247 | L28: =L13 * L$24 -> 27.38343625 | M28: 31.47449636 | N28: 31.27895399 | O28: 32.35198669 | P28: 32.40434928 | Q28: 32.31636319 | R28: 33.75628115 | S28: 34.40142372 | T28: 35.45071908 | U28: 35.30010297 | V28: 35.43122887 | W28: 35.61681841 | X28: =X13 * X$24 -> 35.8454882 | Y28: 37.12502352 | Z28: 36.74470172 | AA28: 36.86135508 | AB28: 40.03335026 | AC28: 40.19095033 | AD28: 41.14859366 | AE28: 41.06487196 | AF28: 41.87108747 | AG28: 42.04071278 | AH28: 42.21188496 | AI28: 70.17857515
E29: NPV of allowances except tax (floor) | G29: =Inputs!$I$11 -> £m 16/17 prices | I29: =SUM(K28:AI28) -> 933.3850775
E31: Annuity factor (floor) | G31: =G$21 -> scalar | I31: =I$21 -> 0.03891718202
E33: Annuity of allowances except tax (floor) | G33: =Inputs!$I$11 -> £m 16/17 prices | I33: =I29 * I31 -> 36.32471696
E34: Annuitised allowances except tax (floor) | G34: =Inputs!$I$11 -> £m 16/17 prices | K34: =K$23 * $I33 -> 36.32471696 | L34: 36.32471696 | M34: 36.32471696 | N34: 36.32471696 | O34: 36.32471696 | P34: 36.32471696 | Q34: 36.32471696 | R34: 36.32471696 | S34: 36.32471696 | T34: 36.32471696 | U34: 36.32471696 | V34: 36.32471696 | W34: 36.32471696 | X34: =X$23 * $I33 -> 36.32471696 | Y34: 36.32471696 | Z34: 36.32471696 | AA34: 36.32471696 | AB34: 36.32471696 | AC34: 36.32471696 | AD34: 36.32471696 | AE34: 36.32471696 | AF34: 36.32471696 | AG34: 36.32471696 | AH34: 36.32471696 | AI34: 36.32471696
B36: End of sheet

Sheet Tax Deductions
A1: Tax Deductions | H1: Licence
E2: Parameter | G2: Units | H2: Terminology | I2: Constant | K2: Annual values
E3: Project year | K3: Year 1 | L3: Year 2 | M3: Year 3 | N3: Year 4 | O3: Year 5 | P3: Year 6 | Q3: Year 7 | R3: Year 8 | S3: Year 9 | T3: Year 10 | U3: Year 11 | V3: Year 12 | W3: Year 13 | X3: Year 14 | Y3: Year 15 | Z3: Year 16 | AA3: Year 17 | AB3: Year 18 | AC3: Year 19 | AD3: Year 20 | AE3: Year 21 | AF3: Year 22 | AG3: Year 23 | AH3: Year 24 | AI3: Year 25
B5: Tax deductions
C7: Inflation
E9: =Inputs!E119 -> UK RPI uplift from 2016/17 term to start of regime | G9: scalar | I9: =Inputs!I119 -> 1.145296575
E10: =Inputs!E116 -> Long-term expected UK RPI inflation | G10: % | I10: =Inputs!I116 -> 0.0324
E11: Forecast UK inflation uplift | G11: scalar | K11: =I9*(1+$I$10)^0.5 -> 1.16370248 | L11: =K11*(1+$I$10) -> 1.20140644 | M11: =L11*(1+$I$10) -> 1.240332009 | N11: 1.280518766 | O11: 1.322007574 | P11: 1.364840619 | Q11: 1.409061456 | R11: 1.454715047 | S11: 1.501847814 | T11: 1.550507683 | U11: 1.600744132 | V11: 1.652608242 | W11: 1.706152749 | X11: 1.761432098 | Y11: 1.818502498 | Z11: 1.877421979 | AA11: 1.938250451 | AB11: 2.001049766 | AC11: 2.065883778 | AD11: 2.132818413 | AE11: 2.201921729 | AF11: 2.273263993 | AG11: 2.346917747 | AH11: 2.422957882 | AI11: 2.501461717
C13: Total tax deductions
E15: Revenue pool additions | G15: £m nominal | K15: =K27 -> 18.04165213 | L15: 14.29769509 | M15: 19.69013323 | N15: 19.95217036 | O15: 21.87130703 | P15: 22.51236733 | Q15: 22.98067052 | R15: 25.44861807 | S15: 26.77104317 | T15: 29.06965772 | U15: 29.4848172 | V15: 30.4753213 | W15: 31.50022782 | X15: 32.56079149 | Y15: 35.03211463 | Z15: 35.26749072 | AA15: 36.46201956 | AB15: 37.69854434 | AC15: 38.97862401 | AD15: 41.93971416 | AE15: 42.35691573 | AF15: 43.80397948 | AG15: 45.30256657 | AH15: 46.8546245 | AI15: 48.86381983
E16: Capital allowances | G16: £m nominal | K16: =K42 -> 27.69659461 | L16: 25.48086704 | M16: 23.44239768 | N16: 21.56700586 | O16: 19.8416454 | P16: 18.25431376 | Q16: 17.07071738 | R16: 16.10258331 | S16: 14.81437665 | T16: 13.76947081 | U16: 12.66791314 | V16: 11.74572729 | W16: 10.96470805 | X16: 10.64003734 | Y16: 9.788834351 | Z16: 9.005727603 | AA16: 11.92933348 | AB16: 10.9749868 | AC16: 10.09698786 | AD16: 9.482143453 | AE16: 9.156043538 | AF16: 8.423560055 | AG16: 7.74967525 | AH16: 7.12970123 | AI16: 81.99156415
E17: Interest payable | G17: £m nominal | K17: =K58 -> 6.996923054 | L17: 6.805596102 | M17: 6.608484962 | N17: 6.405414765 | O17: 6.196205359 | P17: 5.980671142 | Q17: 5.758620903 | R17: 5.52985765 | S17: 5.294178436 | T17: 5.051374177 | U17: 4.80122947 | V17: 4.543522397 | W17: 4.278024335 | X17: 4.004499746 | Y17: 3.722705973 | Z17: 3.432393021 | AA17: 3.13330334 | AB17: 2.825171592 | AC17: 2.507724417 | AD17: 2.180680192 | AE17: 1.843748779 | AF17: 1.496631269 | AG17: 1.139019716 | AH17: 0.7705968647 | AI17: 0.3910358688
E18: Debt transaction costs | G18: £m nominal | K18: =SUMPRODUCT(Finance!K39:AX39,Inputs!K107:AX107)+SUMPRODUCT(Finance!K41:AX41,Inputs!K107:AX107) -> 4.868356798
E19: Total tax deductions | G19: £m nominal | K19: =SUM(K15:K18) -> 57.6035266 | L19: 46.58415823 | M19: 49.74101587 | N19: 47.92459099 | O19: 47.90915778 | P19: 46.74735224 | Q19: 45.8100088 | R19: 47.08105903 | S19: =SUM(S15:S18) -> 46.87959826 | T19: 47.89050271 | U19: 46.95395981 | V19: 46.76457099 | W19: 46.74296021 | X19: 47.20532858 | Y19: 48.54365495 | Z19: 47.70561134 | AA19: 51.52465638 | AB19: 51.49870273 | AC19: 51.58333628 | AD19: 53.60253781 | AE19: 53.35670804 | AF19: 53.7241708 | AG19: 54.19126154 | AH19: 54.75492259 | AI19: 131.2464198
B21: Tax pools
C23: Revenue pool
E25: Controllable Opex | G25: £m nominal | K25: =Inputs!K61* K$11 -> 16.80636514 | L25: =Inputs!L61* L$11 -> 13.03854119 | M25: =Inputs!M61* M$11 -> 18.40239174 | N25: =Inputs!N61* N$11 -> 18.63519199 | O25: =Inputs!O61* O$11 -> 20.52442776 | P25: =Inputs!P61* P$11 -> 21.13490805 | Q25: =Inputs!Q61* Q$11 -> 21.57193668 | R25: =Inputs!R61* R$11 -> 24.00789934 | S25: =Inputs!S61* S$11 -> 25.2976131 | T25: =Inputs!T61* T$11 -> 27.56277334 | U25: =Inputs!U61* U$11 -> 27.94371865 | V25: =Inputs!V61* V$11 -> 28.89923148 | W25: =Inputs!W61* W$11 -> 29.88835196 | X25: =Inputs!X61* X$11 -> 30.91231675 | Y25: =Inputs!Y61* Y$11 -> 33.34620972 | Z25: =Inputs!Z61* Z$11 -> 33.54330545 | AA25: =Inputs!AA61* AA$11 -> 34.69868443 | AB25: =Inputs!AB61* AB$11 -> 35.89517008 | AC25: =Inputs!AC61* AC$11 -> 37.13430116 | AD25: =Inputs!AD61* AD$11 -> 40.05351259 | AE25: =Inputs!AE61* AE$11 -> 40.42788416 | AF25: =Inputs!AF61* AF$11 -> 41.83114503 | AG25: =Inputs!AG61* AG$11 -> 43.28493426 | AH25: =Inputs!AH61* AH$11 -> 44.79117672 | AI25: =Inputs!AI61* AI$11 -> 46.75351586
E26: Non-controllable Opex (baseline) | G26: £m nominal | K26: =Inputs!K62* K$11 -> 1.235286997 | L26: =Inputs!L62* L$11 -> 1.259153895 | M26: =Inputs!M62* M$11 -> 1.287741494 | N26: =Inputs!N62* N$11 -> 1.316978369 | O26: =Inputs!O62* O$11 -> 1.34687927 | P26: =Inputs!P62* P$11 -> 1.377459286 | Q26: =Inputs!Q62* Q$11 -> 1.408733844 | R26: =Inputs!R62* R$11 -> 1.440718726 | S26: =Inputs!S62* S$11 -> 1.47343007 | T26: =Inputs!T62* T$11 -> 1.506884382 | U26: =Inputs!U62* U$11 -> 1.541098543 | V26: =Inputs!V62* V$11 -> 1.576089818 | W26: =Inputs!W62* W$11 -> 1.611875864 | X26: =Inputs!X62* X$11 -> 1.648474739 | Y26: =Inputs!Y62* Y$11 -> 1.685904911 | Z26: =Inputs!Z62* Z$11 -> 1.72418527 | AA26: =Inputs!AA62* AA$11 -> 1.763335133 | AB26: =Inputs!AB62* AB$11 -> 1.803374258 | AC26: =Inputs!AC62* AC$11 -> 1.84432285 | AD26: =Inputs!AD62* AD$11 -> 1.886201575 | AE26: =Inputs!AE62* AE$11 -> 1.929031568 | AF26: =Inputs!AF62* AF$11 -> 1.972834445 | AG26: =Inputs!AG62* AG$11 -> 2.017632312 | AH26: =Inputs!AH62* AH$11 -> 2.063447779 | AI26: =Inputs!AI62* AI$11 -> 2.11030397
E27: Revenue pool additions | G27: £m nominal | K27: =SUM(K25:K26) -> 18.04165213 | L27: 14.29769509 | M27: 19.69013323 | N27: 19.95217036 | O27: 21.87130703 | P27: 22.51236733 | Q27: 22.98067052 | R27: 25.44861807 | S27: 26.77104317 | T27: 29.06965772 | U27: 29.4848172 | V27: 30.4753213 | W27: 31.50022782 | X27: 32.56079149 | Y27: 35.03211463 | Z27: 35.26749072 | AA27: 36.46201956 | AB27: 37.69854434 | AC27: 38.97862401 | AD27: 41.93971416 | AE27: 42.35691573 | AF27: 43.80397948 | AG27: 45.30256657 | AH27: 46.8546245 | AI27: 48.86381983
C29: Capital allowance pool
E31: Capital allowance rate (declining balance) | G31: =Inputs!G114 -> % | K31: =Inputs!K114 -> 0.08 | L31: =Inputs!L114 -> 0.08 | M31: =Inputs!M114 -> 0.08 | N31: =Inputs!N114 -> 0.08 | O31: =Inputs!O114 -> 0.08 | P31: =Inputs!P114 -> 0.08 | Q31: =Inputs!Q114 -> 0.08 | R31: =Inputs!R114 -> 0.08 | S31: =Inputs!S114 -> 0.08 | T31: =Inputs!T114 -> 0.08 | U31: =Inputs!U114 -> 0.08 | V31: =Inputs!V114 -> 0.08 | W31: =Inputs!W114 -> 0.08 | X31: =Inputs!X114 -> 0.08 | Y31: =Inputs!Y114 -> 0.08 | Z31: =Inputs!Z114 -> 0.08 | AA31: =Inputs!AA114 -> 0.08 | AB31: =Inputs!AB114 -> 0.08 | AC31: =Inputs!AC114 -> 0.08 | AD31: =Inputs!AD114 -> 0.08 | AE31: =Inputs!AE114 -> 0.08 | AF31: =Inputs!AF114 -> 0.08 | AG31: =Inputs!AG114 -> 0.08 | AH31: =Inputs!AH114 -> 0.08 | AI31: =Inputs!AI114 -> 0.08
E32: Number of operational years | G32: =Inputs!G89 -> full years | I32: =Inputs!I89 -> 25
E34: Opening balance brought forward | G34: £m nominal | K34: =J40 -> 0 | L34: 318.510838 | M34: 293.029971 | N34: 269.5875733 | O34: 248.0205674 | P34: 228.178922 | Q34: 209.9246083 | R34: 196.3132498 | S34: 185.1797081 | T34: 170.3653315 | U34: 158.3489143 | V34: 145.6810012 | W34: 135.0758638 | X34: 126.0941426 | Y34: 122.3604294 | Z34: 112.571595 | AA34: 103.5658674 | AB34: 137.187335 | AC34: 126.2123482 | AD34: 116.1153603 | AE34: 109.0446497 | AF34: 105.2945007 | AG34: 96.87094063 | AH34: 89.12126538 | AI34: 81.99156415
E35: Capex | G35: £m nominal | K35: =SUMPRODUCT('Pre Op RAV'!K19:AX19,Inputs!K107:AX107) -> 346.2074326
E36: Replacement Capex | G36: £m nominal | K36: ='Op Rav'!K13 * K$11 -> 0 | L36: ='Op Rav'!L13 * L$11 -> 0 | M36: ='Op Rav'!M13 * M$11 -> 0 | N36: ='Op Rav'!N13 * N$11 -> 0 | O36: ='Op Rav'!O13 * O$11 -> 0 | P36: ='Op Rav'!P13 * P$11 -> 0 | Q36: ='Op Rav'!Q13 * Q$11 -> 3.459358929 | R36: ='Op Rav'!R13 * R$11 -> 4.969041589 | S36: ='Op Rav'!S13 * S$11 -> 0 | T36: ='Op Rav'!T13 * T$11 -> 1.753053651 | U36: ='Op Rav'!U13 * U$11 -> 0 | V36: ='Op Rav'!V13 * V$11 -> 1.140589946 | W36: ='Op Rav'!W13 * W$11 -> 1.9829868 | X36: ='Op Rav'!X13 * X$11 -> 6.906324153 | Y36: ='Op Rav'!Y13 * Y$11 -> 0 | Z36: ='Op Rav'!Z13 * Z$11 -> 0 | AA36: ='Op Rav'!AA13 * AA$11 -> 45.55080105 | AB36: ='Op Rav'!AB13 * AB$11 -> 0 | AC36: ='Op Rav'!AC13 * AC$11 -> 0 | AD36: ='Op Rav'!AD13 * AD$11 -> 2.411432814 | AE36: ='Op Rav'!AE13 * AE$11 -> 5.405894517 | AF36: ='Op Rav'!AF13 * AF$11 -> 0 | AG36: ='Op Rav'!AG13 * AG$11 -> 0 | AH36: ='Op Rav'!AH13 * AH$11 -> 0 | AI36: ='Op Rav'!AI13 * AI$11 -> 0
E37: Tax book value pre-depreciation | G37: £m nominal | K37: =SUM(K34:K36) -> 346.2074326 | L37: 318.510838 | M37: 293.029971 | N37: 269.5875733 | O37: 248.0205674 | P37: 228.178922 | Q37: 213.3839672 | R37: 201.2822914 | S37: 185.1797081 | T37: 172.1183851 | U37: 158.3489143 | V37: 146.8215911 | W37: 137.0588506 | X37: 133.0004667 | Y37: 122.3604294 | Z37: 112.571595 | AA37: 149.1166685 | AB37: 137.187335 | AC37: 126.2123482 | AD37: 118.5267932 | AE37: 114.4505442 | AF37: 105.2945007 | AG37: 96.87094063 | AH37: 89.12126538 | AI37: 81.99156415
E38: Capital allowance (reducing balance) | G38: £m nominal | K38: =-K37 * K31 -> -27.69659461 | L38: =-L37 * L31 -> -25.48086704 | M38: =-M37 * M31 -> -23.44239768 | N38: -21.56700586 | O38: -19.8416454 | P38: -18.25431376 | Q38: -17.07071738 | R38: -16.10258331 | S38: -14.81437665 | T38: -13.76947081 | U38: -12.66791314 | V38: -11.74572729 | W38: -10.96470805 | X38: -10.64003734 | Y38: -9.788834351 | Z38: -9.005727603 | AA38: -11.92933348 | AB38: -10.9749868 | AC38: -10.09698786 | AD38: -9.482143453 | AE38: -9.156043538 | AF38: -8.423560055 | AG38: -7.74967525 | AH38: -7.12970123 | AI38: -6.559325132
E39: Write-back allowance | G39: £m nominal | AI39: =-SUM(AI37:AI38) -> -75.43223902
E40: Closing balance carried forward | G40: £m nominal | K40: =SUM(K37:K39) -> 318.510838 | L40: =SUM(L37:L39) -> 293.029971 | M40: 269.5875733 | N40: 248.0205674 | O40: 228.178922 | P40: 209.9246083 | Q40: 196.3132498 | R40: 185.1797081 | S40: 170.3653315 | T40: 158.3489143 | U40: 145.6810012 | V40: 135.0758638 | W40: 126.0941426 | X40: 122.3604294 | Y40: 112.571595 | Z40: 103.5658674 | AA40: 137.187335 | AB40: 126.2123482 | AC40: 116.1153603 | AD40: 109.0446497 | AE40: 105.2945007 | AF40: 96.87094063 | AG40: 89.12126538 | AH40: 81.99156415 | AI40: =SUM(AI37:AI39) -> 0
E42: Capital allowances | G42: £m nominal | K42: =-(K38 + K39) -> 27.69659461 | L42: =-(L38 + L39) -> 25.48086704 | M42: 23.44239768 | N42: 21.56700586 | O42: 19.8416454 | P42: 18.25431376 | Q42: 17.07071738 | R42: 16.10258331 | S42: 14.81437665 | T42: 13.76947081 | U42: 12.66791314 | V42: =-(V38 + V39) -> 11.74572729 | W42: 10.96470805 | X42: 10.64003734 | Y42: 9.788834351 | Z42: 9.005727603 | AA42: 11.92933348 | AB42: 10.9749868 | AC42: 10.09698786 | AD42: 9.482143453 | AE42: 9.156043538 | AF42: 8.423560055 | AG42: 7.74967525 | AH42: 7.12970123 | AI42: 81.99156415
B44: Interest
C46: Cost of debt
E48: Cost of debt (for tax) | G48: =Inputs!G69 -> real annual % | I48: =Inputs!I71 -> -0.0021
E49: Expected UK RPI inflation | G49: =Inputs!G116 -> % | I49: =Inputs!I116 -> 0.0324
E50: Cost of debt (for tax) | G50: nominal annual % | I50: =(1 + I48) * (1 + I$49) - 1 -> 0.03023196
C52: Net debt
E54: Number of operational years | G54: =Inputs!G89 -> full years | I54: =Inputs!I89 -> 25
E55: Operational notional gearing | G55: =Inputs!G74 -> % | I55: =Inputs!I74 -> 0.5
E57: Principal repayments | G57: £m nominal | K57: =K59 - K58 -> 6.328632071 | L57: =L59 - L58 -> 6.519959023 | M57: 6.717070163 | N57: 6.92014036 | O57: 7.129349767 | P57: 7.344883984 | Q57: 7.566934222 | R57: 7.795697475 | S57: 8.031376689 | T57: 8.274180948 | U57: 8.524325656 | V57: 8.782032728 | W57: 9.04753079 | X57: 9.321055379 | Y57: 9.602849152 | Z57: 9.893162104 | AA57: 10.19225178 | AB57: 10.50038353 | AC57: 10.81783071 | AD57: 11.14487493 | AE57: 11.48180635 | AF57: 11.82892386 | AG57: 12.18653541 | AH57: 12.55495826 | AI57: 12.93451926
E58: Net interest paid | G58: £m nominal | K58: =$I50 * K61 -> 6.996923054 | L58: 6.805596102 | M58: 6.608484962 | N58: 6.405414765 | O58: 6.196205359 | P58: 5.980671142 | Q58: 5.758620903 | R58: 5.52985765 | S58: 5.294178436 | T58: 5.051374177 | U58: 4.80122947 | V58: 4.543522397 | W58: 4.278024335 | X58: 4.004499746 | Y58: 3.722705973 | Z58: 3.432393021 | AA58: 3.13330334 | AB58: 2.825171592 | AC58: 2.507724417 | AD58: 2.180680192 | AE58: 1.843748779 | AF58: 1.496631269 | AG58: 1.139019716 | AH58: 0.7705968647 | AI58: 0.3910358688
E59: Total | G59: £m nominal | K59: =$K$61*$I50/(1-(1+$I50)^(-$I54)) -> 13.32555513 | L59: =$K$61*$I50/(1-(1+$I50)^(-$I54)) -> 13.32555513 | M59: 13.32555513 | N59: 13.32555513 | O59: 13.32555513 | P59: 13.32555513 | Q59: 13.32555513 | R59: 13.32555513 | S59: 13.32555513 | T59: 13.32555513 | U59: 13.32555513 | V59: 13.32555513 | W59: 13.32555513 | X59: 13.32555513 | Y59: 13.32555513 | Z59: 13.32555513 | AA59: 13.32555513 | AB59: 13.32555513 | AC59: 13.32555513 | AD59: 13.32555513 | AE59: 13.32555513 | AF59: 13.32555513 | AG59: 13.32555513 | AH59: 13.32555513 | AI59: 13.32555513
E61: Opening net debt | G61: £m nominal | K61: ='Op Rav'!K12*I9*I55 -> 231.4412646 | L61: =K63 -> 225.1126325 | M61: =L63 -> 218.5926735 | N61: 211.8756033 | O61: 204.955463 | P61: 197.8261132 | Q61: 190.4812292 | R61: 182.914295 | S61: 175.1185975 | T61: 167.0872208 | U61: 158.8130399 | V61: 150.2887142 | W61: 141.5066815 | X61: 132.4591507 | Y61: 123.1380953 | Z61: 113.5352462 | AA61: 103.6420841 | AB61: 93.4498323 | AC61: 82.94944877 | AD61: 72.13161806 | AE61: 60.98674313 | AF61: 49.50493678 | AG61: 37.67601293 | AH61: 25.48947752 | AI61: 12.93451926
E62: Less principal repayment | G62: £m nominal | K62: =IF(K3 = "Year "&$I54, -K61, -K57) -> -6.328632071 | L62: -6.519959023 | M62: -6.717070163 | N62: -6.92014036 | O62: -7.129349767 | P62: -7.344883984 | Q62: -7.566934222 | R62: -7.795697475 | S62: -8.031376689 | T62: -8.274180948 | U62: -8.524325656 | V62: -8.782032728 | W62: -9.04753079 | X62: -9.321055379 | Y62: -9.602849152 | Z62: -9.893162104 | AA62: -10.19225178 | AB62: -10.50038353 | AC62: -10.81783071 | AD62: -11.14487493 | AE62: -11.48180635 | AF62: -11.82892386 | AG62: -12.18653541 | AH62: -12.55495826 | AI62: =IF(AI3 = "Year "&$I54, -AI61, -AI57) -> -12.93451926
E63: Closing net debt | G63: £m nominal | K63: =SUM(K61:K62) -> 225.1126325 | L63: =SUM(L61:L62) -> 218.5926735 | M63: 211.8756033 | N63: 204.955463 | O63: 197.8261132 | P63: 190.4812292 | Q63: 182.914295 | R63: 175.1185975 | S63: 167.0872208 | T63: 158.8130399 | U63: 150.2887142 | V63: 141.5066815 | W63: 132.4591507 | X63: =SUM(X61:X62) -> 123.1380953 | Y63: =SUM(Y61:Y62) -> 113.5352462 | Z63: 103.6420841 | AA63: 93.4498323 | AB63: 82.94944877 | AC63: 72.13161806 | AD63: 60.98674313 | AE63: 49.50493678 | AF63: 37.67601293 | AG63: 25.48947752 | AH63: 12.93451926 | AI63: 0
B65: End of sheet

Sheet Tax Cap
A1: Tax Cap | H1: Licence
E2: Parameter | G2: Units | H2: Terminology | I2: Constant | K2: Annual values
E3: Project year | K3: Year 1 | L3: Year 2 | M3: Year 3 | N3: Year 4 | O3: Year 5 | P3: Year 6 | Q3: Year 7 | R3: Year 8 | S3: Year 9 | T3: Year 10 | U3: Year 11 | V3: Year 12 | W3: Year 13 | X3: Year 14 | Y3: Year 15 | Z3: Year 16 | AA3: Year 17 | AB3: Year 18 | AC3: Year 19 | AD3: Year 20 | AE3: Year 21 | AF3: Year 22 | AG3: Year 23 | AH3: Year 24 | AI3: Year 25
B5: Unprofiled tax allowance (cap)
C7: Profits attributable to corporation tax
E9: Annuitised allowances except tax (cap) | G9: £m nominal prices | K9: ='Allowances Cap'!K34* 'Tax Deductions'!K$11 -> 64.37439302 | L9: ='Allowances Cap'!L34* 'Tax Deductions'!L$11 -> 66.46012335 | M9: ='Allowances Cap'!M34* 'Tax Deductions'!M$11 -> 68.61343135 | N9: ='Allowances Cap'!N34* 'Tax Deductions'!N$11 -> 70.83650653 | O9: ='Allowances Cap'!O34* 'Tax Deductions'!O$11 -> 73.13160934 | P9: ='Allowances Cap'!P34* 'Tax Deductions'!P$11 -> 75.50107348 | Q9: ='Allowances Cap'!Q34* 'Tax Deductions'!Q$11 -> 77.94730826 | R9: ='Allowances Cap'!R34* 'Tax Deductions'!R$11 -> 80.47280105 | S9: ='Allowances Cap'!S34* 'Tax Deductions'!S$11 -> 83.0801198 | T9: ='Allowances Cap'!T34* 'Tax Deductions'!T$11 -> 85.77191569 | U9: ='Allowances Cap'!U34* 'Tax Deductions'!U$11 -> 88.55092575 | V9: ='Allowances Cap'!V34* 'Tax Deductions'!V$11 -> 91.41997575 | W9: ='Allowances Cap'!W34* 'Tax Deductions'!W$11 -> 94.38198296 | X9: ='Allowances Cap'!X34* 'Tax Deductions'!X$11 -> 97.43995921 | Y9: ='Allowances Cap'!Y34* 'Tax Deductions'!Y$11 -> 100.5970139 | Z9: ='Allowances Cap'!Z34* 'Tax Deductions'!Z$11 -> 103.8563571 | AA9: ='Allowances Cap'!AA34* 'Tax Deductions'!AA$11 -> 107.2213031 | AB9: ='Allowances Cap'!AB34* 'Tax Deductions'!AB$11 -> 110.6952733 | AC9: ='Allowances Cap'!AC34* 'Tax Deductions'!AC$11 -> 114.2818002 | AD9: ='Allowances Cap'!AD34* 'Tax Deductions'!AD$11 -> 117.9845305 | AE9: ='Allowances Cap'!AE34* 'Tax Deductions'!AE$11 -> 121.8072293 | AF9: ='Allowances Cap'!AF34* 'Tax Deductions'!AF$11 -> 125.7537835 | AG9: ='Allowances Cap'!AG34* 'Tax Deductions'!AG$11 -> 129.8282061 | AH9: ='Allowances Cap'!AH34* 'Tax Deductions'!AH$11 -> 134.03464 | AI9: ='Allowances Cap'!AI34* 'Tax Deductions'!AI$11 -> 138.3773623
E10: Less tax deductions | G10: £m nominal prices | K10: =-'Tax Deductions'!K19 -> -57.6035266 | L10: =-'Tax Deductions'!L19 -> -46.58415823 | M10: =-'Tax Deductions'!M19 -> -49.74101587 | N10: =-'Tax Deductions'!N19 -> -47.92459099 | O10: =-'Tax Deductions'!O19 -> -47.90915778 | P10: =-'Tax Deductions'!P19 -> -46.74735224 | Q10: =-'Tax Deductions'!Q19 -> -45.8100088 | R10: =-'Tax Deductions'!R19 -> -47.08105903 | S10: =-'Tax Deductions'!S19 -> -46.87959826 | T10: =-'Tax Deductions'!T19 -> -47.89050271 | U10: =-'Tax Deductions'!U19 -> -46.95395981 | V10: =-'Tax Deductions'!V19 -> -46.76457099 | W10: =-'Tax Deductions'!W19 -> -46.74296021 | X10: =-'Tax Deductions'!X19 -> -47.20532858 | Y10: =-'Tax Deductions'!Y19 -> -48.54365495 | Z10: =-'Tax Deductions'!Z19 -> -47.70561134 | AA10: =-'Tax Deductions'!AA19 -> -51.52465638 | AB10: =-'Tax Deductions'!AB19 -> -51.49870273 | AC10: =-'Tax Deductions'!AC19 -> -51.58333628 | AD10: =-'Tax Deductions'!AD19 -> -53.60253781 | AE10: =-'Tax Deductions'!AE19 -> -53.35670804 | AF10: =-'Tax Deductions'!AF19 -> -53.7241708 | AG10: =-'Tax Deductions'!AG19 -> -54.19126154 | AH10: =-'Tax Deductions'!AH19 -> -54.75492259 | AI10: =-'Tax Deductions'!AI19 -> -131.2464198
E11: Profits attributable to corporation tax | G11: £m nominal prices | K11: =SUM(K9:K10) -> 6.770866424 | L11: =SUM(L9:L10) -> 19.87596512 | M11: 18.87241548 | N11: 22.91191554 | O11: 25.22245156 | P11: 28.75372124 | Q11: 32.13729946 | R11: 33.39174202 | S11: 36.20052155 | T11: 37.88141298 | U11: 41.59696594 | V11: 44.65540476 | W11: 47.63902275 | X11: 50.23463063 | Y11: 52.05335894 | Z11: 56.1507458 | AA11: 55.69664673 | AB11: 59.1965706 | AC11: 62.69846391 | AD11: 64.38199271 | AE11: 68.45052126 | AF11: 72.02961273 | AG11: 75.63694458 | AH11: 79.2797174 | AI11: 7.130942485
C13: Tax losses
E15: Taxable losses brought forward | G15: £m nominal prices | K15: =J18 -> 0 | L15: =K18 -> 0 | M15: 0 | N15: 0 | O15: 0 | P15: 0 | Q15: 0 | R15: 0 | S15: 0 | T15: 0 | U15: 0 | V15: 0 | W15: 0 | X15: 0 | Y15: 0 | Z15: 0 | AA15: 0 | AB15: 0 | AC15: 0 | AD15: 0 | AE15: 0 | AF15: 0 | AG15: 0 | AH15: 0 | AI15: 0
E16: In-year taxable loss | G16: £m nominal prices | K16: =MIN(K11, 0) -> 0 | L16: 0 | M16: 0 | N16: 0 | O16: 0 | P16: 0 | Q16: 0 | R16: 0 | S16: 0 | T16: 0 | U16: 0 | V16: 0 | W16: 0 | X16: 0 | Y16: 0 | Z16: 0 | AA16: 0 | AB16: 0 | AC16: 0 | AD16: 0 | AE16: 0 | AF16: 0 | AG16: 0 | AH16: 0 | AI16: 0
E17: Profits used to offset losses | G17: £m nominal prices | K17: =IF(K11 >= 0, MIN(K11, -K15), 0) -> 0 | L17: 0 | M17: 0 | N17: 0 | O17: 0 | P17: 0 | Q17: 0 | R17: 0 | S17: 0 | T17: 0 | U17: 0 | V17: 0 | W17: 0 | X17: 0 | Y17: 0 | Z17: 0 | AA17: 0 | AB17: 0 | AC17: 0 | AD17: 0 | AE17: 0 | AF17: 0 | AG17: 0 | AH17: 0 | AI17: 0
E18: Taxable losses carried forward | G18: £m nominal prices | K18: =SUM(K15:K17) -> 0 | L18: =SUM(L15:L17) -> 0 | M18: 0 | N18: 0 | O18: 0 | P18: 0 | Q18: 0 | R18: 0 | S18: 0 | T18: 0 | U18: 0 | V18: 0 | W18: 0 | X18: 0 | Y18: 0 | Z18: 0 | AA18: 0 | AB18: 0 | AC18: 0 | AD18: 0 | AE18: 0 | AF18: 0 | AG18: 0 | AH18: 0 | AI18: 0
C20: Tax allowance
E22: Profits attributable to corporation tax (after taxable losses) | G22: £m nominal prices | K22: =MAX(K11 - K17,0) -> 6.770866424 | L22: 19.87596512 | M22: 18.87241548 | N22: 22.91191554 | O22: 25.22245156 | P22: 28.75372124 | Q22: 32.13729946 | R22: 33.39174202 | S22: 36.20052155 | T22: 37.88141298 | U22: 41.59696594 | V22: 44.65540476 | W22: 47.63902275 | X22: =MAX(X11 - X17,0) -> 50.23463063 | Y22: =MAX(Y11 - Y17,0) -> 52.05335894 | Z22: 56.1507458 | AA22: 55.69664673 | AB22: 59.1965706 | AC22: 62.69846391 | AD22: 64.38199271 | AE22: 68.45052126 | AF22: 72.02961273 | AG22: 75.63694458 | AH22: 79.2797174 | AI22: 7.130942485
E23: Corporation tax rate | G23: =Inputs!G113 -> % | K23: =Inputs!K113 -> 0.19 | L23: =Inputs!L113 -> 0.19 | M23: =Inputs!M113 -> 0.19 | N23: =Inputs!N113 -> 0.19 | O23: =Inputs!O113 -> 0.19 | P23: =Inputs!P113 -> 0.19 | Q23: =Inputs!Q113 -> 0.19 | R23: =Inputs!R113 -> 0.19 | S23: =Inputs!S113 -> 0.19 | T23: =Inputs!T113 -> 0.19 | U23: =Inputs!U113 -> 0.19 | V23: =Inputs!V113 -> 0.19 | W23: =Inputs!W113 -> 0.19 | X23: =Inputs!X113 -> 0.19 | Y23: =Inputs!Y113 -> 0.19 | Z23: =Inputs!Z113 -> 0.19 | AA23: =Inputs!AA113 -> 0.19 | AB23: =Inputs!AB113 -> 0.19 | AC23: =Inputs!AC113 -> 0.19 | AD23: =Inputs!AD113 -> 0.19 | AE23: =Inputs!AE113 -> 0.19 | AF23: =Inputs!AF113 -> 0.19 | AG23: =Inputs!AG113 -> 0.19 | AH23: =Inputs!AH113 -> 0.19 | AI23: =Inputs!AI113 -> 0.19
E24: Corporation tax charge after losses | G24: £m nominal prices | K24: =K22 * K23 -> 1.286464621 | L24: 3.776433373 | M24: 3.585758941 | N24: 4.353263952 | O24: 4.792265796 | P24: 5.463207036 | Q24: 6.106086897 | R24: 6.344430983 | S24: 6.878099094 | T24: 7.197468466 | U24: 7.903423529 | V24: 8.484526905 | W24: 9.051414323 | X24: =X22 * X23 -> 9.544579821 | Y24: =Y22 * Y23 -> 9.890138198 | Z24: 10.6686417 | AA24: 10.58236288 | AB24: 11.24734841 | AC24: 11.91270814 | AD24: 12.23257861 | AE24: 13.00559904 | AF24: 13.68562642 | AG24: 14.37101947 | AH24: 15.06314631 | AI24: 1.354879072
E26: Grossing-up factor for tax on tax charge after losses | G26: scalar | K26: =1 / (1 - K23) -> 1.234567901 | L26: 1.234567901 | M26: 1.234567901 | N26: 1.234567901 | O26: 1.234567901 | P26: 1.234567901 | Q26: 1.234567901 | R26: 1.234567901 | S26: 1.234567901 | T26: 1.234567901 | U26: 1.234567901 | V26: 1.234567901 | W26: 1.234567901 | X26: =1 / (1 - X23) -> 1.234567901 | Y26: =1 / (1 - Y23) -> 1.234567901 | Z26: 1.234567901 | AA26: 1.234567901 | AB26: 1.234567901 | AC26: 1.234567901 | AD26: 1.234567901 | AE26: 1.234567901 | AF26: 1.234567901 | AG26: 1.234567901 | AH26: 1.234567901 | AI26: 1.234567901
E28: Unprofiled tax allowance (cap) | G28: £m nominal prices | K28: =K24 * K26 -> 1.588227927 | L28: 4.662263424 | M28: 4.42686289 | N28: 5.37439994 | O28: 5.916377526 | P28: 6.744700044 | Q28: 7.538378886 | R28: 7.832630843 | S28: 8.491480363 | T28: 8.885763538 | U28: 9.757312999 | V28: 10.47472457 | W28: 11.17458558 | X28: =X24 * X26 -> 11.78343188 | Y28: =Y24 * Y26 -> 12.21004716 | Z28: =Z24 * Z26 -> 13.17116259 | AA28: 13.06464553 | AB28: 13.88561533 | AC28: 14.70704709 | AD28: 15.10194891 | AE28: 16.05629511 | AF28: 16.89583508 | AG28: 17.74199935 | AH28: 18.59647692 | AI28: 1.672690213
B30: Profiled tax allowance (cap)
E32: Unprofiled tax allowance (cap) | G32: =Inputs!$I$11 -> £m 16/17 prices | K32: ='Tax Cap'!K28 / 'Tax Deductions'!K11 -> 1.364805828 | L32: ='Tax Cap'!L28 / 'Tax Deductions'!L11 -> 3.880671243 | M32: ='Tax Cap'!M28 / 'Tax Deductions'!M11 -> 3.569095095 | N32: ='Tax Cap'!N28 / 'Tax Deductions'!N11 -> 4.197048948 | O32: ='Tax Cap'!O28 / 'Tax Deductions'!O11 -> 4.475297753 | P32: ='Tax Cap'!P28 / 'Tax Deductions'!P11 -> 4.941749204 | Q32: ='Tax Cap'!Q28 / 'Tax Deductions'!Q11 -> 5.349929101 | R32: ='Tax Cap'!R28 / 'Tax Deductions'!R11 -> 5.384305924 | S32: ='Tax Cap'!S28 / 'Tax Deductions'!S11 -> 5.654021854 | T32: ='Tax Cap'!T28 / 'Tax Deductions'!T11 -> 5.730873593 | U32: ='Tax Cap'!U28 / 'Tax Deductions'!U11 -> 6.09548572 | V32: ='Tax Cap'!V28 / 'Tax Deductions'!V11 -> 6.33829864 | W32: ='Tax Cap'!W28 / 'Tax Deductions'!W11 -> 6.549580973 | X32: ='Tax Cap'!X28 / 'Tax Deductions'!X11 -> 6.689688401 | Y32: ='Tax Cap'!Y28 / 'Tax Deductions'!Y11 -> 6.714341701 | Z32: ='Tax Cap'!Z28 / 'Tax Deductions'!Z11 -> 7.015557898 | AA32: ='Tax Cap'!AA28 / 'Tax Deductions'!AA11 -> 6.740432084 | AB32: ='Tax Cap'!AB28 / 'Tax Deductions'!AB11 -> 6.939165413 | AC32: ='Tax Cap'!AC28 / 'Tax Deductions'!AC11 -> 7.119009909 | AD32: ='Tax Cap'!AD28 / 'Tax Deductions'!AD11 -> 7.080747623 | AE32: ='Tax Cap'!AE28 / 'Tax Deductions'!AE11 -> 7.291946346 | AF32: ='Tax Cap'!AF28 / 'Tax Deductions'!AF11 -> 7.43241222 | AG32: ='Tax Cap'!AG28 / 'Tax Deductions'!AG11 -> 7.559702239 | AH32: ='Tax Cap'!AH28 / 'Tax Deductions'!AH11 -> 7.675113571 | AI32: ='Tax Cap'!AI28 / 'Tax Deductions'!AI11 -> 0.6686851136
E33: Discount factor to start of operational period (cap) | G33: ='Allowances Cap'!G24 -> scalar | K33: ='Allowances Cap'!K24 -> 0.9250693802 | L33: ='Allowances Cap'!L24 -> 0.8557533582 | M33: ='Allowances Cap'!M24 -> 0.7916312287 | N33: ='Allowances Cap'!N24 -> 0.7323138101 | O33: ='Allowances Cap'!O24 -> 0.6774410824 | P33: ='Allowances Cap'!P24 -> 0.6266800022 | Q33: ='Allowances Cap'!Q24 -> 0.5797224812 | R33: ='Allowances Cap'!R24 -> 0.5362835164 | S33: ='Allowances Cap'!S24 -> 0.4960994601 | T33: ='Allowances Cap'!T24 -> 0.4589264201 | U33: ='Allowances Cap'!U24 -> 0.424538779 | V33: ='Allowances Cap'!V24 -> 0.3927278252 | W33: ='Allowances Cap'!W24 -> 0.3633004858 | X33: ='Allowances Cap'!X24 -> 0.3360781552 | Y33: ='Allowances Cap'!Y24 -> 0.3108956108 | Z33: ='Allowances Cap'!Z24 -> 0.28760001 | AA33: ='Allowances Cap'!AA24 -> 0.266049963 | AB33: ='Allowances Cap'!AB24 -> 0.2461146743 | AC33: ='Allowances Cap'!AC24 -> 0.2276731492 | AD33: ='Allowances Cap'!AD24 -> 0.2106134591 | AE33: ='Allowances Cap'!AE24 -> 0.194832062 | AF33: ='Allowances Cap'!AF24 -> 0.1802331749 | AG33: ='Allowances Cap'!AG24 -> 0.1667281914 | AH33: ='Allowances Cap'!AH24 -> 0.1542351447 | AI33: ='Allowances Cap'!AI24 -> 0.1426782097
E35: Discounted unprofiled tax allowance (cap) | G35: =Inputs!$I$11 -> £m 16/17 prices | K35: =K32 * K33 -> 1.262540081 | L35: =L32 * L33 -> 3.320897448 | M35: 2.825407135 | N35: 3.073556906 | O35: 3.031750554 | P35: 3.096895402 | Q35: 3.101474173 | R35: 2.887514514 | S35: 2.804957189 | T35: 2.630049302 | U35: 2.587770065 | V35: 2.48922624 | W35: 2.379465949 | X35: =X32 * X33 -> 2.248258137 | Y35: =Y32 * Y33 -> 2.087459364 | Z35: 2.017674521 | AA35: 1.793291706 | AB35: 1.707830436 | AC35: 1.620807405 | AD35: 1.49130075 | AE35: 1.420704943 | AF35: 1.339567251 | AG35: 1.260415482 | AH35: 1.183772252 | AI35: 0.09540679484
E36: NPV of tax allowance (cap) | G36: =Inputs!$I$11 -> £m 16/17 prices | I36: =SUM(K35:AI35) -> 53.757994
E38: Annuity factor (cap) | G38: ='Allowances Cap'!G31 -> scalar | I38: ='Allowances Cap'!I31 -> 0.09448027673
E40: Annuity of tax allowance (cap) | G40: =Inputs!$I$11 -> £m 16/17 prices | I40: =I36 * I38 -> 5.07907015
B42: End of sheet

Sheet Tax Floor
A1: Tax Floor | H1: Licence
E2: Parameter | G2: Units | H2: Terminology | I2: Constant | K2: Annual values
E3: Project year | K3: Year 1 | L3: Year 2 | M3: Year 3 | N3: Year 4 | O3: Year 5 | P3: Year 6 | Q3: Year 7 | R3: Year 8 | S3: Year 9 | T3: Year 10 | U3: Year 11 | V3: Year 12 | W3: Year 13 | X3: Year 14 | Y3: Year 15 | Z3: Year 16 | AA3: Year 17 | AB3: Year 18 | AC3: Year 19 | AD3: Year 20 | AE3: Year 21 | AF3: Year 22 | AG3: Year 23 | AH3: Year 24 | AI3: Year 25
B5: Unprofiled tax allowance (floor)
C7: Profits attributable to corporation tax
E9: Annuitised allowances except tax (floor) | G9: £m nominal prices | K9: ='Allowances Floor'!K34* 'Tax Deductions'!K$11 -> 42.27116321 | L9: ='Allowances Floor'!L34* 'Tax Deductions'!L$11 -> 43.6407489 | M9: ='Allowances Floor'!M34* 'Tax Deductions'!M$11 -> 45.05470916 | N9: ='Allowances Floor'!N34* 'Tax Deductions'!N$11 -> 46.51448174 | O9: ='Allowances Floor'!O34* 'Tax Deductions'!O$11 -> 48.02155094 | P9: ='Allowances Floor'!P34* 'Tax Deductions'!P$11 -> 49.57744919 | Q9: ='Allowances Floor'!Q34* 'Tax Deductions'!Q$11 -> 51.18375855 | R9: ='Allowances Floor'!R34* 'Tax Deductions'!R$11 -> 52.84211233 | S9: ='Allowances Floor'!S34* 'Tax Deductions'!S$11 -> 54.55419677 | T9: ='Allowances Floor'!T34* 'Tax Deductions'!T$11 -> 56.32175274 | U9: ='Allowances Floor'!U34* 'Tax Deductions'!U$11 -> 58.14657753 | V9: ='Allowances Floor'!V34* 'Tax Deductions'!V$11 -> 60.03052664 | W9: ='Allowances Floor'!W34* 'Tax Deductions'!W$11 -> 61.9755157 | X9: ='Allowances Floor'!X34* 'Tax Deductions'!X$11 -> 63.98352241 | Y9: ='Allowances Floor'!Y34* 'Tax Deductions'!Y$11 -> 66.05658854 | Z9: ='Allowances Floor'!Z34* 'Tax Deductions'!Z$11 -> 68.19682201 | AA9: ='Allowances Floor'!AA34* 'Tax Deductions'!AA$11 -> 70.40639904 | AB9: ='Allowances Floor'!AB34* 'Tax Deductions'!AB$11 -> 72.68756637 | AC9: ='Allowances Floor'!AC34* 'Tax Deductions'!AC$11 -> 75.04264352 | AD9: ='Allowances Floor'!AD34* 'Tax Deductions'!AD$11 -> 77.47402517 | AE9: ='Allowances Floor'!AE34* 'Tax Deductions'!AE$11 -> 79.98418359 | AF9: ='Allowances Floor'!AF34* 'Tax Deductions'!AF$11 -> 82.57567113 | AG9: ='Allowances Floor'!AG34* 'Tax Deductions'!AG$11 -> 85.25112288 | AH9: ='Allowances Floor'!AH34* 'Tax Deductions'!AH$11 -> 88.01325926 | AI9: ='Allowances Floor'!AI34* 'Tax Deductions'!AI$11 -> 90.86488886
E10: Less tax deductions | G10: £m nominal prices | K10: =-'Tax Deductions'!K19 -> -57.6035266 | L10: =-'Tax Deductions'!L19 -> -46.58415823 | M10: =-'Tax Deductions'!M19 -> -49.74101587 | N10: =-'Tax Deductions'!N19 -> -47.92459099 | O10: =-'Tax Deductions'!O19 -> -47.90915778 | P10: =-'Tax Deductions'!P19 -> -46.74735224 | Q10: =-'Tax Deductions'!Q19 -> -45.8100088 | R10: =-'Tax Deductions'!R19 -> -47.08105903 | S10: =-'Tax Deductions'!S19 -> -46.87959826 | T10: =-'Tax Deductions'!T19 -> -47.89050271 | U10: =-'Tax Deductions'!U19 -> -46.95395981 | V10: =-'Tax Deductions'!V19 -> -46.76457099 | W10: =-'Tax Deductions'!W19 -> -46.74296021 | X10: =-'Tax Deductions'!X19 -> -47.20532858 | Y10: =-'Tax Deductions'!Y19 -> -48.54365495 | Z10: =-'Tax Deductions'!Z19 -> -47.70561134 | AA10: =-'Tax Deductions'!AA19 -> -51.52465638 | AB10: =-'Tax Deductions'!AB19 -> -51.49870273 | AC10: =-'Tax Deductions'!AC19 -> -51.58333628 | AD10: =-'Tax Deductions'!AD19 -> -53.60253781 | AE10: =-'Tax Deductions'!AE19 -> -53.35670804 | AF10: =-'Tax Deductions'!AF19 -> -53.7241708 | AG10: =-'Tax Deductions'!AG19 -> -54.19126154 | AH10: =-'Tax Deductions'!AH19 -> -54.75492259 | AI10: =-'Tax Deductions'!AI19 -> -131.2464198
E11: Profits attributable to corporation tax | G11: £m nominal prices | K11: =SUM(K9:K10) -> -15.33236339 | L11: =SUM(L9:L10) -> -2.943409336 | M11: -4.686306716 | N11: -1.410109256 | O11: 0.1123931628 | P11: 2.830096955 | Q11: 5.373749747 | R11: 5.761053292 | S11: 7.674598508 | T11: 8.431250032 | U11: 11.19261772 | V11: 13.26595565 | W11: 15.2325555 | X11: 16.77819384 | Y11: 17.51293359 | Z11: 20.49121067 | AA11: 18.88174266 | AB11: 21.18886364 | AC11: 23.45930724 | AD11: 23.87148737 | AE11: 26.62747554 | AF11: 28.85150033 | AG11: 31.05986134 | AH11: 33.25833667 | AI11: -40.38153099
C13: Tax losses
E15: Taxable losses brought forward | G15: £m nominal prices | K15: =J18 -> 0 | L15: =K18 -> -15.33236339 | M15: -18.27577273 | N15: -22.96207944 | O15: -24.3721887 | P15: -24.25979553 | Q15: -21.42969858 | R15: -16.05594883 | S15: -10.29489554 | T15: -2.620297032 | U15: 0 | V15: 0 | W15: 0 | X15: 0 | Y15: 0 | Z15: 0 | AA15: 0 | AB15: 0 | AC15: 0 | AD15: 0 | AE15: 0 | AF15: 0 | AG15: 0 | AH15: 0 | AI15: 0
E16: In-year taxable loss | G16: £m nominal prices | K16: =MIN(K11, 0) -> -15.33236339 | L16: -2.943409336 | M16: -4.686306716 | N16: -1.410109256 | O16: 0 | P16: 0 | Q16: 0 | R16: 0 | S16: 0 | T16: 0 | U16: 0 | V16: 0 | W16: 0 | X16: 0 | Y16: 0 | Z16: 0 | AA16: 0 | AB16: 0 | AC16: 0 | AD16: 0 | AE16: 0 | AF16: 0 | AG16: 0 | AH16: 0 | AI16: -40.38153099
E17: Profits used to offset losses | G17: £m nominal prices | K17: =IF(K11 >= 0, MIN(K11, -K15), 0) -> 0 | L17: 0 | M17: 0 | N17: 0 | O17: 0.1123931628 | P17: 2.830096955 | Q17: 5.373749747 | R17: 5.761053292 | S17: 7.674598508 | T17: 2.620297032 | U17: 0 | V17: 0 | W17: 0 | X17: 0 | Y17: 0 | Z17: 0 | AA17: 0 | AB17: 0 | AC17: 0 | AD17: 0 | AE17: 0 | AF17: 0 | AG17: 0 | AH17: 0 | AI17: 0
E18: Taxable losses carried forward | G18: £m nominal prices | K18: =SUM(K15:K17) -> -15.33236339 | L18: =SUM(L15:L17) -> -18.27577273 | M18: -22.96207944 | N18: -24.3721887 | O18: -24.25979553 | P18: -21.42969858 | Q18: -16.05594883 | R18: -10.29489554 | S18: -2.620297032 | T18: 0 | U18: 0 | V18: 0 | W18: 0 | X18: 0 | Y18: 0 | Z18: 0 | AA18: 0 | AB18: 0 | AC18: 0 | AD18: 0 | AE18: 0 | AF18: 0 | AG18: 0 | AH18: 0 | AI18: -40.38153099
C20: Tax allowance
E22: Profits attributable to corporation tax (after taxable losses) | G22: £m nominal prices | K22: =MAX(K11 - K17,0) -> 0 | L22: 0 | M22: 0 | N22: 0 | O22: 0 | P22: 0 | Q22: 0 | R22: 0 | S22: 0 | T22: 5.810952999 | U22: 11.19261772 | V22: 13.26595565 | W22: 15.2325555 | X22: 16.77819384 | Y22: 17.51293359 | Z22: 20.49121067 | AA22: 18.88174266 | AB22: 21.18886364 | AC22: 23.45930724 | AD22: 23.87148737 | AE22: 26.62747554 | AF22: 28.85150033 | AG22: 31.05986134 | AH22: 33.25833667 | AI22: 0
E23: Corporation tax rate | G23: =Inputs!G113 -> % | K23: =Inputs!K113 -> 0.19 | L23: =Inputs!L113 -> 0.19 | M23: =Inputs!M113 -> 0.19 | N23: =Inputs!N113 -> 0.19 | O23: =Inputs!O113 -> 0.19 | P23: =Inputs!P113 -> 0.19 | Q23: =Inputs!Q113 -> 0.19 | R23: =Inputs!R113 -> 0.19 | S23: =Inputs!S113 -> 0.19 | T23: =Inputs!T113 -> 0.19 | U23: =Inputs!U113 -> 0.19 | V23: =Inputs!V113 -> 0.19 | W23: =Inputs!W113 -> 0.19 | X23: =Inputs!X113 -> 0.19 | Y23: =Inputs!Y113 -> 0.19 | Z23: =Inputs!Z113 -> 0.19 | AA23: =Inputs!AA113 -> 0.19 | AB23: =Inputs!AB113 -> 0.19 | AC23: =Inputs!AC113 -> 0.19 | AD23: =Inputs!AD113 -> 0.19 | AE23: =Inputs!AE113 -> 0.19 | AF23: =Inputs!AF113 -> 0.19 | AG23: =Inputs!AG113 -> 0.19 | AH23: =Inputs!AH113 -> 0.19 | AI23: =Inputs!AI113 -> 0.19
E24: Corporation tax charge after losses | G24: £m nominal prices | K24: =K22 * K23 -> 0 | L24: =L22 * L23 -> 0 | M24: 0 | N24: 0 | O24: 0 | P24: 0 | Q24: 0 | R24: 0 | S24: 0 | T24: 1.10408107 | U24: 2.126597367 | V24: 2.520531574 | W24: 2.894185544 | X24: 3.187856829 | Y24: 3.327457381 | Z24: 3.893330027 | AA24: 3.587531105 | AB24: 4.025884091 | AC24: 4.457268376 | AD24: 4.535582599 | AE24: 5.059220353 | AF24: 5.481785063 | AG24: 5.901373655 | AH24: 6.319083967 | AI24: 0
E26: Grossing-up factor for tax on tax charge after losses | G26: scalar | K26: =1 / (1 - K23) -> 1.234567901 | L26: 1.234567901 | M26: 1.234567901 | N26: 1.234567901 | O26: 1.234567901 | P26: 1.234567901 | Q26: 1.234567901 | R26: 1.234567901 | S26: 1.234567901 | T26: 1.234567901 | U26: 1.234567901 | V26: 1.234567901 | W26: 1.234567901 | X26: 1.234567901 | Y26: 1.234567901 | Z26: 1.234567901 | AA26: 1.234567901 | AB26: 1.234567901 | AC26: 1.234567901 | AD26: 1.234567901 | AE26: 1.234567901 | AF26: 1.234567901 | AG26: 1.234567901 | AH26: 1.234567901 | AI26: 1.234567901
E28: Unprofiled tax allowance (floor) | G28: £m nominal prices | K28: =K24 * K26 -> 0 | L28: 0 | M28: 0 | N28: 0 | O28: 0 | P28: 0 | Q28: 0 | R28: 0 | S28: 0 | T28: 1.363063049 | U28: 2.625428848 | V28: 3.111767376 | W28: 3.573068573 | X28: 3.935625715 | Y28: 4.107972076 | Z28: 4.80658028 | AA28: 4.429050747 | AB28: 4.970227273 | AC28: 5.502800464 | AD28: 5.599484691 | AE28: 6.245951053 | AF28: 6.76763588 | AG28: 7.285646487 | AH28: 7.80133823 | AI28: 0
B30: Profiled tax allowance (floor)
E32: Unprofiled tax allowance (floor) | G32: =Inputs!$I$11 -> £m 16/17 prices | K32: ='Tax Floor'!K28 / 'Tax Deductions'!K$11 -> 0 | L32: ='Tax Floor'!L28 / 'Tax Deductions'!L$11 -> 0 | M32: ='Tax Floor'!M28 / 'Tax Deductions'!M$11 -> 0 | N32: ='Tax Floor'!N28 / 'Tax Deductions'!N$11 -> 0 | O32: ='Tax Floor'!O28 / 'Tax Deductions'!O$11 -> 0 | P32: ='Tax Floor'!P28 / 'Tax Deductions'!P$11 -> 0 | Q32: ='Tax Floor'!Q28 / 'Tax Deductions'!Q$11 -> 0 | R32: ='Tax Floor'!R28 / 'Tax Deductions'!R$11 -> 0 | S32: ='Tax Floor'!S28 / 'Tax Deductions'!S$11 -> 0 | T32: ='Tax Floor'!T28 / 'Tax Deductions'!T$11 -> 0.8791075748 | U32: ='Tax Floor'!U28 / 'Tax Deductions'!U$11 -> 1.640130234 | V32: ='Tax Floor'!V28 / 'Tax Deductions'!V$11 -> 1.882943154 | W32: ='Tax Floor'!W28 / 'Tax Deductions'!W$11 -> 2.094225488 | X32: ='Tax Floor'!X28 / 'Tax Deductions'!X$11 -> 2.234332915 | Y32: ='Tax Floor'!Y28 / 'Tax Deductions'!Y$11 -> 2.258986215 | Z32: ='Tax Floor'!Z28 / 'Tax Deductions'!Z$11 -> 2.560202412 | AA32: ='Tax Floor'!AA28 / 'Tax Deductions'!AA$11 -> 2.285076598 | AB32: ='Tax Floor'!AB28 / 'Tax Deductions'!AB$11 -> 2.483809927 | AC32: ='Tax Floor'!AC28 / 'Tax Deductions'!AC$11 -> 2.663654423 | AD32: ='Tax Floor'!AD28 / 'Tax Deductions'!AD$11 -> 2.625392137 | AE32: ='Tax Floor'!AE28 / 'Tax Deductions'!AE$11 -> 2.836590861 | AF32: ='Tax Floor'!AF28 / 'Tax Deductions'!AF$11 -> 2.977056734 | AG32: ='Tax Floor'!AG28 / 'Tax Deductions'!AG$11 -> 3.104346753 | AH32: ='Tax Floor'!AH28 / 'Tax Deductions'!AH$11 -> 3.219758085 | AI32: ='Tax Floor'!AI28 / 'Tax Deductions'!AI$11 -> 0
E33: Discount factor to start of operational period (floor) | G33: ='Allowances Floor'!G24 -> scalar | K33: ='Allowances Floor'!K24 -> 1.002104419 | L33: ='Allowances Floor'!L24 -> 1.004213267 | M33: ='Allowances Floor'!M24 -> 1.006326553 | N33: ='Allowances Floor'!N24 -> 1.008444286 | O33: ='Allowances Floor'!O24 -> 1.010566476 | P33: ='Allowances Floor'!P24 -> 1.012693131 | Q33: ='Allowances Floor'!Q24 -> 1.014824262 | R33: ='Allowances Floor'!R24 -> 1.016959878 | S33: ='Allowances Floor'!S24 -> 1.019099988 | T33: ='Allowances Floor'!T24 -> 1.021244601 | U33: ='Allowances Floor'!U24 -> 1.023393728 | V33: ='Allowances Floor'!V24 -> 1.025547378 | W33: ='Allowances Floor'!W24 -> 1.027705559 | X33: ='Allowances Floor'!X24 -> 1.029868283 | Y33: ='Allowances Floor'!Y24 -> 1.032035557 | Z33: ='Allowances Floor'!Z24 -> 1.034207393 | AA33: ='Allowances Floor'!AA24 -> 1.036383799 | AB33: ='Allowances Floor'!AB24 -> 1.038564785 | AC33: ='Allowances Floor'!AC24 -> 1.040750361 | AD33: ='Allowances Floor'!AD24 -> 1.042940536 | AE33: ='Allowances Floor'!AE24 -> 1.04513532 | AF33: ='Allowances Floor'!AF24 -> 1.047334723 | AG33: ='Allowances Floor'!AG24 -> 1.049538754 | AH33: ='Allowances Floor'!AH24 -> 1.051747424 | AI33: ='Allowances Floor'!AI24 -> 1.053960742
E35: Discounted unprofiled tax allowance (floor) | G35: =Inputs!$I$11 -> £m 16/17 prices | K35: =K32*K33 -> 0 | L35: =L32*L33 -> 0 | M35: 0 | N35: 0 | O35: 0 | P35: 0 | Q35: 0 | R35: 0 | S35: 0 | T35: 0.8977838648 | U35: 1.678498995 | V35: 1.931047414 | W35: 2.152247176 | X35: 2.301068602 | Y35: 2.331354098 | Z35: 2.647780262 | AA35: 2.368216365 | AB35: 2.579597523 | AC35: 2.772199302 | AD35: 2.738127882 | AE35: 2.964621297 | AF35: 3.11797489 | AG35: 3.258132224 | AH35: 3.386372272 | AI35: 0
E36: NPV of tax allowance (floor) | G36: =Inputs!$I$11 -> £m 16/17 prices | I36: =SUM(K35:AI35) -> 37.12502217
E38: Annuity factor (floor) | G38: ='Allowances Floor'!G31 -> scalar | I38: ='Allowances Floor'!I31 -> 0.03891718202
E40: Annuity of tax allowance (floor) | G40: =Inputs!$I$11 -> £m 16/17 prices | I40: =I36 * I38 -> 1.444801245
B42: End of sheet

Sheet Cap Floor Levels
A1: Cap Floor Levels | H1: Licence
E2: Parameter | G2: Units | H2: Terminology | I2: Constant
B4: Cap and Floor levels and adjustments
C6: Cap and Floor levels at FPA (Preliminary) / PCR (Final) and PCA adjustments at PCR
C7: Relevant stage: FPA for Preliminary levels; PCR for final levels
E8: Cap at relevant stage excluding tax (calculated through the model) | G8: =Inputs!$I$11 -> £m 16/17 prices | I8: ='Allowances Cap'!$I33 -> 55.31860087
E9: Floor at relevant stage excluding tax (calculated through the model) | G9: =Inputs!$I$11 -> £m 16/17 prices | I9: ='Allowances Floor'!$I33 -> 36.32471696
E11: Cap at relevant stage - tax element (calculated through the model) | G11: =Inputs!$I$11 -> £m 16/17 prices | I11: =IF(Inputs!$I$123="No",'Tax Cap'!I40,0) -> 5.07907015
E12: Floor at relevant stage - tax element (calculated through the model) | G12: =Inputs!$I$11 -> £m 16/17 prices | I12: =IF(Inputs!$I$123="No",'Tax Floor'!I40,0) -> 1.444801245
E14: Cap at relevant stage - tax element (previously calculated through the model and fixed) | G14: =Inputs!$I$11 -> £m 16/17 prices
E15: Floor at relevant stage - tax element (previously calculated through the model and fixed) | G15: =Inputs!$I$11 -> £m 16/17 prices
E17: Cap at relevant stage including tax (calculated through the model) | G17: =Inputs!$I$11 -> £m 16/17 prices | I17: =I8+IF(Inputs!$I$123="Yes",I14,I11) -> 60.39767102
E18: Floor at relevant stage including tax (calculated through the model) | G18: =Inputs!$I$11 -> £m 16/17 prices | I18: =I9+IF(Inputs!$I$123="Yes",I15,I12) -> 37.7695182
E20: Preliminary Cap including tax (hardcoded at FPA) | G20: =Inputs!$I$11 -> £m 16/17 prices | H20: PCL | I20: 50.69585754
E21: Preliminary Floor including tax (hardcoded at FPA) | G21: =Inputs!$I$11 -> £m 16/17 prices | H21: PFL | I21: 27.57213644
E23: Cap PCA adjustment (at PCR) | G23: =Inputs!$I$11 -> £m 16/17 prices | H23: PCAC | I23: =I17-I20 -> 9.701813486
E24: Floor PCA adjustment (at PCR) | G24: =Inputs!$I$11 -> £m 16/17 prices | H24: PCAF | I24: =I18-I21 -> 10.19738176
B26: End of sheet
